Workbook

Sheet CONTRIBUENTE
C2: Questo file contiene UNA MACRO (non indispensabile) nel foglio F24 Semplificato. Puoi attivarla anche in un secondo momento, quando
C3: riapri il file. Per utilizzarla assicurati di salvare il file nel formato con macro ATTIVE. Le macro sono COMANDI automatici che completano
C4: le funzionalità di questo strumento, non contengono virus o altro. Qui trovi la spiegazione di Microsoft: | M4: MACRO
C5: Sistema interamente originale. Non necessita di aggiornamenti.
C6: di Marco Piccoli - P. IVA 01151800313
C7: Monfalcone - GO - Tel. 333 46 39 497
P8: Professionista Web di cui alla legge nr. 4/2013
C9: Leggi attentamente questa presentazione, osserva le "Note pratiche" e richiedi liberamente informazioni via mail.
C10: Una copia di questo file è sempre disponibile al sito www.marcopiccoli.it: | J10: Area Download .xlsx / xlsm
C12: Puoi usare questo file per annotare i tuoi F24 di TUTTI i MESI di OGNI ANNO. Al momento il trimestre selezionato è: | T12: DAL - GG/MM - AL
C13: =I84 -> 1° TRIMESTRE | G13: =IF(J141="",IF(E140=1,B137,""),J141) ->  | T13: =IF(I84="",F158,VLOOKUP(I84,C158:G161,4,FALSE)) -> 2024-01-01 | U13: =IF(I84="",G158,VLOOKUP(I84,C158:G161,5,FALSE)) -> 2024-03-31
B14: Questo strumento è liberamente utilizzabile DA TUTTI. Funziona integralmente per OGNI TRIMESTRE di ogni
B15: ANNO. Puoi sbloccarlo in qualsiasi momento per l' INTERO ANNO. I valori che inserisci sono sempre disponibili.
C16: =IF(K66=J145,B128,B127) -> Richiedi via mail il TUO CODICE di PROPRIETA' per EXCEL: | J16: info@marcopiccoli.it
C17: Note pratiche:
C18: USA IL TASTO - TAB - PER MUOVERE IL CURSORE NELLE | I18: USA IL TASTO - Canc - PER RIMUOVERE IL
C19: CELLE LIBERE. TUTTE LE ALTRE SONO BLOCCATE E NON | I19: CONTENUTO DI UNA CELLA. PER MAC USA
C20: TI SERVONO PER IL CORRETTO USO DI QUESTO FILE. | I20: - doppio tasto - NON TAGLIARE LE CELLE.
G22: per OpenOffice non disponibile
C25: Il file contiene 1 Selettore MACRO.
M26: Questo è il sistema
J27: F24 Semplificato 1.6 per Excel .xlsm
C29: =CONCATENATE(J27," è un sistema elettronico UNIVERSALE con il quale puoi creare e memorizzare molteplici modelli in 1 anno ed in più anni, identificandoli con") -> F24 Semplificato 1.6 per Excel .xlsm è un sistema elettronico UNIVERSALE con il quale puoi creare e memorizzare molteplici modelli in 1 anno ed in più anni, identificandoli con
C30: 1 numero di protocollo progressivo.
C31: Il documento si edita una riga sotto l' altra progressivamente e si stampa a scelta nel foglio del \ MODELLO Elettronico /.
C32: CONTRIBUENTE
C34: CODICE FISCALE | E34: 01234567891
C36: Dati Anagrafici | E36: Anagrafica CONTRIBUENTE
E37: Cognome, denominazione o ragione sociale
E38: Nome CONTRIBUENTE | J38: 2000-01-01
E39: Nome | J39: Data di nascita | M39: Sesso
M40: Provincia
E41: Comune (o Stato estero) di nascita
C43: Codice fiscale | K43: Codice identificativo
C45: Dopo aver compilato il quadro CONTRIBUENTE, utilizza il foglio \ Motivo del pagamento /
C46: per generare i tuoi singoli documenti inserendo gli elementi specifici riga per riga.
C47: Assegna: 1 numero di protocollo progressivo per creare ogni singolo documento. Stesso nr. di prot. = stesso DOC.
C49: =IF(H139=1,G13,IF(ISERROR(K139),J136,J135)) -> Questo file risulta al momento completamente funzionante ed il sistema rileva tutti i suoi fogli.
C51: Note:
C55: PROPRIETA' illimitata del file
C56: Questo sistema può funzionare in enne copie rinominate a piacere. Funziona con calendario PERPETUO.
C57: Per attivarlo nella totalità dell' ANNO inserisci in qualsiasi momento il tuo codice di proprietà nell' apposito spazio. Puoi
C58: usare contemporaneamente più di un file. Salva un file IN BIANCO con le tue IMPOSTAZIONI da tenere come MATRICE.
F59: =IF(K66=J145,B137,"") -> 
D60: Anagrafica: | F60: =E36 -> Anagrafica CONTRIBUENTE
J62: Partita IVA / C.F: | K62: =E34 -> 01234567891
D64: Indirizzo:
C66: QUI | J66: Inserisci qui il tuo codice di proprietà ---> | Q66: =IF(ISBLANK(K66),0,1) -> 0
C67: =IF(K66=$J$145,"ora è disattivato","cambi trimestre") -> cambi trimestre
C68: =C153 -> 89 | D68: giorni al | E68: primo mese disattivato | I68: =IF(K66="","",IF(J145=K66,B135,B136)) ->  | S68: Il codice che hai inserito nel sistema non è stato riconosciuto.
B69: =IF(K66=J145,B131,IF(I68=B136,B132,IF(C68<0,"",""))) ->  | S69: Le cause possono essere le seguenti:
C70: PREZZO per 1 codice di proprietà € 39,00 | H70: Questo sistema utilizza il codice ID: Contabilità #2
C71: =J27 -> F24 Semplificato 1.6 per Excel .xlsm | L71: www.marcopiccoli.it | S71: 1) La Ragione Sociale inserita non coincide con il testo in mio possesso.
S72: Verifica la punteggiatura e l' assenza di spazi iniziali / finali. Controlla la P.E.C. ricevuta.
C73: Questo file funziona solo se lasciato integro in tutte le sue parti. E' garantito il funzionamento con PC - Excel .xls o sup. | S73: 2) La Partita IVA inserita non coincide con il numero in mio possesso.
C74: Il sistema conta 4 fogli compreso il presente. I fogli NON POSSONO ESSERE ELIMINATI altrimenti l' intero sistema | S74: 3) Il codice che ti ho fornito non è stato correttamente inserito.
C75: non funzionerà. Se succede involontariamente NON SALVARE IL FILE ma chiudilo e riaprilo nuovamente. | S75: 4) Hai inserito un numero a caso?
D76: Pagina WEB del sistema | G76: Sezione info | K76: I tuoi | S76: Contattami liberamente via mail in qualsiasi momento per ulteriori informazioni sul codice.
D77: QUI | G77: F.A.Q. | H77: About me | K77: COMMENTI | S77: 5) Hai cambiato Ragione Sociale o Partita IVA? Contattami, il codice è una monoutenza specifica.
S78: 6) Hai usato il codice di un altro sistema? Non tutti i sistemi hanno lo stesso codice.
C79: Se desideri attivare questo sistema per l' INTERO ANNO e per OGNI ANNO, richiedi via mail il tuo Codice di Proprietà ed | S79: Questo file utilizza il codice di proprietà ID: Contabilità #2.
C80: inseriscilo direttamente nel file che stai già usando. Il codice ti viene inviato con regolare fattura. Chiedi istruzioni via mail.
M81: info@marcopiccoli.it | S81: Per qualsiasi altra cosa, contattami dopo aver considerato questi punti.
D82: SELEZIONA da qui il TRIMESTRE per il quale ATTIVARE questo sistema.
D83: I valori che via via inserisci sono sempre disponibili.
H84: ----> | I84: 1° TRIMESTRE
L87: Con "OK" accetti le regole | M87: OK
E88: A.C. cell di Marco Piccoli | L88: sull' utilizzo di questo file
E89: 34074 Monfalcone, GO - P. IVA 01151800313
E90: INFORMA CHIUNQUE ENTRI IN POSSESSO DI QUESTO FILE, CHE NON E'
E91: POSSIBILE UTILIZZARLO SENZA PROTEZIONI ORIGINALI e CHE SI ATTIVA
E92: ILLIMITATAMENTE SOLO CON REGOLARE CODICE DI PROPRIETA'.
E93: Questo strumento è interamente originale ed è distribuito professionalmente.
E94: E' coperto da diritti d' autore dal momento della sua pubblicazione sul sito
E95: www.marcopiccoli.it.
E96: L' inserimento del Codice di Proprietà, che viene inviato via P.E.C., estende tutti
E97: i diritti anche al Titolare del Sistema individuato nell' ANAGRAFICA di questo file. | O97: QUI
E98: Per qualsiasi altra informazione contattami liberamente via mail.
C101: =CONCATENATE(J27," / Sistema originale, nessuna riproduzione è permessa.") -> F24 Semplificato 1.6 per Excel .xlsm / Sistema originale, nessuna riproduzione è permessa.
C102: Rimuovere le protezioni originali, far circolare una parte del sistema o qualsiasi altro utilizzo (anche parziale, anche dei
C103: testi, anche a titolo gratuito) diverso dalle disposizioni originarie del file, sarà considerata violazione delle norme sulle
C104: opere d' ingegno. Il sistema originale privo di virus e malware si scarica al sito www.marcopiccoli.it.
R107: Torna su
B109: =J27 -> F24 Semplificato 1.6 per Excel .xlsm | L109: www.marcopiccoli.it
P113: =Tabelle!M5 -> 02
P114: =Tabelle!M6 -> 03
P115: =Tabelle!M7 -> 07
P116: =Tabelle!M8 -> 50
P117: =Tabelle!M9 -> 51
P118: =Tabelle!M10 -> 60
P119: =Tabelle!M11 -> 61
P120: =Tabelle!M12 -> 62
P121: =Tabelle!M13 -> 70
P122: =Tabelle!M14 -> 71
D123: X | E123: Maschile | F123: M | P123: =Tabelle!M15 -> .
E124: Femminile | F124: F | P124: =Tabelle!M16 -> .
B127: Richiedi via mail il TUO CODICE di PROPRIETA' per EXCEL: | H127: Il codice che hai inserito nel sistema non è stato riconosciuto.
B128: Contatta A.C. cell | H128: Le cause possono essere le seguenti:
B129: Questo file contiene delle MACRO. Leggi le istruzioni e completa il foglio \ IMPOSTAZIONI / prima di utilizzare il file.
B130: Questo file contiene delle MACRO. | K130: disattivato
B131: Questo sistema appartiene al TITOLARE in anagrafica. Qualsiasi altro uso non è permesso. | J131: Questo file si considera funzionante al momento della richiesta del codice.
B132: Verifica le NOTE che trovi a fondo pagina. | J132: Tieni costantemente una copia di sicurezza ed una MATRICE in bianco per gli anni successivi.
B135: OK ! Codice corretto. | E135: OK | F135: Sistema scaduto | J135: Questo file risulta al momento completamente funzionante ed il sistema rileva tutti i suoi fogli.
B136: CODICE NON VALIDO | E136: NO | F136: =IF(M87=E135,TRUE,FALSE) -> TRUE | J136: SISTEMA DANNEGGIATO !!! Chiudere senza salvare!
B137: TITOLARE DEL SISTEMA | J137: =IF(C153=0,"Sistema parzialmente attivato. Inserisci il tuo CODICE di PROPRIETA' nel foglio Presentazione.",CONCATENATE("Sistema attivato dal ",TEXT(T13,"GG/MM")," al ",TEXT(U13,"GG/MM"),". Modifica il trimestre dal foglio Presentazione.")) -> Sistema attivato dal 01/01 al 31/03. Modifica il trimestre dal foglio Presentazione.
B139: 1 | C139: BIT INTEGRITA' | E139: =IF(AND(F136=TRUE,K66=J145),1,0) -> 0 | F139: PROPRIETA' | H139: =IF(G13=F135,1,IF(F136=FALSE,1,0)) -> 0 | I139: SCADENZA | K139: =B139+'Motivo del pagamento'!H2021+'F24 Semplificato'!AN76+Tabelle!B22 -> 4 | L139: INTEGRITA'
E140: =IF(K66=J145,1,0) -> 0 | F140: PROPRIETA'
J141: =IF(F136=FALSE,"ERRORE: manca l' OK sulle regole di utilizzo del file.",IF(K66=J145,"",IF(C68<0,F135,""))) -> 
B143: Nome del Titolare | G143: P. IVA o Cod. Fiscale | M143: 1 | N143: 2 | O143: 3 | P143: 4 | Q143: 5 | R143: 6 | S143: 7 | T143: 8 | U143: 9 | V143: 10 | W143: 11 | Z143: =M145 -> 0 | AA143: =ROUND((Z143+AC143)*3,1) -> 3 | AB143: 61 | AC143: =N145 -> 1 | AD143: =ROUND((AC143+AF143)*3,1) -> 9 | AE143: =AB143-5 -> 56 | AF143: =O145 -> 2 | AG143: =ROUND((AF143+AI143)*3,1) -> 15 | AH143: =AE143-5 -> 51 | AI143: =P145 -> 3 | AJ143: =ROUND((AI143+AL143)*3,1) -> 21 | AK143: =AH143-5 -> 46 | AL143: =Q145 -> 4 | AM143: =ROUND((AL143+AO143)*3,1) -> 27 | AN143: =AK143-5 -> 41 | AO143: =R145 -> 5 | AP143: =ROUND((AO143+AR143)*3,1) -> 33 | AQ143: =AN143-5 -> 36 | AR143: =S145 -> 6 | AS143: =ROUND((AR143+AU143)*3,1) -> 39 | AT143: =AQ143-5 -> 31 | AU143: =T145 -> 7 | AV143: =ROUND((AU143+AX143)*3,1) -> 45 | AW143: =AT143-5 -> 26 | AX143: =U145 -> 8 | AY143: =ROUND((AX143+BA143)*3,1) -> 51 | AZ143: =AW143-5 -> 21 | BA143: =V145 -> 9 | BB143: =ROUND((BA143+BD143)*3,1) -> 30 | BC143: =AZ143-5 -> 16 | BD143: =W145 -> 1 | BE143: =ROUND((BD143+Z143)*3,1) -> 3 | BF143: =BC143-5 -> 11 | BI143: A | BJ143: B | BK143: C | BL143: D | BM143: F | BN143: E | BO143: I | BP143: G | BQ143: H | BR143: K | BS143: J | BT143: N | BU143: L | BV143: M | BW143: P | BX143: O | BY143: S | BZ143: Q | CA143: R | CB143: U | CC143: T | CD143: X | CE143: V | CF143: W | CG143: Z | CH143: Y | CI143: ù | CJ143: à | CK143: è | CL143: ì | CM143: ò | CN143: / | CP143: " | CQ143: - | CR143: . | CS143: 3 | CT143: 1 | CU143: 2 | CV143: 5 | CW143: 4 | CX143: 8 | CY143: 6 | CZ143: 7 | DA143: 0 | DB143: 9
B145: =E36 -> Anagrafica CONTRIBUENTE | G145: =E34 -> 01234567891 | J145: =CONCATENATE(J149,"-",J150,"-",J151) -> 223-BKBCC-823 | M145: =IF(ISERROR(VALUE(MID($G145,M143,1))),M143,IF(M143<($H146+1),VALUE(MID($G145,M143,1)),0)) -> 0 | N145: 1 | O145: 2 | P145: 3 | Q145: 4 | R145: 5 | S145: 6 | T145: 7 | U145: 8 | V145: 9 | W145: 1 | Z145: =HLOOKUP(MID($B145,Z143,1),$BI143:$DC145,3,FALSE) ->  | AA145: 1 | AB145: 33 | AC145: 1 | AD145: 3 | AE145: 33 | AF145: 12 | AG145: 21 | AH145: 33 | AI145: 1 | AJ145: 12 | AK145: 33 | AL145: 8 | AM145: 33 | AN145: 33 | AO145: 19 | AP145: 33 | AQ145: 33 | AR145: 1 | AS145: 33 | AT145: 33 | AU145: 5 | AV145: 33 | AW145: 33 | AX145: 7 | AY145: 33 | AZ145: 12 | BA145: 3 | BB145: 33 | BC145: 19 | BD145: 1 | BE145: 1 | BF145: 47 | BI145: 1 | BJ145: 2 | BK145: 3 | BL145: 4 | BM145: 5 | BN145: 6 | BO145: 7 | BP145: 8 | BQ145: 9 | BR145: 10 | BS145: 11 | BT145: 12 | BU145: 13 | BV145: 14 | BW145: 15 | BX145: 16 | BY145: 17 | BZ145: 18 | CA145: 19 | CB145: 20 | CC145: 21 | CD145: 22 | CE145: 23 | CF145: 24 | CG145: 25 | CH145: 26 | CI145: 27 | CJ145: 28 | CK145: 29 | CL145: 30 | CM145: 31 | CN145: 32 | CO145: 33 | CP145: 34 | CQ145: 35 | CR145: 36 | CS145: 37 | CT145: 38 | CU145: 39 | CV145: 40 | CW145: 41 | CX145: 42 | CY145: 43 | CZ145: 44 | DA145: 45 | DB145: 46 | DC145: 47
G146: LUNG. Txt | H146: =LEN(G145) -> 11 | BI146: A | BJ146: B | BK146: C | BL146: D | BM146: E | BN146: F | BO146: G | BP146: H | BQ146: I | BR146: J | BS146: K | BT146: L | BU146: M | BV146: N | BW146: O | BX146: P | BY146: Q | BZ146: R | CA146: S | CB146: T | CC146: U | CD146: V | CE146: W | CF146: X | CG146: Y | CH146: Z | CS146: =COUNTIF($Z143:$BF143,CS143) -> 3 | CT146: 2 | CU146: 1 | CV146: 1 | CW146: 1 | CX146: 1 | CY146: 1 | CZ146: 1 | DA146: 1 | DB146: 2
B147: 12 | X147: =IF(X150<0,X150*-1,X150) -> 227 | BG147: =IF(BG150<0,BG150*-1,BG150) -> 3734 | CQ147: 15 | CS147: =IF(ISERROR(HLOOKUP(SMALL($Z143:$BF143,CS143),$BI145:$CH146,2,FALSE)),HLOOKUP(SMALL($Z143:$BF143,CS143),$BI145:$CH146,2,TRUE),HLOOKUP(SMALL($Z143:$BF143,CS143),$BI145:$CH146,2,FALSE)) -> A | CT147: =IF(ISERROR(HLOOKUP(SMALL($Z143:$BF143,CT143+SUM($CS146:CS146)),$BI145:$CH146,2,FALSE)),HLOOKUP(SMALL($Z143:$BF143,CT143+SUM($CS146:CS146)),$BI145:$CH146,2,TRUE),HLOOKUP(SMALL($Z143:$BF143,CT143+SUM($CS146:CS146)),$BI145:$CH146,2,FALSE)) -> B | CU147: =IF(ISERROR(HLOOKUP(SMALL($Z143:$BF143,CU143+SUM($CS146:CT146)),$BI145:$CH146,2,FALSE)),HLOOKUP(SMALL($Z143:$BF143,CU143+SUM($CS146:CT146)),$BI145:$CH146,2,TRUE),HLOOKUP(SMALL($Z143:$BF143,CU143+SUM($CS146:CT146)),$BI145:$CH146,2,FALSE)) -> C | CV147: =IF(ISERROR(HLOOKUP(SMALL($Z143:$BF143,CV143+SUM($CS146:CU146)),$BI145:$CH146,2,FALSE)),HLOOKUP(SMALL($Z143:$BF143,CV143+SUM($CS146:CU146)),$BI145:$CH146,2,TRUE),HLOOKUP(SMALL($Z143:$BF143,CV143+SUM($CS146:CU146)),$BI145:$CH146,2,FALSE)) -> G | CW147: =IF(ISERROR(HLOOKUP(SMALL($Z143:$BF143,CW143+SUM($CS146:CV146)),$BI145:$CH146,2,FALSE)),HLOOKUP(SMALL($Z143:$BF143,CW143+SUM($CS146:CV146)),$BI145:$CH146,2,TRUE),HLOOKUP(SMALL($Z143:$BF143,CW143+SUM($CS146:CV146)),$BI145:$CH146,2,FALSE)) -> G | CX147: =IF(ISERROR(HLOOKUP(SMALL($Z143:$BF143,CX143+SUM($CS146:CW146)),$BI145:$CH146,2,FALSE)),HLOOKUP(SMALL($Z143:$BF143,CX143+SUM($CS146:CW146)),$BI145:$CH146,2,TRUE),HLOOKUP(SMALL($Z143:$BF143,CX143+SUM($CS146:CW146)),$BI145:$CH146,2,FALSE)) -> O | CY147: =IF(ISERROR(HLOOKUP(SMALL($Z143:$BF143,CY143+SUM($CS146:CX146)),$BI145:$CH146,2,FALSE)),HLOOKUP(SMALL($Z143:$BF143,CY143+SUM($CS146:CX146)),$BI145:$CH146,2,TRUE),HLOOKUP(SMALL($Z143:$BF143,CY143+SUM($CS146:CX146)),$BI145:$CH146,2,FALSE)) -> K | CZ147: =IF(ISERROR(HLOOKUP(SMALL($Z143:$BF143,CZ143+SUM($CS146:CY146)),$BI145:$CH146,2,FALSE)),HLOOKUP(SMALL($Z143:$BF143,CZ143+SUM($CS146:CY146)),$BI145:$CH146,2,TRUE),HLOOKUP(SMALL($Z143:$BF143,CZ143+SUM($CS146:CY146)),$BI145:$CH146,2,FALSE)) -> P | DA147: =IF(ISERROR(HLOOKUP(SMALL($Z143:$BF143,DA143+SUM($CS146:CZ146)),$BI145:$CH146,2,FALSE)),HLOOKUP(SMALL($Z143:$BF143,DA143+SUM($CS146:CZ146)),$BI145:$CH146,2,TRUE),HLOOKUP(SMALL($Z143:$BF143,DA143+SUM($CS146:CZ146)),$BI145:$CH146,2,FALSE)) -> G | DB147: =IF(ISERROR(HLOOKUP(SMALL($Z143:$BF143,CQ147),$BI145:$CH146,2,FALSE)),HLOOKUP(SMALL($Z143:$BF143,CQ147),$BI145:$CH146,2,TRUE),HLOOKUP(SMALL($Z143:$BF143,CQ147),$BI145:$CH146,2,FALSE)) -> K
M148: =M145*$B147 -> 0 | O148: =O145*$B147 -> 24 | Q148: =Q145*$B147 -> 48 | S148: =S145*$B147 -> 72 | U148: =U145*$B147 -> 96 | W148: =W145*$B147 -> 12 | X148: =IF(X151<0,X151*-1,X151) -> 280 | Z148: =Z145*$B147 ->  | AB148: =AB145*$B147 -> 396 | AD148: =AD145*$B147 -> 36 | AF148: =AF145*$B147 -> 144 | AH148: =AH145*$B147 -> 396 | AJ148: =AJ145*$B147 -> 144 | AL148: =AL145*$B147 -> 96 | AN148: =AN145*$B147 -> 396 | AP148: =AP145*$B147 -> 396 | AR148: =AR145*$B147 -> 12 | AT148: =AT145*$B147 -> 396 | AV148: =AV145*$B147 -> 396 | AX148: =AX145*$B147 -> 84 | AZ148: =AZ145*$B147 -> 144 | BB148: =BB145*$B147 -> 396 | BD148: =BD145*$B147 -> 12 | BF148: =BF145*$B147 -> 564 | BG148: =IF(BG151<0,BG151*-1,BG151) -> 3346 | CS148: =IF(ISERROR(CS147),0,CS147) -> A | CT148: B | CU148: C | CV148: G | CW148: G | CX148: O | CY148: K | CZ148: P | DA148: G | DB148: K
J149: =CONCATENATE(AE154,AF154,AG154) -> 223 | N149: =N145*$B147 -> 12 | P149: =P145*$B147 -> 36 | R149: =R145*$B147 -> 60 | T149: =T145*$B147 -> 84 | V149: =V145*$B147 -> 108 | X149: =IF(X152<0,X152*-1,X152) -> 1105 | AA149: =AA145*$B147 -> 12 | AC149: =AC145*$B147 -> 12 | AE149: =AE145*$B147 -> 396 | AG149: =AG145*$B147 -> 252 | AI149: =AI145*$B147 -> 12 | AK149: =AK145*$B147 -> 396 | AM149: =AM145*$B147 -> 396 | AO149: =AO145*$B147 -> 228 | AQ149: =AQ145*$B147 -> 396 | AS149: =AS145*$B147 -> 396 | AU149: =AU145*$B147 -> 60 | AW149: =AW145*$B147 -> 396 | AY149: =AY145*$B147 -> 396 | BA149: =BA145*$B147 -> 36 | BC149: =BC145*$B147 -> 228 | BE149: =BE145*$B147 -> 12 | BG149: =IF(BG152<0,BG152*-1,BG152) -> 15302
B150: =DAY(E150) -> 31 | C150: =MONTH(E150) -> 3 | D150: =YEAR(E150) -> 2024 | E150: =U13 -> 45382 | J150: =CONCATENATE(R154,S154,T154,U154,V154) -> BKBCC | M150: =M148-N145 -> -1 | O150: =O148-P145 -> 21 | Q150: =Q148-R145 -> 43 | S150: =S148-T145 -> 65 | U150: =U148-V145 -> 87 | W150: =W148-M145 -> 12 | X150: =SUM(M150:W150) -> 227 | Z150: =Z148-BF145 ->  | AB150: =AB148-AA145 -> 395 | AD150: =AD148-AC145 -> 35 | AF150: =AF148-AE145 -> 111 | AH150: =AH148-AG145 -> 375 | AJ150: =AJ148-AI145 -> 143 | AL150: =AL148-AK145 -> 63 | AN150: =AN148-AM145 -> 363 | AP150: =AP148-AO145 -> 377 | AR150: =AR148-AQ145 -> -21 | AT150: =AT148-AS145 -> 363 | AV150: =AV148-AU145 -> 391 | AX150: =AX148-AW145 -> 51 | AZ150: =AZ148-AY145 -> 111 | BB150: =BB148-BA145 -> 393 | BD150: =BD148-BC145 -> -7 | BF150: =BF148-BE145 -> 563 | BG150: =SUMIF(Z150:BF150,">0") -> 3734 | CS150: A | CT150: D | CU150: E | CV150: G | CW150: O | CX150: P | CY150: R | CZ150: R | DA150: S | DB150: U
B151: =DAY(E151) -> 2 | C151: =MONTH(E151) -> 1 | D151: =YEAR(E150) -> 2024 | E151: =TODAY() -> 45293 | J151: =CONCATENATE(AH154,AI154,AJ154) -> 823 | N151: =N149-M145 -> 12 | P151: =P149-O145 -> 34 | R151: =R149-Q145 -> 56 | T151: =T149-S145 -> 78 | V151: =V149-U145 -> 100 | X151: =SUM(M151:W151) -> 280 | AA151: =AA149-AB145 -> -21 | AC151: =AC149-AD145 -> 9 | AE151: =AE149-AF145 -> 384 | AG151: =AG149-AH145 -> 219 | AI151: =AI149-AJ145 -> 0 | AK151: =AK149-AL145 -> 388 | AM151: =AM149-AN145 -> 363 | AO151: =AO149-AP145 -> 195 | AQ151: =AQ149-AR145 -> 395 | AS151: =AS149-AT145 -> 363 | AU151: =AU149-AV145 -> 27 | AW151: =AW149-AX145 -> 389 | AY151: =AY149-AZ145 -> 384 | BA151: =BA149-BB145 -> 3 | BC151: =BC149-BD145 -> 227 | BE151: =BE149-BF145 -> -35 | BG151: =SUMIF(Z151:BF151,">0") -> 3346 | CS151: =IF(CS148=0,CS150,CS147) -> A | CT151: B | CU151: C | CV151: G | CW151: G | CX151: O | CY151: K | CZ151: P | DA151: G | DB151: K
M152: =M145+M148+M150 -> -1 | N152: =N145+N149+N151 -> 25 | O152: =O145+O148+O150 -> 47 | P152: =P145+P149+P151 -> 73 | Q152: =Q145+Q148+Q150 -> 95 | R152: =R145+R149+R151 -> 121 | S152: =S145+S148+S150 -> 143 | T152: =T145+T149+T151 -> 169 | U152: =U145+U148+U150 -> 191 | V152: =V145+V149+V151 -> 217 | W152: =W145+W148+W150 -> 25 | X152: =SUM(M152:W152) -> 1105 | Z152: =Z145+Z148+Z150 ->  | AA152: =AA145+AA149+AA151 -> -8 | AB152: =AB145+AB148+AB150 -> 824 | AC152: =AC145+AC149+AC151 -> 22 | AD152: =AD145+AD148+AD150 -> 74 | AE152: =AE145+AE149+AE151 -> 813 | AF152: =AF145+AF148+AF150 -> 267 | AG152: =AG145+AG149+AG151 -> 492 | AH152: =AH145+AH148+AH150 -> 804 | AI152: =AI145+AI149+AI151 -> 13 | AJ152: =AJ145+AJ148+AJ150 -> 299 | AK152: =AK145+AK149+AK151 -> 817 | AL152: =AL145+AL148+AL150 -> 167 | AM152: =AM145+AM149+AM151 -> 792 | AN152: =AN145+AN148+AN150 -> 792 | AO152: =AO145+AO149+AO151 -> 442 | AP152: =AP145+AP148+AP150 -> 806 | AQ152: =AQ145+AQ149+AQ151 -> 824 | AR152: =AR145+AR148+AR150 -> -8 | AS152: =AS145+AS149+AS151 -> 792 | AT152: =AT145+AT148+AT150 -> 792 | AU152: =AU145+AU149+AU151 -> 92 | AV152: =AV145+AV148+AV150 -> 820 | AW152: =AW145+AW149+AW151 -> 818 | AX152: =AX145+AX148+AX150 -> 142 | AY152: =AY145+AY149+AY151 -> 813 | AZ152: =AZ145+AZ148+AZ150 -> 267 | BA152: =BA145+BA149+BA151 -> 42 | BB152: =BB145+BB148+BB150 -> 822 | BC152: =BC145+BC149+BC151 -> 474 | BD152: =BD145+BD148+BD150 -> 6 | BE152: =BE145+BE149+BE151 -> -22 | BF152: =BF145+BF148+BF150 -> 1174 | BG152: =SUMIF(Z152:BF152,">0") -> 15302
B153: =DATE(D150,C150,B150) -> 45382 | C153: =IF((B153-B154)<0,0,B153-B154) -> 89
B154: =DATE(D151,C151,B151) -> 45293 | M154: =SUM(X150:X152) -> 1612 | Q154: =LEN(TEXT(M154,"@")) -> 4 | R154: =IF(Q154>0,HLOOKUP(MID(TEXT($M154,"@"),1,1),$CS143:$DB151,9,FALSE),"") -> B | S154: =IF($Q154>1,HLOOKUP(MID(TEXT($M154,"@"),2,1),$CS143:$DB151,9,FALSE),HLOOKUP(MID(TEXT($X154,"@"),1,1),$CS143:$DB151,9,FALSE)) -> K | T154: =IF($Q154>2,HLOOKUP(MID(TEXT($M154,"@"),3,1),$CS143:$DB151,9,FALSE),HLOOKUP(MID(TEXT($X154,"@"),2,1),$CS143:$DB151,9,FALSE)) -> B | U154: =IF($Q154>3,HLOOKUP(MID(TEXT($M154,"@"),4,1),$CS143:$DB151,9,FALSE),HLOOKUP(MID(TEXT($X154,"@"),3,1),$CS143:$DB151,9,FALSE)) -> C | V154: =IF($Q154>4,HLOOKUP(MID(TEXT($M154,"@"),5,1),$CS143:$DB151,9,FALSE),HLOOKUP(MID(TEXT($X154,"@"),4,1),$CS143:$DB151,9,FALSE)) -> C | W154: =LEN(TEXT(CONCATENATE(TEXT(X147,"@"),TEXT(X148,"@"),TEXT(X149,"@")),"@")) -> 10 | X154: =IF(W154<4,CONCATENATE(TEXT(CQ147,"@"),TEXT(X147,"@"),TEXT(X148,"@"),TEXT(X149,"@")),CONCATENATE(TEXT(X147,"@"),TEXT(X148,"@"),TEXT(X149,"@"))) -> 2272801105 | Z154: =SUM(BG150:BG152) -> 22382 | AD154: =LEN(TEXT(Z154,"@")) -> 5 | AE154: =IF(AD154>0,MID(TEXT($Z154,"@"),1,1),"") -> 2 | AF154: =IF($AD154>1,MID(TEXT($Z154,"@"),2,1),MID(TEXT($BG154,"@"),1,1)) -> 2 | AG154: =IF($AD154>2,MID(TEXT($Z154,"@"),3,1),MID(TEXT($BG154,"@"),2,1)) -> 3 | AH154: =IF($AD154>3,MID(TEXT($Z154,"@"),4,1),MID(TEXT($BG154,"@"),3,1)) -> 8 | AI154: =IF($AD154>4,MID(TEXT($Z154,"@"),5,1),MID(TEXT($BG154,"@"),4,1)) -> 2 | AJ154: =IF($AD154>5,MID(TEXT($Z154,"@"),6,1),MID(TEXT($BG154,"@"),5,1)) -> 3 | AK154: =LEN(TEXT(CONCATENATE(TEXT(BG147,"@"),TEXT(BG148,"@")),"@")) -> 8 | BG154: =IF(AK154<5,CONCATENATE(TEXT(BG149,"@"),TEXT(BG147,"@"),TEXT(BG148,"@")),CONCATENATE(TEXT(BG147,"@"),TEXT(BG148,"@"))) -> 37343346
F157: ANNO | G157: ='F24 Semplificato'!BU5 -> 2024
C158: 1° TRIMESTRE | E158: 1 | F158: =DATE(G157,E158,1) -> 2024-01-01 | G158: =F159-1 -> 2024-03-31
C159: 2° TRIMESTRE | E159: 4 | F159: =DATE(G157,E159,1) -> 2024-04-01 | G159: =F160-1 -> 2024-06-30
C160: 3° TRIMESTRE | E160: 7 | F160: =DATE(G157,E160,1) -> 2024-07-01 | G160: =F161-1 -> 2024-09-30
C161: 4° TRIMESTRE | E161: 10 | F161: =DATE(G157,E161,1) -> 2024-10-01 | G161: =DATE(G157,E162,31) -> 2024-12-31
E162: 12

Sheet Motivo del pagamento
D2: Contribuente: | J2: Compila le righe di questa sezione una sotto l' altra, assegnando un numero di protocollo progressivo e la data
D3: =CONTRIBUENTE!E34 -> 01234567891 | J3: in ogni riga. Nel foglio \ F24 Semplificato / potrai richiamare e stampare tutti i documenti così generati.
D4: Stesso nr. di PROT. = | J4: MOTIVO DEL PAGAMENTO
D5: stesso DOCUMENTO | J5: =IF(M2021=0,"",CONTRIBUENTE!$F$135) ->  | U5: Vedi foglio \ Tabelle /
D6: NR. | E6: DATA | G6: Codice | H6: Codice | J6: SEZ. | K6: codice | L6: codice | M6: TIPO | N6: num. | O6: Rateazione | P6: anno di | Q6: DETRAZIONI | R6: importi a debito | S6: importi a credito | U6: Delega irrevocabile a | Y6: Protocollo | AA6: Pagamento con | AB6: bancario | AC6: circ. o | AG6: N O T E
D7: Prot. | G7: UFFICIO | H7: ATTO | K7: tributo | L7: ente | N7: immob. | O7: mese rif. | P7: riferimento | R7: VERSATI | S7: COMPENSATI | V7: ABI | W7: CAB | Y7: alfanumerico | Z7: opz. | AA7: assegno nr. | AB7: postale | AC7: vaglia | AD7: ABI | AE7: CAB
A9: 1 di 2000 | B9: =IF(AK9=$AK$2015,0,IF(M$2021=1,0,D9&"-"&YEAR(E9))) -> 1-2024 | C9: =IF(M$2021=1,0,B9&"-"&AI9) -> 1-2024-1 | D9: 1 | E9: 2024-01-01 | G9: 123 | H9: 01234567891 | J9: ---- Inserisci | K9: 0101 | L9: 0000 | M9: Saldo | N9: 1 | O9: 01 01 | P9: 2020 | R9: 1 | U9: B1 | V9: =IF(M$2021=1,"",IF(U9="","",VLOOKUP(U9,Tabelle!$D$5:$H$7,5,FALSE))) -> 00001 | W9: =IF(M$2021=1,"",IF(U9="","",VLOOKUP(U9,Tabelle!$D$5:$I$7,6,FALSE))) -> 10000 | Y9: AAA | Z9: compila | AA9: 0123456789 | AB9: X | AD9: 01234 | AE9: 56789 | AG9: Testo Libero | AI9: 1 | AK9: =IF(E9>0,IF(OR(MONTH(E9)<$J$2027,MONTH(E9)>$J$2028),AK$2015,0),0) -> 0
A10: 2 | B10: =IF(AK10=$AK$2015,0,IF(M$2021=1,0,D10&"-"&YEAR(E10))) -> 2-2024 | C10: 2-2024-1 | D10: 2 | E10: 2024-01-01 | G10: 321 | H10: 19876543210 | J10: ---- Inserisci | K10: 1010 | L10: 0001 | M10: Ravvedimento | N10: 10 | O10: 10 10 | P10: 2020 | R10: 10 | U10: B2 | V10: =IF(M$2021=1,"",IF(U10="","",VLOOKUP(U10,Tabelle!$D$5:$H$7,5,FALSE))) -> 00002 | W10: =IF(M$2021=1,"",IF(U10="","",VLOOKUP(U10,Tabelle!$D$5:$I$7,6,FALSE))) -> 20000 | Y10: BBB | Z10: compila | AG10: Testo Libero riga 1 | AI10: =IF(B10="",0,IF(B10=B9,COUNTIF(B$9:B9,B10)+1,1)) -> 1 | AJ10: =IF(OR(D10="",M$2021=1),0,IF(AI10=10,1,0)) -> 0 | AK10: =IF(E10>0,IF(OR(MONTH(E10)<$J$2027,MONTH(E10)>$J$2028),AK$2015,0),0) -> 0
A11: 3 | B11: 2-2024 | C11: 2-2024-2 | D11: 2 | E11: 2024-01-01 | J11: Erario | K11: A111 | L11: 0002 | M11: Imm.li Variati | V11: =IF(M$2021=1,"",IF(U11="","",VLOOKUP(U11,Tabelle!$D$5:$H$7,5,FALSE))) ->  | W11: =IF(M$2021=1,"",IF(U11="","",VLOOKUP(U11,Tabelle!$D$5:$I$7,6,FALSE))) ->  | AG11: Testo Libero riga 2 | AI11: =IF(B11="",0,IF(B11=B10,COUNTIF(B$9:B10,B11)+1,1)) -> 2 | AJ11: 0 | AK11: 0
A12: 4 | B12: 2-2024 | C12: 2-2024-3 | D12: 2 | E12: 2024-01-01 | J12: Ente Locale | K12: B222 | L12: 0003 | M12: Acconto | V12: =IF(M$2021=1,"",IF(U12="","",VLOOKUP(U12,Tabelle!$D$5:$H$7,5,FALSE))) ->  | W12: =IF(M$2021=1,"",IF(U12="","",VLOOKUP(U12,Tabelle!$D$5:$I$7,6,FALSE))) ->  | AG12: Righe di esempio | AI12: =IF(B12="",0,IF(B12=B11,COUNTIF(B$9:B11,B12)+1,1)) -> 3 | AJ12: 0 | AK12: 0
A13: 5 | B13: -1900 | C13: -1900-1 | V13: =IF(M$2021=1,"",IF(U13="","",VLOOKUP(U13,Tabelle!$D$5:$H$7,5,FALSE))) ->  | W13: =IF(M$2021=1,"",IF(U13="","",VLOOKUP(U13,Tabelle!$D$5:$I$7,6,FALSE))) ->  | AI13: =IF(B13="",0,IF(B13=B12,COUNTIF(B$9:B12,B13)+1,1)) -> 1 | AJ13: 0 | AK13: 0
A14: 6 | B14: -1900 | C14: -1900-2 | V14: =IF(M$2021=1,"",IF(U14="","",VLOOKUP(U14,Tabelle!$D$5:$H$7,5,FALSE))) ->  | W14: =IF(M$2021=1,"",IF(U14="","",VLOOKUP(U14,Tabelle!$D$5:$I$7,6,FALSE))) ->  | AI14: =IF(B14="",0,IF(B14=B13,COUNTIF(B$9:B13,B14)+1,1)) -> 2 | AJ14: 0 | AK14: 0
A15: 7 | B15: -1900 | C15: -1900-3 | V15: =IF(M$2021=1,"",IF(U15="","",VLOOKUP(U15,Tabelle!$D$5:$H$7,5,FALSE))) ->  | W15: =IF(M$2021=1,"",IF(U15="","",VLOOKUP(U15,Tabelle!$D$5:$I$7,6,FALSE))) ->  | AI15: =IF(B15="",0,IF(B15=B14,COUNTIF(B$9:B14,B15)+1,1)) -> 3 | AJ15: 0 | AK15: 0
A16: 8 | B16: -1900 | C16: -1900-4 | V16: =IF(M$2021=1,"",IF(U16="","",VLOOKUP(U16,Tabelle!$D$5:$H$7,5,FALSE))) ->  | W16: =IF(M$2021=1,"",IF(U16="","",VLOOKUP(U16,Tabelle!$D$5:$I$7,6,FALSE))) ->  | AI16: =IF(B16="",0,IF(B16=B15,COUNTIF(B$9:B15,B16)+1,1)) -> 4 | AJ16: 0 | AK16: 0
A17: 9 | B17: -1900 | C17: -1900-5 | V17: =IF(M$2021=1,"",IF(U17="","",VLOOKUP(U17,Tabelle!$D$5:$H$7,5,FALSE))) ->  | W17: =IF(M$2021=1,"",IF(U17="","",VLOOKUP(U17,Tabelle!$D$5:$I$7,6,FALSE))) ->  | AI17: =IF(B17="",0,IF(B17=B16,COUNTIF(B$9:B16,B17)+1,1)) -> 5 | AJ17: 0 | AK17: 0
A18: 10 | B18: -1900 | C18: -1900-6 | V18: =IF(M$2021=1,"",IF(U18="","",VLOOKUP(U18,Tabelle!$D$5:$H$7,5,FALSE))) ->  | W18: =IF(M$2021=1,"",IF(U18="","",VLOOKUP(U18,Tabelle!$D$5:$I$7,6,FALSE))) ->  | AI18: =IF(B18="",0,IF(B18=B17,COUNTIF(B$9:B17,B18)+1,1)) -> 6 | AJ18: 0 | AK18: 0
A19: 11 | B19: -1900 | C19: -1900-7 | V19: =IF(M$2021=1,"",IF(U19="","",VLOOKUP(U19,Tabelle!$D$5:$H$7,5,FALSE))) ->  | W19: =IF(M$2021=1,"",IF(U19="","",VLOOKUP(U19,Tabelle!$D$5:$I$7,6,FALSE))) ->  | AI19: =IF(B19="",0,IF(B19=B18,COUNTIF(B$9:B18,B19)+1,1)) -> 7 | AJ19: 0 | AK19: 0
A20: 12 | B20: -1900 | C20: -1900-8 | V20: =IF(M$2021=1,"",IF(U20="","",VLOOKUP(U20,Tabelle!$D$5:$H$7,5,FALSE))) ->  | W20: =IF(M$2021=1,"",IF(U20="","",VLOOKUP(U20,Tabelle!$D$5:$I$7,6,FALSE))) ->  | AI20: =IF(B20="",0,IF(B20=B19,COUNTIF(B$9:B19,B20)+1,1)) -> 8 | AJ20: 0 | AK20: 0
A21: 13 | B21: -1900 | C21: -1900-9 | V21: =IF(M$2021=1,"",IF(U21="","",VLOOKUP(U21,Tabelle!$D$5:$H$7,5,FALSE))) ->  | W21: =IF(M$2021=1,"",IF(U21="","",VLOOKUP(U21,Tabelle!$D$5:$I$7,6,FALSE))) ->  | AI21: =IF(B21="",0,IF(B21=B20,COUNTIF(B$9:B20,B21)+1,1)) -> 9 | AJ21: 0 | AK21: 0
A22: 14 | B22: -1900 | C22: -1900-10 | V22: =IF(M$2021=1,"",IF(U22="","",VLOOKUP(U22,Tabelle!$D$5:$H$7,5,FALSE))) ->  | W22: =IF(M$2021=1,"",IF(U22="","",VLOOKUP(U22,Tabelle!$D$5:$I$7,6,FALSE))) ->  | AI22: =IF(B22="",0,IF(B22=B21,COUNTIF(B$9:B21,B22)+1,1)) -> 10 | AJ22: 0 | AK22: 0
A23: 15 | B23: -1900 | C23: -1900-11 | V23: =IF(M$2021=1,"",IF(U23="","",VLOOKUP(U23,Tabelle!$D$5:$H$7,5,FALSE))) ->  | W23: =IF(M$2021=1,"",IF(U23="","",VLOOKUP(U23,Tabelle!$D$5:$I$7,6,FALSE))) ->  | AI23: =IF(B23="",0,IF(B23=B22,COUNTIF(B$9:B22,B23)+1,1)) -> 11 | AJ23: 0 | AK23: 0
A24: 16 | B24: -1900 | C24: -1900-12 | V24: =IF(M$2021=1,"",IF(U24="","",VLOOKUP(U24,Tabelle!$D$5:$H$7,5,FALSE))) ->  | W24: =IF(M$2021=1,"",IF(U24="","",VLOOKUP(U24,Tabelle!$D$5:$I$7,6,FALSE))) ->  | AI24: =IF(B24="",0,IF(B24=B23,COUNTIF(B$9:B23,B24)+1,1)) -> 12 | AJ24: 0 | AK24: 0
A25: 17 | B25: -1900 | C25: -1900-13 | V25: =IF(M$2021=1,"",IF(U25="","",VLOOKUP(U25,Tabelle!$D$5:$H$7,5,FALSE))) ->  | W25: =IF(M$2021=1,"",IF(U25="","",VLOOKUP(U25,Tabelle!$D$5:$I$7,6,FALSE))) ->  | AI25: =IF(B25="",0,IF(B25=B24,COUNTIF(B$9:B24,B25)+1,1)) -> 13 | AJ25: 0 | AK25: 0
A26: 18 | B26: -1900 | C26: -1900-14 | V26: =IF(M$2021=1,"",IF(U26="","",VLOOKUP(U26,Tabelle!$D$5:$H$7,5,FALSE))) ->  | W26: =IF(M$2021=1,"",IF(U26="","",VLOOKUP(U26,Tabelle!$D$5:$I$7,6,FALSE))) ->  | AI26: =IF(B26="",0,IF(B26=B25,COUNTIF(B$9:B25,B26)+1,1)) -> 14 | AJ26: 0 | AK26: 0
A27: 19 | B27: -1900 | C27: -1900-15 | V27: =IF(M$2021=1,"",IF(U27="","",VLOOKUP(U27,Tabelle!$D$5:$H$7,5,FALSE))) ->  | W27: =IF(M$2021=1,"",IF(U27="","",VLOOKUP(U27,Tabelle!$D$5:$I$7,6,FALSE))) ->  | AI27: =IF(B27="",0,IF(B27=B26,COUNTIF(B$9:B26,B27)+1,1)) -> 15 | AJ27: 0 | AK27: 0
A28: 20 | B28: -1900 | C28: -1900-16 | V28: =IF(M$2021=1,"",IF(U28="","",VLOOKUP(U28,Tabelle!$D$5:$H$7,5,FALSE))) ->  | W28: =IF(M$2021=1,"",IF(U28="","",VLOOKUP(U28,Tabelle!$D$5:$I$7,6,FALSE))) ->  | AI28: =IF(B28="",0,IF(B28=B27,COUNTIF(B$9:B27,B28)+1,1)) -> 16 | AJ28: 0 | AK28: 0
A29: 21 | B29: -1900 | C29: -1900-17 | V29: =IF(M$2021=1,"",IF(U29="","",VLOOKUP(U29,Tabelle!$D$5:$H$7,5,FALSE))) ->  | W29: =IF(M$2021=1,"",IF(U29="","",VLOOKUP(U29,Tabelle!$D$5:$I$7,6,FALSE))) ->  | AI29: =IF(B29="",0,IF(B29=B28,COUNTIF(B$9:B28,B29)+1,1)) -> 17 | AJ29: 0 | AK29: 0
A30: 22 | B30: -1900 | C30: -1900-18 | V30: =IF(M$2021=1,"",IF(U30="","",VLOOKUP(U30,Tabelle!$D$5:$H$7,5,FALSE))) ->  | W30: =IF(M$2021=1,"",IF(U30="","",VLOOKUP(U30,Tabelle!$D$5:$I$7,6,FALSE))) ->  | AI30: =IF(B30="",0,IF(B30=B29,COUNTIF(B$9:B29,B30)+1,1)) -> 18 | AJ30: 0 | AK30: 0
A31: 23 | B31: -1900 | C31: -1900-19 | V31: =IF(M$2021=1,"",IF(U31="","",VLOOKUP(U31,Tabelle!$D$5:$H$7,5,FALSE))) ->  | W31: =IF(M$2021=1,"",IF(U31="","",VLOOKUP(U31,Tabelle!$D$5:$I$7,6,FALSE))) ->  | AI31: =IF(B31="",0,IF(B31=B30,COUNTIF(B$9:B30,B31)+1,1)) -> 19 | AJ31: 0 | AK31: 0
A32: 24 | B32: -1900 | C32: -1900-20 | V32: =IF(M$2021=1,"",IF(U32="","",VLOOKUP(U32,Tabelle!$D$5:$H$7,5,FALSE))) ->  | W32: =IF(M$2021=1,"",IF(U32="","",VLOOKUP(U32,Tabelle!$D$5:$I$7,6,FALSE))) ->  | AI32: =IF(B32="",0,IF(B32=B31,COUNTIF(B$9:B31,B32)+1,1)) -> 20 | AJ32: 0 | AK32: 0
A33: 25 | B33: -1900 | C33: -1900-21 | V33: =IF(M$2021=1,"",IF(U33="","",VLOOKUP(U33,Tabelle!$D$5:$H$7,5,FALSE))) ->  | W33: =IF(M$2021=1,"",IF(U33="","",VLOOKUP(U33,Tabelle!$D$5:$I$7,6,FALSE))) ->  | AI33: =IF(B33="",0,IF(B33=B32,COUNTIF(B$9:B32,B33)+1,1)) -> 21 | AJ33: 0 | AK33: 0
A34: 26 | B34: -1900 | C34: -1900-22 | V34: =IF(M$2021=1,"",IF(U34="","",VLOOKUP(U34,Tabelle!$D$5:$H$7,5,FALSE))) ->  | W34: =IF(M$2021=1,"",IF(U34="","",VLOOKUP(U34,Tabelle!$D$5:$I$7,6,FALSE))) ->  | AI34: =IF(B34="",0,IF(B34=B33,COUNTIF(B$9:B33,B34)+1,1)) -> 22 | AJ34: 0 | AK34: 0
A35: 27 | B35: -1900 | C35: -1900-23 | V35: =IF(M$2021=1,"",IF(U35="","",VLOOKUP(U35,Tabelle!$D$5:$H$7,5,FALSE))) ->  | W35: =IF(M$2021=1,"",IF(U35="","",VLOOKUP(U35,Tabelle!$D$5:$I$7,6,FALSE))) ->  | AI35: =IF(B35="",0,IF(B35=B34,COUNTIF(B$9:B34,B35)+1,1)) -> 23 | AJ35: 0 | AK35: 0
A36: 28 | B36: -1900 | C36: -1900-24 | V36: =IF(M$2021=1,"",IF(U36="","",VLOOKUP(U36,Tabelle!$D$5:$H$7,5,FALSE))) ->  | W36: =IF(M$2021=1,"",IF(U36="","",VLOOKUP(U36,Tabelle!$D$5:$I$7,6,FALSE))) ->  | AI36: =IF(B36="",0,IF(B36=B35,COUNTIF(B$9:B35,B36)+1,1)) -> 24 | AJ36: 0 | AK36: 0
A37: 29 | B37: -1900 | C37: -1900-25 | V37: =IF(M$2021=1,"",IF(U37="","",VLOOKUP(U37,Tabelle!$D$5:$H$7,5,FALSE))) ->  | W37: =IF(M$2021=1,"",IF(U37="","",VLOOKUP(U37,Tabelle!$D$5:$I$7,6,FALSE))) ->  | AI37: =IF(B37="",0,IF(B37=B36,COUNTIF(B$9:B36,B37)+1,1)) -> 25 | AJ37: 0 | AK37: 0
A38: 30 | B38: -1900 | C38: -1900-26 | V38: =IF(M$2021=1,"",IF(U38="","",VLOOKUP(U38,Tabelle!$D$5:$H$7,5,FALSE))) ->  | W38: =IF(M$2021=1,"",IF(U38="","",VLOOKUP(U38,Tabelle!$D$5:$I$7,6,FALSE))) ->  | AI38: =IF(B38="",0,IF(B38=B37,COUNTIF(B$9:B37,B38)+1,1)) -> 26 | AJ38: 0 | AK38: 0
A39: 31 | B39: -1900 | C39: -1900-27 | V39: =IF(M$2021=1,"",IF(U39="","",VLOOKUP(U39,Tabelle!$D$5:$H$7,5,FALSE))) ->  | W39: =IF(M$2021=1,"",IF(U39="","",VLOOKUP(U39,Tabelle!$D$5:$I$7,6,FALSE))) ->  | AI39: =IF(B39="",0,IF(B39=B38,COUNTIF(B$9:B38,B39)+1,1)) -> 27 | AJ39: 0 | AK39: 0
A40: 32 | B40: -1900 | C40: -1900-28 | V40: =IF(M$2021=1,"",IF(U40="","",VLOOKUP(U40,Tabelle!$D$5:$H$7,5,FALSE))) ->  | W40: =IF(M$2021=1,"",IF(U40="","",VLOOKUP(U40,Tabelle!$D$5:$I$7,6,FALSE))) ->  | AI40: =IF(B40="",0,IF(B40=B39,COUNTIF(B$9:B39,B40)+1,1)) -> 28 | AJ40: 0 | AK40: 0
A41: 33 | B41: -1900 | C41: -1900-29 | V41: =IF(M$2021=1,"",IF(U41="","",VLOOKUP(U41,Tabelle!$D$5:$H$7,5,FALSE))) ->  | W41: =IF(M$2021=1,"",IF(U41="","",VLOOKUP(U41,Tabelle!$D$5:$I$7,6,FALSE))) ->  | AI41: =IF(B41="",0,IF(B41=B40,COUNTIF(B$9:B40,B41)+1,1)) -> 29 | AJ41: 0 | AK41: 0
A42: 34 | B42: -1900 | C42: -1900-30 | V42: =IF(M$2021=1,"",IF(U42="","",VLOOKUP(U42,Tabelle!$D$5:$H$7,5,FALSE))) ->  | W42: =IF(M$2021=1,"",IF(U42="","",VLOOKUP(U42,Tabelle!$D$5:$I$7,6,FALSE))) ->  | AI42: =IF(B42="",0,IF(B42=B41,COUNTIF(B$9:B41,B42)+1,1)) -> 30 | AJ42: 0 | AK42: 0
A43: 35 | B43: -1900 | C43: -1900-31 | V43: =IF(M$2021=1,"",IF(U43="","",VLOOKUP(U43,Tabelle!$D$5:$H$7,5,FALSE))) ->  | W43: =IF(M$2021=1,"",IF(U43="","",VLOOKUP(U43,Tabelle!$D$5:$I$7,6,FALSE))) ->  | AI43: =IF(B43="",0,IF(B43=B42,COUNTIF(B$9:B42,B43)+1,1)) -> 31 | AJ43: 0 | AK43: 0
A44: 36 | B44: -1900 | C44: -1900-32 | V44: =IF(M$2021=1,"",IF(U44="","",VLOOKUP(U44,Tabelle!$D$5:$H$7,5,FALSE))) ->  | W44: =IF(M$2021=1,"",IF(U44="","",VLOOKUP(U44,Tabelle!$D$5:$I$7,6,FALSE))) ->  | AI44: =IF(B44="",0,IF(B44=B43,COUNTIF(B$9:B43,B44)+1,1)) -> 32 | AJ44: 0 | AK44: 0
A45: 37 | B45: -1900 | C45: -1900-33 | V45: =IF(M$2021=1,"",IF(U45="","",VLOOKUP(U45,Tabelle!$D$5:$H$7,5,FALSE))) ->  | W45: =IF(M$2021=1,"",IF(U45="","",VLOOKUP(U45,Tabelle!$D$5:$I$7,6,FALSE))) ->  | AI45: =IF(B45="",0,IF(B45=B44,COUNTIF(B$9:B44,B45)+1,1)) -> 33 | AJ45: 0 | AK45: 0
A46: 38 | B46: -1900 | C46: -1900-34 | V46: =IF(M$2021=1,"",IF(U46="","",VLOOKUP(U46,Tabelle!$D$5:$H$7,5,FALSE))) ->  | W46: =IF(M$2021=1,"",IF(U46="","",VLOOKUP(U46,Tabelle!$D$5:$I$7,6,FALSE))) ->  | AI46: =IF(B46="",0,IF(B46=B45,COUNTIF(B$9:B45,B46)+1,1)) -> 34 | AJ46: 0 | AK46: 0
A47: 39 | B47: -1900 | C47: -1900-35 | V47: =IF(M$2021=1,"",IF(U47="","",VLOOKUP(U47,Tabelle!$D$5:$H$7,5,FALSE))) ->  | W47: =IF(M$2021=1,"",IF(U47="","",VLOOKUP(U47,Tabelle!$D$5:$I$7,6,FALSE))) ->  | AI47: =IF(B47="",0,IF(B47=B46,COUNTIF(B$9:B46,B47)+1,1)) -> 35 | AJ47: 0 | AK47: 0
A48: 40 | B48: -1900 | C48: -1900-36 | V48: =IF(M$2021=1,"",IF(U48="","",VLOOKUP(U48,Tabelle!$D$5:$H$7,5,FALSE))) ->  | W48: =IF(M$2021=1,"",IF(U48="","",VLOOKUP(U48,Tabelle!$D$5:$I$7,6,FALSE))) ->  | AI48: =IF(B48="",0,IF(B48=B47,COUNTIF(B$9:B47,B48)+1,1)) -> 36 | AJ48: 0 | AK48: 0
A49: 41 | B49: -1900 | C49: -1900-37 | V49: =IF(M$2021=1,"",IF(U49="","",VLOOKUP(U49,Tabelle!$D$5:$H$7,5,FALSE))) ->  | W49: =IF(M$2021=1,"",IF(U49="","",VLOOKUP(U49,Tabelle!$D$5:$I$7,6,FALSE))) ->  | AI49: =IF(B49="",0,IF(B49=B48,COUNTIF(B$9:B48,B49)+1,1)) -> 37 | AJ49: 0 | AK49: 0
A50: 42 | B50: -1900 | C50: -1900-38 | V50: =IF(M$2021=1,"",IF(U50="","",VLOOKUP(U50,Tabelle!$D$5:$H$7,5,FALSE))) ->  | W50: =IF(M$2021=1,"",IF(U50="","",VLOOKUP(U50,Tabelle!$D$5:$I$7,6,FALSE))) ->  | AI50: =IF(B50="",0,IF(B50=B49,COUNTIF(B$9:B49,B50)+1,1)) -> 38 | AJ50: 0 | AK50: 0
A51: 43 | B51: -1900 | C51: -1900-39 | V51: =IF(M$2021=1,"",IF(U51="","",VLOOKUP(U51,Tabelle!$D$5:$H$7,5,FALSE))) ->  | W51: =IF(M$2021=1,"",IF(U51="","",VLOOKUP(U51,Tabelle!$D$5:$I$7,6,FALSE))) ->  | AI51: =IF(B51="",0,IF(B51=B50,COUNTIF(B$9:B50,B51)+1,1)) -> 39 | AJ51: 0 | AK51: 0
A52: 44 | B52: -1900 | C52: -1900-40 | V52: =IF(M$2021=1,"",IF(U52="","",VLOOKUP(U52,Tabelle!$D$5:$H$7,5,FALSE))) ->  | W52: =IF(M$2021=1,"",IF(U52="","",VLOOKUP(U52,Tabelle!$D$5:$I$7,6,FALSE))) ->  | AI52: =IF(B52="",0,IF(B52=B51,COUNTIF(B$9:B51,B52)+1,1)) -> 40 | AJ52: 0 | AK52: 0
A53: 45 | B53: -1900 | C53: -1900-41 | V53: =IF(M$2021=1,"",IF(U53="","",VLOOKUP(U53,Tabelle!$D$5:$H$7,5,FALSE))) ->  | W53: =IF(M$2021=1,"",IF(U53="","",VLOOKUP(U53,Tabelle!$D$5:$I$7,6,FALSE))) ->  | AI53: =IF(B53="",0,IF(B53=B52,COUNTIF(B$9:B52,B53)+1,1)) -> 41 | AJ53: 0 | AK53: 0
A54: 46 | B54: -1900 | C54: -1900-42 | V54: =IF(M$2021=1,"",IF(U54="","",VLOOKUP(U54,Tabelle!$D$5:$H$7,5,FALSE))) ->  | W54: =IF(M$2021=1,"",IF(U54="","",VLOOKUP(U54,Tabelle!$D$5:$I$7,6,FALSE))) ->  | AI54: =IF(B54="",0,IF(B54=B53,COUNTIF(B$9:B53,B54)+1,1)) -> 42 | AJ54: 0 | AK54: 0
A55: 47 | B55: -1900 | C55: -1900-43 | V55: =IF(M$2021=1,"",IF(U55="","",VLOOKUP(U55,Tabelle!$D$5:$H$7,5,FALSE))) ->  | W55: =IF(M$2021=1,"",IF(U55="","",VLOOKUP(U55,Tabelle!$D$5:$I$7,6,FALSE))) ->  | AI55: =IF(B55="",0,IF(B55=B54,COUNTIF(B$9:B54,B55)+1,1)) -> 43 | AJ55: 0 | AK55: 0
A56: 48 | B56: -1900 | C56: -1900-44 | V56: =IF(M$2021=1,"",IF(U56="","",VLOOKUP(U56,Tabelle!$D$5:$H$7,5,FALSE))) ->  | W56: =IF(M$2021=1,"",IF(U56="","",VLOOKUP(U56,Tabelle!$D$5:$I$7,6,FALSE))) ->  | AI56: =IF(B56="",0,IF(B56=B55,COUNTIF(B$9:B55,B56)+1,1)) -> 44 | AJ56: 0 | AK56: 0
A57: 49 | B57: -1900 | C57: -1900-45 | V57: =IF(M$2021=1,"",IF(U57="","",VLOOKUP(U57,Tabelle!$D$5:$H$7,5,FALSE))) ->  | W57: =IF(M$2021=1,"",IF(U57="","",VLOOKUP(U57,Tabelle!$D$5:$I$7,6,FALSE))) ->  | AI57: =IF(B57="",0,IF(B57=B56,COUNTIF(B$9:B56,B57)+1,1)) -> 45 | AJ57: 0 | AK57: 0
A58: 50 | B58: -1900 | C58: -1900-46 | V58: =IF(M$2021=1,"",IF(U58="","",VLOOKUP(U58,Tabelle!$D$5:$H$7,5,FALSE))) ->  | W58: =IF(M$2021=1,"",IF(U58="","",VLOOKUP(U58,Tabelle!$D$5:$I$7,6,FALSE))) ->  | AI58: =IF(B58="",0,IF(B58=B57,COUNTIF(B$9:B57,B58)+1,1)) -> 46 | AJ58: 0 | AK58: 0
A59: 51 | B59: -1900 | C59: -1900-47 | V59: =IF(M$2021=1,"",IF(U59="","",VLOOKUP(U59,Tabelle!$D$5:$H$7,5,FALSE))) ->  | W59: =IF(M$2021=1,"",IF(U59="","",VLOOKUP(U59,Tabelle!$D$5:$I$7,6,FALSE))) ->  | AI59: =IF(B59="",0,IF(B59=B58,COUNTIF(B$9:B58,B59)+1,1)) -> 47 | AJ59: 0 | AK59: 0
A60: 52 | B60: -1900 | C60: -1900-48 | V60: =IF(M$2021=1,"",IF(U60="","",VLOOKUP(U60,Tabelle!$D$5:$H$7,5,FALSE))) ->  | W60: =IF(M$2021=1,"",IF(U60="","",VLOOKUP(U60,Tabelle!$D$5:$I$7,6,FALSE))) ->  | AI60: =IF(B60="",0,IF(B60=B59,COUNTIF(B$9:B59,B60)+1,1)) -> 48 | AJ60: 0 | AK60: 0
A61: 53 | B61: -1900 | C61: -1900-49 | V61: =IF(M$2021=1,"",IF(U61="","",VLOOKUP(U61,Tabelle!$D$5:$H$7,5,FALSE))) ->  | W61: =IF(M$2021=1,"",IF(U61="","",VLOOKUP(U61,Tabelle!$D$5:$I$7,6,FALSE))) ->  | AI61: =IF(B61="",0,IF(B61=B60,COUNTIF(B$9:B60,B61)+1,1)) -> 49 | AJ61: 0 | AK61: 0
A62: 54 | B62: -1900 | C62: -1900-50 | V62: =IF(M$2021=1,"",IF(U62="","",VLOOKUP(U62,Tabelle!$D$5:$H$7,5,FALSE))) ->  | W62: =IF(M$2021=1,"",IF(U62="","",VLOOKUP(U62,Tabelle!$D$5:$I$7,6,FALSE))) ->  | AI62: =IF(B62="",0,IF(B62=B61,COUNTIF(B$9:B61,B62)+1,1)) -> 50 | AJ62: 0 | AK62: 0
A63: 55 | B63: -1900 | C63: -1900-51 | V63: =IF(M$2021=1,"",IF(U63="","",VLOOKUP(U63,Tabelle!$D$5:$H$7,5,FALSE))) ->  | W63: =IF(M$2021=1,"",IF(U63="","",VLOOKUP(U63,Tabelle!$D$5:$I$7,6,FALSE))) ->  | AI63: =IF(B63="",0,IF(B63=B62,COUNTIF(B$9:B62,B63)+1,1)) -> 51 | AJ63: 0 | AK63: 0
A64: 56 | B64: -1900 | C64: -1900-52 | V64: =IF(M$2021=1,"",IF(U64="","",VLOOKUP(U64,Tabelle!$D$5:$H$7,5,FALSE))) ->  | W64: =IF(M$2021=1,"",IF(U64="","",VLOOKUP(U64,Tabelle!$D$5:$I$7,6,FALSE))) ->  | AI64: =IF(B64="",0,IF(B64=B63,COUNTIF(B$9:B63,B64)+1,1)) -> 52 | AJ64: 0 | AK64: 0
A65: 57 | B65: -1900 | C65: -1900-53 | V65: =IF(M$2021=1,"",IF(U65="","",VLOOKUP(U65,Tabelle!$D$5:$H$7,5,FALSE))) ->  | W65: =IF(M$2021=1,"",IF(U65="","",VLOOKUP(U65,Tabelle!$D$5:$I$7,6,FALSE))) ->  | AI65: =IF(B65="",0,IF(B65=B64,COUNTIF(B$9:B64,B65)+1,1)) -> 53 | AJ65: 0 | AK65: 0
A66: 58 | B66: -1900 | C66: -1900-54 | V66: =IF(M$2021=1,"",IF(U66="","",VLOOKUP(U66,Tabelle!$D$5:$H$7,5,FALSE))) ->  | W66: =IF(M$2021=1,"",IF(U66="","",VLOOKUP(U66,Tabelle!$D$5:$I$7,6,FALSE))) ->  | AI66: =IF(B66="",0,IF(B66=B65,COUNTIF(B$9:B65,B66)+1,1)) -> 54 | AJ66: 0 | AK66: 0
A67: 59 | B67: -1900 | C67: -1900-55 | V67: =IF(M$2021=1,"",IF(U67="","",VLOOKUP(U67,Tabelle!$D$5:$H$7,5,FALSE))) ->  | W67: =IF(M$2021=1,"",IF(U67="","",VLOOKUP(U67,Tabelle!$D$5:$I$7,6,FALSE))) ->  | AI67: =IF(B67="",0,IF(B67=B66,COUNTIF(B$9:B66,B67)+1,1)) -> 55 | AJ67: 0 | AK67: 0
A68: 60 | B68: -1900 | C68: -1900-56 | V68: =IF(M$2021=1,"",IF(U68="","",VLOOKUP(U68,Tabelle!$D$5:$H$7,5,FALSE))) ->  | W68: =IF(M$2021=1,"",IF(U68="","",VLOOKUP(U68,Tabelle!$D$5:$I$7,6,FALSE))) ->  | AI68: =IF(B68="",0,IF(B68=B67,COUNTIF(B$9:B67,B68)+1,1)) -> 56 | AJ68: 0 | AK68: 0
A69: 61 | B69: -1900 | C69: -1900-57 | V69: =IF(M$2021=1,"",IF(U69="","",VLOOKUP(U69,Tabelle!$D$5:$H$7,5,FALSE))) ->  | W69: =IF(M$2021=1,"",IF(U69="","",VLOOKUP(U69,Tabelle!$D$5:$I$7,6,FALSE))) ->  | AI69: =IF(B69="",0,IF(B69=B68,COUNTIF(B$9:B68,B69)+1,1)) -> 57 | AJ69: 0 | AK69: 0
A70: 62 | B70: -1900 | C70: -1900-58 | V70: =IF(M$2021=1,"",IF(U70="","",VLOOKUP(U70,Tabelle!$D$5:$H$7,5,FALSE))) ->  | W70: =IF(M$2021=1,"",IF(U70="","",VLOOKUP(U70,Tabelle!$D$5:$I$7,6,FALSE))) ->  | AI70: =IF(B70="",0,IF(B70=B69,COUNTIF(B$9:B69,B70)+1,1)) -> 58 | AJ70: 0 | AK70: 0
A71: 63 | B71: -1900 | C71: -1900-59 | V71: =IF(M$2021=1,"",IF(U71="","",VLOOKUP(U71,Tabelle!$D$5:$H$7,5,FALSE))) ->  | W71: =IF(M$2021=1,"",IF(U71="","",VLOOKUP(U71,Tabelle!$D$5:$I$7,6,FALSE))) ->  | AI71: =IF(B71="",0,IF(B71=B70,COUNTIF(B$9:B70,B71)+1,1)) -> 59 | AJ71: 0 | AK71: 0
A72: 64 | B72: -1900 | C72: -1900-60 | V72: =IF(M$2021=1,"",IF(U72="","",VLOOKUP(U72,Tabelle!$D$5:$H$7,5,FALSE))) ->  | W72: =IF(M$2021=1,"",IF(U72="","",VLOOKUP(U72,Tabelle!$D$5:$I$7,6,FALSE))) ->  | AI72: =IF(B72="",0,IF(B72=B71,COUNTIF(B$9:B71,B72)+1,1)) -> 60 | AJ72: 0 | AK72: 0
A73: 65 | B73: -1900 | C73: =IF(M$2021=1,0,B73&"-"&AI73) -> -1900-61 | V73: =IF(M$2021=1,"",IF(U73="","",VLOOKUP(U73,Tabelle!$D$5:$H$7,5,FALSE))) ->  | W73: =IF(M$2021=1,"",IF(U73="","",VLOOKUP(U73,Tabelle!$D$5:$I$7,6,FALSE))) ->  | AI73: =IF(B73="",0,IF(B73=B72,COUNTIF(B$9:B72,B73)+1,1)) -> 61 | AJ73: 0 | AK73: 0
A74: 66 | B74: =IF(AK74=$AK$2015,0,IF(M$2021=1,0,D74&"-"&YEAR(E74))) -> -1900 | C74: -1900-62 | V74: =IF(M$2021=1,"",IF(U74="","",VLOOKUP(U74,Tabelle!$D$5:$H$7,5,FALSE))) ->  | W74: =IF(M$2021=1,"",IF(U74="","",VLOOKUP(U74,Tabelle!$D$5:$I$7,6,FALSE))) ->  | AI74: =IF(B74="",0,IF(B74=B73,COUNTIF(B$9:B73,B74)+1,1)) -> 62 | AJ74: =IF(OR(D74="",M$2021=1),0,IF(AI74=10,1,0)) -> 0 | AK74: =IF(E74>0,IF(OR(MONTH(E74)<$J$2027,MONTH(E74)>$J$2028),AK$2015,0),0) -> 0
A75: 67 | B75: -1900 | C75: -1900-63 | V75: =IF(M$2021=1,"",IF(U75="","",VLOOKUP(U75,Tabelle!$D$5:$H$7,5,FALSE))) ->  | W75: =IF(M$2021=1,"",IF(U75="","",VLOOKUP(U75,Tabelle!$D$5:$I$7,6,FALSE))) ->  | AI75: =IF(B75="",0,IF(B75=B74,COUNTIF(B$9:B74,B75)+1,1)) -> 63 | AJ75: 0 | AK75: 0
A76: 68 | B76: -1900 | C76: -1900-64 | V76: =IF(M$2021=1,"",IF(U76="","",VLOOKUP(U76,Tabelle!$D$5:$H$7,5,FALSE))) ->  | W76: =IF(M$2021=1,"",IF(U76="","",VLOOKUP(U76,Tabelle!$D$5:$I$7,6,FALSE))) ->  | AI76: =IF(B76="",0,IF(B76=B75,COUNTIF(B$9:B75,B76)+1,1)) -> 64 | AJ76: 0 | AK76: 0
A77: 69 | B77: -1900 | C77: -1900-65 | V77: =IF(M$2021=1,"",IF(U77="","",VLOOKUP(U77,Tabelle!$D$5:$H$7,5,FALSE))) ->  | W77: =IF(M$2021=1,"",IF(U77="","",VLOOKUP(U77,Tabelle!$D$5:$I$7,6,FALSE))) ->  | AI77: =IF(B77="",0,IF(B77=B76,COUNTIF(B$9:B76,B77)+1,1)) -> 65 | AJ77: 0 | AK77: 0
A78: 70 | B78: -1900 | C78: -1900-66 | V78: =IF(M$2021=1,"",IF(U78="","",VLOOKUP(U78,Tabelle!$D$5:$H$7,5,FALSE))) ->  | W78: =IF(M$2021=1,"",IF(U78="","",VLOOKUP(U78,Tabelle!$D$5:$I$7,6,FALSE))) ->  | AI78: =IF(B78="",0,IF(B78=B77,COUNTIF(B$9:B77,B78)+1,1)) -> 66 | AJ78: 0 | AK78: 0
A79: 71 | B79: -1900 | C79: -1900-67 | V79: =IF(M$2021=1,"",IF(U79="","",VLOOKUP(U79,Tabelle!$D$5:$H$7,5,FALSE))) ->  | W79: =IF(M$2021=1,"",IF(U79="","",VLOOKUP(U79,Tabelle!$D$5:$I$7,6,FALSE))) ->  | AI79: =IF(B79="",0,IF(B79=B78,COUNTIF(B$9:B78,B79)+1,1)) -> 67 | AJ79: 0 | AK79: 0
A80: 72 | B80: -1900 | C80: -1900-68 | V80: =IF(M$2021=1,"",IF(U80="","",VLOOKUP(U80,Tabelle!$D$5:$H$7,5,FALSE))) ->  | W80: =IF(M$2021=1,"",IF(U80="","",VLOOKUP(U80,Tabelle!$D$5:$I$7,6,FALSE))) ->  | AI80: =IF(B80="",0,IF(B80=B79,COUNTIF(B$9:B79,B80)+1,1)) -> 68 | AJ80: 0 | AK80: 0
A81: 73 | B81: -1900 | C81: -1900-69 | V81: =IF(M$2021=1,"",IF(U81="","",VLOOKUP(U81,Tabelle!$D$5:$H$7,5,FALSE))) ->  | W81: =IF(M$2021=1,"",IF(U81="","",VLOOKUP(U81,Tabelle!$D$5:$I$7,6,FALSE))) ->  | AI81: =IF(B81="",0,IF(B81=B80,COUNTIF(B$9:B80,B81)+1,1)) -> 69 | AJ81: 0 | AK81: 0
A82: 74 | B82: -1900 | C82: -1900-70 | V82: =IF(M$2021=1,"",IF(U82="","",VLOOKUP(U82,Tabelle!$D$5:$H$7,5,FALSE))) ->  | W82: =IF(M$2021=1,"",IF(U82="","",VLOOKUP(U82,Tabelle!$D$5:$I$7,6,FALSE))) ->  | AI82: =IF(B82="",0,IF(B82=B81,COUNTIF(B$9:B81,B82)+1,1)) -> 70 | AJ82: 0 | AK82: 0
A83: 75 | B83: -1900 | C83: -1900-71 | V83: =IF(M$2021=1,"",IF(U83="","",VLOOKUP(U83,Tabelle!$D$5:$H$7,5,FALSE))) ->  | W83: =IF(M$2021=1,"",IF(U83="","",VLOOKUP(U83,Tabelle!$D$5:$I$7,6,FALSE))) ->  | AI83: =IF(B83="",0,IF(B83=B82,COUNTIF(B$9:B82,B83)+1,1)) -> 71 | AJ83: 0 | AK83: 0
A84: 76 | B84: -1900 | C84: -1900-72 | V84: =IF(M$2021=1,"",IF(U84="","",VLOOKUP(U84,Tabelle!$D$5:$H$7,5,FALSE))) ->  | W84: =IF(M$2021=1,"",IF(U84="","",VLOOKUP(U84,Tabelle!$D$5:$I$7,6,FALSE))) ->  | AI84: =IF(B84="",0,IF(B84=B83,COUNTIF(B$9:B83,B84)+1,1)) -> 72 | AJ84: 0 | AK84: 0
A85: 77 | B85: -1900 | C85: -1900-73 | V85: =IF(M$2021=1,"",IF(U85="","",VLOOKUP(U85,Tabelle!$D$5:$H$7,5,FALSE))) ->  | W85: =IF(M$2021=1,"",IF(U85="","",VLOOKUP(U85,Tabelle!$D$5:$I$7,6,FALSE))) ->  | AI85: =IF(B85="",0,IF(B85=B84,COUNTIF(B$9:B84,B85)+1,1)) -> 73 | AJ85: 0 | AK85: 0
A86: 78 | B86: -1900 | C86: -1900-74 | V86: =IF(M$2021=1,"",IF(U86="","",VLOOKUP(U86,Tabelle!$D$5:$H$7,5,FALSE))) ->  | W86: =IF(M$2021=1,"",IF(U86="","",VLOOKUP(U86,Tabelle!$D$5:$I$7,6,FALSE))) ->  | AI86: =IF(B86="",0,IF(B86=B85,COUNTIF(B$9:B85,B86)+1,1)) -> 74 | AJ86: 0 | AK86: 0
A87: 79 | B87: -1900 | C87: -1900-75 | V87: =IF(M$2021=1,"",IF(U87="","",VLOOKUP(U87,Tabelle!$D$5:$H$7,5,FALSE))) ->  | W87: =IF(M$2021=1,"",IF(U87="","",VLOOKUP(U87,Tabelle!$D$5:$I$7,6,FALSE))) ->  | AI87: =IF(B87="",0,IF(B87=B86,COUNTIF(B$9:B86,B87)+1,1)) -> 75 | AJ87: 0 | AK87: 0
A88: 80 | B88: -1900 | C88: -1900-76 | V88: =IF(M$2021=1,"",IF(U88="","",VLOOKUP(U88,Tabelle!$D$5:$H$7,5,FALSE))) ->  | W88: =IF(M$2021=1,"",IF(U88="","",VLOOKUP(U88,Tabelle!$D$5:$I$7,6,FALSE))) ->  | AI88: =IF(B88="",0,IF(B88=B87,COUNTIF(B$9:B87,B88)+1,1)) -> 76 | AJ88: 0 | AK88: 0
A89: 81 | B89: -1900 | C89: -1900-77 | V89: =IF(M$2021=1,"",IF(U89="","",VLOOKUP(U89,Tabelle!$D$5:$H$7,5,FALSE))) ->  | W89: =IF(M$2021=1,"",IF(U89="","",VLOOKUP(U89,Tabelle!$D$5:$I$7,6,FALSE))) ->  | AI89: =IF(B89="",0,IF(B89=B88,COUNTIF(B$9:B88,B89)+1,1)) -> 77 | AJ89: 0 | AK89: 0
A90: 82 | B90: -1900 | C90: -1900-78 | V90: =IF(M$2021=1,"",IF(U90="","",VLOOKUP(U90,Tabelle!$D$5:$H$7,5,FALSE))) ->  | W90: =IF(M$2021=1,"",IF(U90="","",VLOOKUP(U90,Tabelle!$D$5:$I$7,6,FALSE))) ->  | AI90: =IF(B90="",0,IF(B90=B89,COUNTIF(B$9:B89,B90)+1,1)) -> 78 | AJ90: 0 | AK90: 0
A91: 83 | B91: -1900 | C91: -1900-79 | V91: =IF(M$2021=1,"",IF(U91="","",VLOOKUP(U91,Tabelle!$D$5:$H$7,5,FALSE))) ->  | W91: =IF(M$2021=1,"",IF(U91="","",VLOOKUP(U91,Tabelle!$D$5:$I$7,6,FALSE))) ->  | AI91: =IF(B91="",0,IF(B91=B90,COUNTIF(B$9:B90,B91)+1,1)) -> 79 | AJ91: 0 | AK91: 0
A92: 84 | B92: -1900 | C92: -1900-80 | V92: =IF(M$2021=1,"",IF(U92="","",VLOOKUP(U92,Tabelle!$D$5:$H$7,5,FALSE))) ->  | W92: =IF(M$2021=1,"",IF(U92="","",VLOOKUP(U92,Tabelle!$D$5:$I$7,6,FALSE))) ->  | AI92: =IF(B92="",0,IF(B92=B91,COUNTIF(B$9:B91,B92)+1,1)) -> 80 | AJ92: 0 | AK92: 0
A93: 85 | B93: -1900 | C93: -1900-81 | V93: =IF(M$2021=1,"",IF(U93="","",VLOOKUP(U93,Tabelle!$D$5:$H$7,5,FALSE))) ->  | W93: =IF(M$2021=1,"",IF(U93="","",VLOOKUP(U93,Tabelle!$D$5:$I$7,6,FALSE))) ->  | AI93: =IF(B93="",0,IF(B93=B92,COUNTIF(B$9:B92,B93)+1,1)) -> 81 | AJ93: 0 | AK93: 0
A94: 86 | B94: -1900 | C94: -1900-82 | V94: =IF(M$2021=1,"",IF(U94="","",VLOOKUP(U94,Tabelle!$D$5:$H$7,5,FALSE))) ->  | W94: =IF(M$2021=1,"",IF(U94="","",VLOOKUP(U94,Tabelle!$D$5:$I$7,6,FALSE))) ->  | AI94: =IF(B94="",0,IF(B94=B93,COUNTIF(B$9:B93,B94)+1,1)) -> 82 | AJ94: 0 | AK94: 0
A95: 87 | B95: -1900 | C95: -1900-83 | V95: =IF(M$2021=1,"",IF(U95="","",VLOOKUP(U95,Tabelle!$D$5:$H$7,5,FALSE))) ->  | W95: =IF(M$2021=1,"",IF(U95="","",VLOOKUP(U95,Tabelle!$D$5:$I$7,6,FALSE))) ->  | AI95: =IF(B95="",0,IF(B95=B94,COUNTIF(B$9:B94,B95)+1,1)) -> 83 | AJ95: 0 | AK95: 0
A96: 88 | B96: -1900 | C96: -1900-84 | V96: =IF(M$2021=1,"",IF(U96="","",VLOOKUP(U96,Tabelle!$D$5:$H$7,5,FALSE))) ->  | W96: =IF(M$2021=1,"",IF(U96="","",VLOOKUP(U96,Tabelle!$D$5:$I$7,6,FALSE))) ->  | AI96: =IF(B96="",0,IF(B96=B95,COUNTIF(B$9:B95,B96)+1,1)) -> 84 | AJ96: 0 | AK96: 0
A97: 89 | B97: -1900 | C97: -1900-85 | V97: =IF(M$2021=1,"",IF(U97="","",VLOOKUP(U97,Tabelle!$D$5:$H$7,5,FALSE))) ->  | W97: =IF(M$2021=1,"",IF(U97="","",VLOOKUP(U97,Tabelle!$D$5:$I$7,6,FALSE))) ->  | AI97: =IF(B97="",0,IF(B97=B96,COUNTIF(B$9:B96,B97)+1,1)) -> 85 | AJ97: 0 | AK97: 0
A98: 90 | B98: -1900 | C98: -1900-86 | V98: =IF(M$2021=1,"",IF(U98="","",VLOOKUP(U98,Tabelle!$D$5:$H$7,5,FALSE))) ->  | W98: =IF(M$2021=1,"",IF(U98="","",VLOOKUP(U98,Tabelle!$D$5:$I$7,6,FALSE))) ->  | AI98: =IF(B98="",0,IF(B98=B97,COUNTIF(B$9:B97,B98)+1,1)) -> 86 | AJ98: 0 | AK98: 0
A99: 91 | B99: -1900 | C99: -1900-87 | V99: =IF(M$2021=1,"",IF(U99="","",VLOOKUP(U99,Tabelle!$D$5:$H$7,5,FALSE))) ->  | W99: =IF(M$2021=1,"",IF(U99="","",VLOOKUP(U99,Tabelle!$D$5:$I$7,6,FALSE))) ->  | AI99: =IF(B99="",0,IF(B99=B98,COUNTIF(B$9:B98,B99)+1,1)) -> 87 | AJ99: 0 | AK99: 0
A100: 92 | B100: -1900 | C100: -1900-88 | V100: =IF(M$2021=1,"",IF(U100="","",VLOOKUP(U100,Tabelle!$D$5:$H$7,5,FALSE))) ->  | W100: =IF(M$2021=1,"",IF(U100="","",VLOOKUP(U100,Tabelle!$D$5:$I$7,6,FALSE))) ->  | AI100: =IF(B100="",0,IF(B100=B99,COUNTIF(B$9:B99,B100)+1,1)) -> 88 | AJ100: 0 | AK100: 0
A101: 93 | B101: -1900 | C101: -1900-89 | V101: =IF(M$2021=1,"",IF(U101="","",VLOOKUP(U101,Tabelle!$D$5:$H$7,5,FALSE))) ->  | W101: =IF(M$2021=1,"",IF(U101="","",VLOOKUP(U101,Tabelle!$D$5:$I$7,6,FALSE))) ->  | AI101: =IF(B101="",0,IF(B101=B100,COUNTIF(B$9:B100,B101)+1,1)) -> 89 | AJ101: 0 | AK101: 0
A102: 94 | B102: -1900 | C102: -1900-90 | V102: =IF(M$2021=1,"",IF(U102="","",VLOOKUP(U102,Tabelle!$D$5:$H$7,5,FALSE))) ->  | W102: =IF(M$2021=1,"",IF(U102="","",VLOOKUP(U102,Tabelle!$D$5:$I$7,6,FALSE))) ->  | AI102: =IF(B102="",0,IF(B102=B101,COUNTIF(B$9:B101,B102)+1,1)) -> 90 | AJ102: 0 | AK102: 0
A103: 95 | B103: -1900 | C103: -1900-91 | V103: =IF(M$2021=1,"",IF(U103="","",VLOOKUP(U103,Tabelle!$D$5:$H$7,5,FALSE))) ->  | W103: =IF(M$2021=1,"",IF(U103="","",VLOOKUP(U103,Tabelle!$D$5:$I$7,6,FALSE))) ->  | AI103: =IF(B103="",0,IF(B103=B102,COUNTIF(B$9:B102,B103)+1,1)) -> 91 | AJ103: 0 | AK103: 0
A104: 96 | B104: -1900 | C104: -1900-92 | V104: =IF(M$2021=1,"",IF(U104="","",VLOOKUP(U104,Tabelle!$D$5:$H$7,5,FALSE))) ->  | W104: =IF(M$2021=1,"",IF(U104="","",VLOOKUP(U104,Tabelle!$D$5:$I$7,6,FALSE))) ->  | AI104: =IF(B104="",0,IF(B104=B103,COUNTIF(B$9:B103,B104)+1,1)) -> 92 | AJ104: 0 | AK104: 0
A105: 97 | B105: -1900 | C105: -1900-93 | V105: =IF(M$2021=1,"",IF(U105="","",VLOOKUP(U105,Tabelle!$D$5:$H$7,5,FALSE))) ->  | W105: =IF(M$2021=1,"",IF(U105="","",VLOOKUP(U105,Tabelle!$D$5:$I$7,6,FALSE))) ->  | AI105: =IF(B105="",0,IF(B105=B104,COUNTIF(B$9:B104,B105)+1,1)) -> 93 | AJ105: 0 | AK105: 0
A106: 98 | B106: -1900 | C106: -1900-94 | V106: =IF(M$2021=1,"",IF(U106="","",VLOOKUP(U106,Tabelle!$D$5:$H$7,5,FALSE))) ->  | W106: =IF(M$2021=1,"",IF(U106="","",VLOOKUP(U106,Tabelle!$D$5:$I$7,6,FALSE))) ->  | AI106: =IF(B106="",0,IF(B106=B105,COUNTIF(B$9:B105,B106)+1,1)) -> 94 | AJ106: 0 | AK106: 0
A107: 99 | B107: -1900 | C107: -1900-95 | V107: =IF(M$2021=1,"",IF(U107="","",VLOOKUP(U107,Tabelle!$D$5:$H$7,5,FALSE))) ->  | W107: =IF(M$2021=1,"",IF(U107="","",VLOOKUP(U107,Tabelle!$D$5:$I$7,6,FALSE))) ->  | AI107: =IF(B107="",0,IF(B107=B106,COUNTIF(B$9:B106,B107)+1,1)) -> 95 | AJ107: 0 | AK107: 0
A108: 100 | B108: -1900 | C108: -1900-96 | V108: =IF(M$2021=1,"",IF(U108="","",VLOOKUP(U108,Tabelle!$D$5:$H$7,5,FALSE))) ->  | W108: =IF(M$2021=1,"",IF(U108="","",VLOOKUP(U108,Tabelle!$D$5:$I$7,6,FALSE))) ->  | AI108: =IF(B108="",0,IF(B108=B107,COUNTIF(B$9:B107,B108)+1,1)) -> 96 | AJ108: 0 | AK108: 0
A109: 101 | B109: -1900 | C109: -1900-97 | V109: =IF(M$2021=1,"",IF(U109="","",VLOOKUP(U109,Tabelle!$D$5:$H$7,5,FALSE))) ->  | W109: =IF(M$2021=1,"",IF(U109="","",VLOOKUP(U109,Tabelle!$D$5:$I$7,6,FALSE))) ->  | AI109: =IF(B109="",0,IF(B109=B108,COUNTIF(B$9:B108,B109)+1,1)) -> 97 | AJ109: 0 | AK109: 0
A110: 102 | B110: -1900 | C110: -1900-98 | V110: =IF(M$2021=1,"",IF(U110="","",VLOOKUP(U110,Tabelle!$D$5:$H$7,5,FALSE))) ->  | W110: =IF(M$2021=1,"",IF(U110="","",VLOOKUP(U110,Tabelle!$D$5:$I$7,6,FALSE))) ->  | AI110: =IF(B110="",0,IF(B110=B109,COUNTIF(B$9:B109,B110)+1,1)) -> 98 | AJ110: 0 | AK110: 0
A111: 103 | B111: -1900 | C111: -1900-99 | V111: =IF(M$2021=1,"",IF(U111="","",VLOOKUP(U111,Tabelle!$D$5:$H$7,5,FALSE))) ->  | W111: =IF(M$2021=1,"",IF(U111="","",VLOOKUP(U111,Tabelle!$D$5:$I$7,6,FALSE))) ->  | AI111: =IF(B111="",0,IF(B111=B110,COUNTIF(B$9:B110,B111)+1,1)) -> 99 | AJ111: 0 | AK111: 0
A112: 104 | B112: -1900 | C112: -1900-100 | V112: =IF(M$2021=1,"",IF(U112="","",VLOOKUP(U112,Tabelle!$D$5:$H$7,5,FALSE))) ->  | W112: =IF(M$2021=1,"",IF(U112="","",VLOOKUP(U112,Tabelle!$D$5:$I$7,6,FALSE))) ->  | AI112: =IF(B112="",0,IF(B112=B111,COUNTIF(B$9:B111,B112)+1,1)) -> 100 | AJ112: 0 | AK112: 0
A113: 105 | B113: -1900 | C113: -1900-101 | V113: =IF(M$2021=1,"",IF(U113="","",VLOOKUP(U113,Tabelle!$D$5:$H$7,5,FALSE))) ->  | W113: =IF(M$2021=1,"",IF(U113="","",VLOOKUP(U113,Tabelle!$D$5:$I$7,6,FALSE))) ->  | AI113: =IF(B113="",0,IF(B113=B112,COUNTIF(B$9:B112,B113)+1,1)) -> 101 | AJ113: 0 | AK113: 0
A114: 106 | B114: -1900 | C114: -1900-102 | V114: =IF(M$2021=1,"",IF(U114="","",VLOOKUP(U114,Tabelle!$D$5:$H$7,5,FALSE))) ->  | W114: =IF(M$2021=1,"",IF(U114="","",VLOOKUP(U114,Tabelle!$D$5:$I$7,6,FALSE))) ->  | AI114: =IF(B114="",0,IF(B114=B113,COUNTIF(B$9:B113,B114)+1,1)) -> 102 | AJ114: 0 | AK114: 0
A115: 107 | B115: -1900 | C115: -1900-103 | V115: =IF(M$2021=1,"",IF(U115="","",VLOOKUP(U115,Tabelle!$D$5:$H$7,5,FALSE))) ->  | W115: =IF(M$2021=1,"",IF(U115="","",VLOOKUP(U115,Tabelle!$D$5:$I$7,6,FALSE))) ->  | AI115: =IF(B115="",0,IF(B115=B114,COUNTIF(B$9:B114,B115)+1,1)) -> 103 | AJ115: 0 | AK115: 0
A116: 108 | B116: -1900 | C116: -1900-104 | V116: =IF(M$2021=1,"",IF(U116="","",VLOOKUP(U116,Tabelle!$D$5:$H$7,5,FALSE))) ->  | W116: =IF(M$2021=1,"",IF(U116="","",VLOOKUP(U116,Tabelle!$D$5:$I$7,6,FALSE))) ->  | AI116: =IF(B116="",0,IF(B116=B115,COUNTIF(B$9:B115,B116)+1,1)) -> 104 | AJ116: 0 | AK116: 0
A117: 109 | B117: -1900 | C117: -1900-105 | V117: =IF(M$2021=1,"",IF(U117="","",VLOOKUP(U117,Tabelle!$D$5:$H$7,5,FALSE))) ->  | W117: =IF(M$2021=1,"",IF(U117="","",VLOOKUP(U117,Tabelle!$D$5:$I$7,6,FALSE))) ->  | AI117: =IF(B117="",0,IF(B117=B116,COUNTIF(B$9:B116,B117)+1,1)) -> 105 | AJ117: 0 | AK117: 0
A118: 110 | B118: -1900 | C118: -1900-106 | V118: =IF(M$2021=1,"",IF(U118="","",VLOOKUP(U118,Tabelle!$D$5:$H$7,5,FALSE))) ->  | W118: =IF(M$2021=1,"",IF(U118="","",VLOOKUP(U118,Tabelle!$D$5:$I$7,6,FALSE))) ->  | AI118: =IF(B118="",0,IF(B118=B117,COUNTIF(B$9:B117,B118)+1,1)) -> 106 | AJ118: 0 | AK118: 0
A119: 111 | B119: -1900 | C119: -1900-107 | V119: =IF(M$2021=1,"",IF(U119="","",VLOOKUP(U119,Tabelle!$D$5:$H$7,5,FALSE))) ->  | W119: =IF(M$2021=1,"",IF(U119="","",VLOOKUP(U119,Tabelle!$D$5:$I$7,6,FALSE))) ->  | AI119: =IF(B119="",0,IF(B119=B118,COUNTIF(B$9:B118,B119)+1,1)) -> 107 | AJ119: 0 | AK119: 0
A120: 112 | B120: -1900 | C120: -1900-108 | V120: =IF(M$2021=1,"",IF(U120="","",VLOOKUP(U120,Tabelle!$D$5:$H$7,5,FALSE))) ->  | W120: =IF(M$2021=1,"",IF(U120="","",VLOOKUP(U120,Tabelle!$D$5:$I$7,6,FALSE))) ->  | AI120: =IF(B120="",0,IF(B120=B119,COUNTIF(B$9:B119,B120)+1,1)) -> 108 | AJ120: 0 | AK120: 0
A121: 113 | B121: -1900 | C121: -1900-109 | V121: =IF(M$2021=1,"",IF(U121="","",VLOOKUP(U121,Tabelle!$D$5:$H$7,5,FALSE))) ->  | W121: =IF(M$2021=1,"",IF(U121="","",VLOOKUP(U121,Tabelle!$D$5:$I$7,6,FALSE))) ->  | AI121: =IF(B121="",0,IF(B121=B120,COUNTIF(B$9:B120,B121)+1,1)) -> 109 | AJ121: 0 | AK121: 0
A122: 114 | B122: -1900 | C122: -1900-110 | V122: =IF(M$2021=1,"",IF(U122="","",VLOOKUP(U122,Tabelle!$D$5:$H$7,5,FALSE))) ->  | W122: =IF(M$2021=1,"",IF(U122="","",VLOOKUP(U122,Tabelle!$D$5:$I$7,6,FALSE))) ->  | AI122: =IF(B122="",0,IF(B122=B121,COUNTIF(B$9:B121,B122)+1,1)) -> 110 | AJ122: 0 | AK122: 0
A123: 115 | B123: -1900 | C123: -1900-111 | V123: =IF(M$2021=1,"",IF(U123="","",VLOOKUP(U123,Tabelle!$D$5:$H$7,5,FALSE))) ->  | W123: =IF(M$2021=1,"",IF(U123="","",VLOOKUP(U123,Tabelle!$D$5:$I$7,6,FALSE))) ->  | AI123: =IF(B123="",0,IF(B123=B122,COUNTIF(B$9:B122,B123)+1,1)) -> 111 | AJ123: 0 | AK123: 0
A124: 116 | B124: -1900 | C124: -1900-112 | V124: =IF(M$2021=1,"",IF(U124="","",VLOOKUP(U124,Tabelle!$D$5:$H$7,5,FALSE))) ->  | W124: =IF(M$2021=1,"",IF(U124="","",VLOOKUP(U124,Tabelle!$D$5:$I$7,6,FALSE))) ->  | AI124: =IF(B124="",0,IF(B124=B123,COUNTIF(B$9:B123,B124)+1,1)) -> 112 | AJ124: 0 | AK124: 0
A125: 117 | B125: -1900 | C125: -1900-113 | V125: =IF(M$2021=1,"",IF(U125="","",VLOOKUP(U125,Tabelle!$D$5:$H$7,5,FALSE))) ->  | W125: =IF(M$2021=1,"",IF(U125="","",VLOOKUP(U125,Tabelle!$D$5:$I$7,6,FALSE))) ->  | AI125: =IF(B125="",0,IF(B125=B124,COUNTIF(B$9:B124,B125)+1,1)) -> 113 | AJ125: 0 | AK125: 0
A126: 118 | B126: -1900 | C126: -1900-114 | V126: =IF(M$2021=1,"",IF(U126="","",VLOOKUP(U126,Tabelle!$D$5:$H$7,5,FALSE))) ->  | W126: =IF(M$2021=1,"",IF(U126="","",VLOOKUP(U126,Tabelle!$D$5:$I$7,6,FALSE))) ->  | AI126: =IF(B126="",0,IF(B126=B125,COUNTIF(B$9:B125,B126)+1,1)) -> 114 | AJ126: 0 | AK126: 0
A127: 119 | B127: -1900 | C127: -1900-115 | V127: =IF(M$2021=1,"",IF(U127="","",VLOOKUP(U127,Tabelle!$D$5:$H$7,5,FALSE))) ->  | W127: =IF(M$2021=1,"",IF(U127="","",VLOOKUP(U127,Tabelle!$D$5:$I$7,6,FALSE))) ->  | AI127: =IF(B127="",0,IF(B127=B126,COUNTIF(B$9:B126,B127)+1,1)) -> 115 | AJ127: 0 | AK127: 0
A128: 120 | B128: -1900 | C128: -1900-116 | V128: =IF(M$2021=1,"",IF(U128="","",VLOOKUP(U128,Tabelle!$D$5:$H$7,5,FALSE))) ->  | W128: =IF(M$2021=1,"",IF(U128="","",VLOOKUP(U128,Tabelle!$D$5:$I$7,6,FALSE))) ->  | AI128: =IF(B128="",0,IF(B128=B127,COUNTIF(B$9:B127,B128)+1,1)) -> 116 | AJ128: 0 | AK128: 0
A129: 121 | B129: -1900 | C129: -1900-117 | V129: =IF(M$2021=1,"",IF(U129="","",VLOOKUP(U129,Tabelle!$D$5:$H$7,5,FALSE))) ->  | W129: =IF(M$2021=1,"",IF(U129="","",VLOOKUP(U129,Tabelle!$D$5:$I$7,6,FALSE))) ->  | AI129: =IF(B129="",0,IF(B129=B128,COUNTIF(B$9:B128,B129)+1,1)) -> 117 | AJ129: 0 | AK129: 0
A130: 122 | B130: -1900 | C130: -1900-118 | V130: =IF(M$2021=1,"",IF(U130="","",VLOOKUP(U130,Tabelle!$D$5:$H$7,5,FALSE))) ->  | W130: =IF(M$2021=1,"",IF(U130="","",VLOOKUP(U130,Tabelle!$D$5:$I$7,6,FALSE))) ->  | AI130: =IF(B130="",0,IF(B130=B129,COUNTIF(B$9:B129,B130)+1,1)) -> 118 | AJ130: 0 | AK130: 0
A131: 123 | B131: -1900 | C131: -1900-119 | V131: =IF(M$2021=1,"",IF(U131="","",VLOOKUP(U131,Tabelle!$D$5:$H$7,5,FALSE))) ->  | W131: =IF(M$2021=1,"",IF(U131="","",VLOOKUP(U131,Tabelle!$D$5:$I$7,6,FALSE))) ->  | AI131: =IF(B131="",0,IF(B131=B130,COUNTIF(B$9:B130,B131)+1,1)) -> 119 | AJ131: 0 | AK131: 0
A132: 124 | B132: -1900 | C132: -1900-120 | V132: =IF(M$2021=1,"",IF(U132="","",VLOOKUP(U132,Tabelle!$D$5:$H$7,5,FALSE))) ->  | W132: =IF(M$2021=1,"",IF(U132="","",VLOOKUP(U132,Tabelle!$D$5:$I$7,6,FALSE))) ->  | AI132: =IF(B132="",0,IF(B132=B131,COUNTIF(B$9:B131,B132)+1,1)) -> 120 | AJ132: 0 | AK132: 0
A133: 125 | B133: -1900 | C133: -1900-121 | V133: =IF(M$2021=1,"",IF(U133="","",VLOOKUP(U133,Tabelle!$D$5:$H$7,5,FALSE))) ->  | W133: =IF(M$2021=1,"",IF(U133="","",VLOOKUP(U133,Tabelle!$D$5:$I$7,6,FALSE))) ->  | AI133: =IF(B133="",0,IF(B133=B132,COUNTIF(B$9:B132,B133)+1,1)) -> 121 | AJ133: 0 | AK133: 0
A134: 126 | B134: -1900 | C134: -1900-122 | V134: =IF(M$2021=1,"",IF(U134="","",VLOOKUP(U134,Tabelle!$D$5:$H$7,5,FALSE))) ->  | W134: =IF(M$2021=1,"",IF(U134="","",VLOOKUP(U134,Tabelle!$D$5:$I$7,6,FALSE))) ->  | AI134: =IF(B134="",0,IF(B134=B133,COUNTIF(B$9:B133,B134)+1,1)) -> 122 | AJ134: 0 | AK134: 0
A135: 127 | B135: -1900 | C135: -1900-123 | V135: =IF(M$2021=1,"",IF(U135="","",VLOOKUP(U135,Tabelle!$D$5:$H$7,5,FALSE))) ->  | W135: =IF(M$2021=1,"",IF(U135="","",VLOOKUP(U135,Tabelle!$D$5:$I$7,6,FALSE))) ->  | AI135: =IF(B135="",0,IF(B135=B134,COUNTIF(B$9:B134,B135)+1,1)) -> 123 | AJ135: 0 | AK135: 0
A136: 128 | B136: -1900 | C136: -1900-124 | V136: =IF(M$2021=1,"",IF(U136="","",VLOOKUP(U136,Tabelle!$D$5:$H$7,5,FALSE))) ->  | W136: =IF(M$2021=1,"",IF(U136="","",VLOOKUP(U136,Tabelle!$D$5:$I$7,6,FALSE))) ->  | AI136: =IF(B136="",0,IF(B136=B135,COUNTIF(B$9:B135,B136)+1,1)) -> 124 | AJ136: 0 | AK136: 0
A137: 129 | B137: -1900 | C137: =IF(M$2021=1,0,B137&"-"&AI137) -> -1900-125 | V137: =IF(M$2021=1,"",IF(U137="","",VLOOKUP(U137,Tabelle!$D$5:$H$7,5,FALSE))) ->  | W137: =IF(M$2021=1,"",IF(U137="","",VLOOKUP(U137,Tabelle!$D$5:$I$7,6,FALSE))) ->  | AI137: =IF(B137="",0,IF(B137=B136,COUNTIF(B$9:B136,B137)+1,1)) -> 125 | AJ137: 0 | AK137: 0
A138: 130 | B138: =IF(AK138=$AK$2015,0,IF(M$2021=1,0,D138&"-"&YEAR(E138))) -> -1900 | C138: -1900-126 | V138: =IF(M$2021=1,"",IF(U138="","",VLOOKUP(U138,Tabelle!$D$5:$H$7,5,FALSE))) ->  | W138: =IF(M$2021=1,"",IF(U138="","",VLOOKUP(U138,Tabelle!$D$5:$I$7,6,FALSE))) ->  | AI138: =IF(B138="",0,IF(B138=B137,COUNTIF(B$9:B137,B138)+1,1)) -> 126 | AJ138: =IF(OR(D138="",M$2021=1),0,IF(AI138=10,1,0)) -> 0 | AK138: =IF(E138>0,IF(OR(MONTH(E138)<$J$2027,MONTH(E138)>$J$2028),AK$2015,0),0) -> 0
A139: 131 | B139: -1900 | C139: -1900-127 | V139: =IF(M$2021=1,"",IF(U139="","",VLOOKUP(U139,Tabelle!$D$5:$H$7,5,FALSE))) ->  | W139: =IF(M$2021=1,"",IF(U139="","",VLOOKUP(U139,Tabelle!$D$5:$I$7,6,FALSE))) ->  | AI139: =IF(B139="",0,IF(B139=B138,COUNTIF(B$9:B138,B139)+1,1)) -> 127 | AJ139: 0 | AK139: 0
A140: 132 | B140: -1900 | C140: -1900-128 | V140: =IF(M$2021=1,"",IF(U140="","",VLOOKUP(U140,Tabelle!$D$5:$H$7,5,FALSE))) ->  | W140: =IF(M$2021=1,"",IF(U140="","",VLOOKUP(U140,Tabelle!$D$5:$I$7,6,FALSE))) ->  | AI140: =IF(B140="",0,IF(B140=B139,COUNTIF(B$9:B139,B140)+1,1)) -> 128 | AJ140: 0 | AK140: 0
A141: 133 | B141: -1900 | C141: -1900-129 | V141: =IF(M$2021=1,"",IF(U141="","",VLOOKUP(U141,Tabelle!$D$5:$H$7,5,FALSE))) ->  | W141: =IF(M$2021=1,"",IF(U141="","",VLOOKUP(U141,Tabelle!$D$5:$I$7,6,FALSE))) ->  | AI141: =IF(B141="",0,IF(B141=B140,COUNTIF(B$9:B140,B141)+1,1)) -> 129 | AJ141: 0 | AK141: 0
A142: 134 | B142: -1900 | C142: -1900-130 | V142: =IF(M$2021=1,"",IF(U142="","",VLOOKUP(U142,Tabelle!$D$5:$H$7,5,FALSE))) ->  | W142: =IF(M$2021=1,"",IF(U142="","",VLOOKUP(U142,Tabelle!$D$5:$I$7,6,FALSE))) ->  | AI142: =IF(B142="",0,IF(B142=B141,COUNTIF(B$9:B141,B142)+1,1)) -> 130 | AJ142: 0 | AK142: 0
A143: 135 | B143: -1900 | C143: -1900-131 | V143: =IF(M$2021=1,"",IF(U143="","",VLOOKUP(U143,Tabelle!$D$5:$H$7,5,FALSE))) ->  | W143: =IF(M$2021=1,"",IF(U143="","",VLOOKUP(U143,Tabelle!$D$5:$I$7,6,FALSE))) ->  | AI143: =IF(B143="",0,IF(B143=B142,COUNTIF(B$9:B142,B143)+1,1)) -> 131 | AJ143: 0 | AK143: 0
A144: 136 | B144: -1900 | C144: -1900-132 | V144: =IF(M$2021=1,"",IF(U144="","",VLOOKUP(U144,Tabelle!$D$5:$H$7,5,FALSE))) ->  | W144: =IF(M$2021=1,"",IF(U144="","",VLOOKUP(U144,Tabelle!$D$5:$I$7,6,FALSE))) ->  | AI144: =IF(B144="",0,IF(B144=B143,COUNTIF(B$9:B143,B144)+1,1)) -> 132 | AJ144: 0 | AK144: 0
A145: 137 | B145: -1900 | C145: -1900-133 | V145: =IF(M$2021=1,"",IF(U145="","",VLOOKUP(U145,Tabelle!$D$5:$H$7,5,FALSE))) ->  | W145: =IF(M$2021=1,"",IF(U145="","",VLOOKUP(U145,Tabelle!$D$5:$I$7,6,FALSE))) ->  | AI145: =IF(B145="",0,IF(B145=B144,COUNTIF(B$9:B144,B145)+1,1)) -> 133 | AJ145: 0 | AK145: 0
A146: 138 | B146: -1900 | C146: -1900-134 | V146: =IF(M$2021=1,"",IF(U146="","",VLOOKUP(U146,Tabelle!$D$5:$H$7,5,FALSE))) ->  | W146: =IF(M$2021=1,"",IF(U146="","",VLOOKUP(U146,Tabelle!$D$5:$I$7,6,FALSE))) ->  | AI146: =IF(B146="",0,IF(B146=B145,COUNTIF(B$9:B145,B146)+1,1)) -> 134 | AJ146: 0 | AK146: 0
A147: 139 | B147: -1900 | C147: -1900-135 | V147: =IF(M$2021=1,"",IF(U147="","",VLOOKUP(U147,Tabelle!$D$5:$H$7,5,FALSE))) ->  | W147: =IF(M$2021=1,"",IF(U147="","",VLOOKUP(U147,Tabelle!$D$5:$I$7,6,FALSE))) ->  | AI147: =IF(B147="",0,IF(B147=B146,COUNTIF(B$9:B146,B147)+1,1)) -> 135 | AJ147: 0 | AK147: 0
A148: 140 | B148: -1900 | C148: -1900-136 | V148: =IF(M$2021=1,"",IF(U148="","",VLOOKUP(U148,Tabelle!$D$5:$H$7,5,FALSE))) ->  | W148: =IF(M$2021=1,"",IF(U148="","",VLOOKUP(U148,Tabelle!$D$5:$I$7,6,FALSE))) ->  | AI148: =IF(B148="",0,IF(B148=B147,COUNTIF(B$9:B147,B148)+1,1)) -> 136 | AJ148: 0 | AK148: 0
A149: 141 | B149: -1900 | C149: -1900-137 | V149: =IF(M$2021=1,"",IF(U149="","",VLOOKUP(U149,Tabelle!$D$5:$H$7,5,FALSE))) ->  | W149: =IF(M$2021=1,"",IF(U149="","",VLOOKUP(U149,Tabelle!$D$5:$I$7,6,FALSE))) ->  | AI149: =IF(B149="",0,IF(B149=B148,COUNTIF(B$9:B148,B149)+1,1)) -> 137 | AJ149: 0 | AK149: 0
A150: 142 | B150: -1900 | C150: -1900-138 | V150: =IF(M$2021=1,"",IF(U150="","",VLOOKUP(U150,Tabelle!$D$5:$H$7,5,FALSE))) ->  | W150: =IF(M$2021=1,"",IF(U150="","",VLOOKUP(U150,Tabelle!$D$5:$I$7,6,FALSE))) ->  | AI150: =IF(B150="",0,IF(B150=B149,COUNTIF(B$9:B149,B150)+1,1)) -> 138 | AJ150: 0 | AK150: 0
A151: 143 | B151: -1900 | C151: -1900-139 | V151: =IF(M$2021=1,"",IF(U151="","",VLOOKUP(U151,Tabelle!$D$5:$H$7,5,FALSE))) ->  | W151: =IF(M$2021=1,"",IF(U151="","",VLOOKUP(U151,Tabelle!$D$5:$I$7,6,FALSE))) ->  | AI151: =IF(B151="",0,IF(B151=B150,COUNTIF(B$9:B150,B151)+1,1)) -> 139 | AJ151: 0 | AK151: 0
A152: 144 | B152: -1900 | C152: -1900-140 | V152: =IF(M$2021=1,"",IF(U152="","",VLOOKUP(U152,Tabelle!$D$5:$H$7,5,FALSE))) ->  | W152: =IF(M$2021=1,"",IF(U152="","",VLOOKUP(U152,Tabelle!$D$5:$I$7,6,FALSE))) ->  | AI152: =IF(B152="",0,IF(B152=B151,COUNTIF(B$9:B151,B152)+1,1)) -> 140 | AJ152: 0 | AK152: 0
A153: 145 | B153: -1900 | C153: -1900-141 | V153: =IF(M$2021=1,"",IF(U153="","",VLOOKUP(U153,Tabelle!$D$5:$H$7,5,FALSE))) ->  | W153: =IF(M$2021=1,"",IF(U153="","",VLOOKUP(U153,Tabelle!$D$5:$I$7,6,FALSE))) ->  | AI153: =IF(B153="",0,IF(B153=B152,COUNTIF(B$9:B152,B153)+1,1)) -> 141 | AJ153: 0 | AK153: 0
A154: 146 | B154: -1900 | C154: -1900-142 | V154: =IF(M$2021=1,"",IF(U154="","",VLOOKUP(U154,Tabelle!$D$5:$H$7,5,FALSE))) ->  | W154: =IF(M$2021=1,"",IF(U154="","",VLOOKUP(U154,Tabelle!$D$5:$I$7,6,FALSE))) ->  | AI154: =IF(B154="",0,IF(B154=B153,COUNTIF(B$9:B153,B154)+1,1)) -> 142 | AJ154: 0 | AK154: 0
A155: 147 | B155: -1900 | C155: -1900-143 | V155: =IF(M$2021=1,"",IF(U155="","",VLOOKUP(U155,Tabelle!$D$5:$H$7,5,FALSE))) ->  | W155: =IF(M$2021=1,"",IF(U155="","",VLOOKUP(U155,Tabelle!$D$5:$I$7,6,FALSE))) ->  | AI155: =IF(B155="",0,IF(B155=B154,COUNTIF(B$9:B154,B155)+1,1)) -> 143 | AJ155: 0 | AK155: 0
A156: 148 | B156: -1900 | C156: -1900-144 | V156: =IF(M$2021=1,"",IF(U156="","",VLOOKUP(U156,Tabelle!$D$5:$H$7,5,FALSE))) ->  | W156: =IF(M$2021=1,"",IF(U156="","",VLOOKUP(U156,Tabelle!$D$5:$I$7,6,FALSE))) ->  | AI156: =IF(B156="",0,IF(B156=B155,COUNTIF(B$9:B155,B156)+1,1)) -> 144 | AJ156: 0 | AK156: 0
A157: 149 | B157: -1900 | C157: -1900-145 | V157: =IF(M$2021=1,"",IF(U157="","",VLOOKUP(U157,Tabelle!$D$5:$H$7,5,FALSE))) ->  | W157: =IF(M$2021=1,"",IF(U157="","",VLOOKUP(U157,Tabelle!$D$5:$I$7,6,FALSE))) ->  | AI157: =IF(B157="",0,IF(B157=B156,COUNTIF(B$9:B156,B157)+1,1)) -> 145 | AJ157: 0 | AK157: 0
A158: 150 | B158: -1900 | C158: -1900-146 | V158: =IF(M$2021=1,"",IF(U158="","",VLOOKUP(U158,Tabelle!$D$5:$H$7,5,FALSE))) ->  | W158: =IF(M$2021=1,"",IF(U158="","",VLOOKUP(U158,Tabelle!$D$5:$I$7,6,FALSE))) ->  | AI158: =IF(B158="",0,IF(B158=B157,COUNTIF(B$9:B157,B158)+1,1)) -> 146 | AJ158: 0 | AK158: 0
A159: 151 | B159: -1900 | C159: -1900-147 | V159: =IF(M$2021=1,"",IF(U159="","",VLOOKUP(U159,Tabelle!$D$5:$H$7,5,FALSE))) ->  | W159: =IF(M$2021=1,"",IF(U159="","",VLOOKUP(U159,Tabelle!$D$5:$I$7,6,FALSE))) ->  | AI159: =IF(B159="",0,IF(B159=B158,COUNTIF(B$9:B158,B159)+1,1)) -> 147 | AJ159: 0 | AK159: 0
A160: 152 | B160: -1900 | C160: -1900-148 | V160: =IF(M$2021=1,"",IF(U160="","",VLOOKUP(U160,Tabelle!$D$5:$H$7,5,FALSE))) ->  | W160: =IF(M$2021=1,"",IF(U160="","",VLOOKUP(U160,Tabelle!$D$5:$I$7,6,FALSE))) ->  | AI160: =IF(B160="",0,IF(B160=B159,COUNTIF(B$9:B159,B160)+1,1)) -> 148 | AJ160: 0 | AK160: 0
A161: 153 | B161: -1900 | C161: -1900-149 | V161: =IF(M$2021=1,"",IF(U161="","",VLOOKUP(U161,Tabelle!$D$5:$H$7,5,FALSE))) ->  | W161: =IF(M$2021=1,"",IF(U161="","",VLOOKUP(U161,Tabelle!$D$5:$I$7,6,FALSE))) ->  | AI161: =IF(B161="",0,IF(B161=B160,COUNTIF(B$9:B160,B161)+1,1)) -> 149 | AJ161: 0 | AK161: 0
A162: 154 | B162: -1900 | C162: -1900-150 | V162: =IF(M$2021=1,"",IF(U162="","",VLOOKUP(U162,Tabelle!$D$5:$H$7,5,FALSE))) ->  | W162: =IF(M$2021=1,"",IF(U162="","",VLOOKUP(U162,Tabelle!$D$5:$I$7,6,FALSE))) ->  | AI162: =IF(B162="",0,IF(B162=B161,COUNTIF(B$9:B161,B162)+1,1)) -> 150 | AJ162: 0 | AK162: 0
A163: 155 | B163: -1900 | C163: -1900-151 | V163: =IF(M$2021=1,"",IF(U163="","",VLOOKUP(U163,Tabelle!$D$5:$H$7,5,FALSE))) ->  | W163: =IF(M$2021=1,"",IF(U163="","",VLOOKUP(U163,Tabelle!$D$5:$I$7,6,FALSE))) ->  | AI163: =IF(B163="",0,IF(B163=B162,COUNTIF(B$9:B162,B163)+1,1)) -> 151 | AJ163: 0 | AK163: 0
A164: 156 | B164: -1900 | C164: -1900-152 | V164: =IF(M$2021=1,"",IF(U164="","",VLOOKUP(U164,Tabelle!$D$5:$H$7,5,FALSE))) ->  | W164: =IF(M$2021=1,"",IF(U164="","",VLOOKUP(U164,Tabelle!$D$5:$I$7,6,FALSE))) ->  | AI164: =IF(B164="",0,IF(B164=B163,COUNTIF(B$9:B163,B164)+1,1)) -> 152 | AJ164: 0 | AK164: 0
A165: 157 | B165: -1900 | C165: -1900-153 | V165: =IF(M$2021=1,"",IF(U165="","",VLOOKUP(U165,Tabelle!$D$5:$H$7,5,FALSE))) ->  | W165: =IF(M$2021=1,"",IF(U165="","",VLOOKUP(U165,Tabelle!$D$5:$I$7,6,FALSE))) ->  | AI165: =IF(B165="",0,IF(B165=B164,COUNTIF(B$9:B164,B165)+1,1)) -> 153 | AJ165: 0 | AK165: 0
A166: 158 | B166: -1900 | C166: -1900-154 | V166: =IF(M$2021=1,"",IF(U166="","",VLOOKUP(U166,Tabelle!$D$5:$H$7,5,FALSE))) ->  | W166: =IF(M$2021=1,"",IF(U166="","",VLOOKUP(U166,Tabelle!$D$5:$I$7,6,FALSE))) ->  | AI166: =IF(B166="",0,IF(B166=B165,COUNTIF(B$9:B165,B166)+1,1)) -> 154 | AJ166: 0 | AK166: 0
A167: 159 | B167: -1900 | C167: -1900-155 | V167: =IF(M$2021=1,"",IF(U167="","",VLOOKUP(U167,Tabelle!$D$5:$H$7,5,FALSE))) ->  | W167: =IF(M$2021=1,"",IF(U167="","",VLOOKUP(U167,Tabelle!$D$5:$I$7,6,FALSE))) ->  | AI167: =IF(B167="",0,IF(B167=B166,COUNTIF(B$9:B166,B167)+1,1)) -> 155 | AJ167: 0 | AK167: 0
A168: 160 | B168: -1900 | C168: -1900-156 | V168: =IF(M$2021=1,"",IF(U168="","",VLOOKUP(U168,Tabelle!$D$5:$H$7,5,FALSE))) ->  | W168: =IF(M$2021=1,"",IF(U168="","",VLOOKUP(U168,Tabelle!$D$5:$I$7,6,FALSE))) ->  | AI168: =IF(B168="",0,IF(B168=B167,COUNTIF(B$9:B167,B168)+1,1)) -> 156 | AJ168: 0 | AK168: 0
A169: 161 | B169: -1900 | C169: -1900-157 | V169: =IF(M$2021=1,"",IF(U169="","",VLOOKUP(U169,Tabelle!$D$5:$H$7,5,FALSE))) ->  | W169: =IF(M$2021=1,"",IF(U169="","",VLOOKUP(U169,Tabelle!$D$5:$I$7,6,FALSE))) ->  | AI169: =IF(B169="",0,IF(B169=B168,COUNTIF(B$9:B168,B169)+1,1)) -> 157 | AJ169: 0 | AK169: 0
A170: 162 | B170: -1900 | C170: -1900-158 | V170: =IF(M$2021=1,"",IF(U170="","",VLOOKUP(U170,Tabelle!$D$5:$H$7,5,FALSE))) ->  | W170: =IF(M$2021=1,"",IF(U170="","",VLOOKUP(U170,Tabelle!$D$5:$I$7,6,FALSE))) ->  | AI170: =IF(B170="",0,IF(B170=B169,COUNTIF(B$9:B169,B170)+1,1)) -> 158 | AJ170: 0 | AK170: 0
A171: 163 | B171: -1900 | C171: -1900-159 | V171: =IF(M$2021=1,"",IF(U171="","",VLOOKUP(U171,Tabelle!$D$5:$H$7,5,FALSE))) ->  | W171: =IF(M$2021=1,"",IF(U171="","",VLOOKUP(U171,Tabelle!$D$5:$I$7,6,FALSE))) ->  | AI171: =IF(B171="",0,IF(B171=B170,COUNTIF(B$9:B170,B171)+1,1)) -> 159 | AJ171: 0 | AK171: 0
A172: 164 | B172: -1900 | C172: -1900-160 | V172: =IF(M$2021=1,"",IF(U172="","",VLOOKUP(U172,Tabelle!$D$5:$H$7,5,FALSE))) ->  | W172: =IF(M$2021=1,"",IF(U172="","",VLOOKUP(U172,Tabelle!$D$5:$I$7,6,FALSE))) ->  | AI172: =IF(B172="",0,IF(B172=B171,COUNTIF(B$9:B171,B172)+1,1)) -> 160 | AJ172: 0 | AK172: 0
A173: 165 | B173: -1900 | C173: -1900-161 | V173: =IF(M$2021=1,"",IF(U173="","",VLOOKUP(U173,Tabelle!$D$5:$H$7,5,FALSE))) ->  | W173: =IF(M$2021=1,"",IF(U173="","",VLOOKUP(U173,Tabelle!$D$5:$I$7,6,FALSE))) ->  | AI173: =IF(B173="",0,IF(B173=B172,COUNTIF(B$9:B172,B173)+1,1)) -> 161 | AJ173: 0 | AK173: 0
A174: 166 | B174: -1900 | C174: -1900-162 | V174: =IF(M$2021=1,"",IF(U174="","",VLOOKUP(U174,Tabelle!$D$5:$H$7,5,FALSE))) ->  | W174: =IF(M$2021=1,"",IF(U174="","",VLOOKUP(U174,Tabelle!$D$5:$I$7,6,FALSE))) ->  | AI174: =IF(B174="",0,IF(B174=B173,COUNTIF(B$9:B173,B174)+1,1)) -> 162 | AJ174: 0 | AK174: 0
A175: 167 | B175: -1900 | C175: -1900-163 | V175: =IF(M$2021=1,"",IF(U175="","",VLOOKUP(U175,Tabelle!$D$5:$H$7,5,FALSE))) ->  | W175: =IF(M$2021=1,"",IF(U175="","",VLOOKUP(U175,Tabelle!$D$5:$I$7,6,FALSE))) ->  | AI175: =IF(B175="",0,IF(B175=B174,COUNTIF(B$9:B174,B175)+1,1)) -> 163 | AJ175: 0 | AK175: 0
A176: 168 | B176: -1900 | C176: -1900-164 | V176: =IF(M$2021=1,"",IF(U176="","",VLOOKUP(U176,Tabelle!$D$5:$H$7,5,FALSE))) ->  | W176: =IF(M$2021=1,"",IF(U176="","",VLOOKUP(U176,Tabelle!$D$5:$I$7,6,FALSE))) ->  | AI176: =IF(B176="",0,IF(B176=B175,COUNTIF(B$9:B175,B176)+1,1)) -> 164 | AJ176: 0 | AK176: 0
A177: 169 | B177: -1900 | C177: -1900-165 | V177: =IF(M$2021=1,"",IF(U177="","",VLOOKUP(U177,Tabelle!$D$5:$H$7,5,FALSE))) ->  | W177: =IF(M$2021=1,"",IF(U177="","",VLOOKUP(U177,Tabelle!$D$5:$I$7,6,FALSE))) ->  | AI177: =IF(B177="",0,IF(B177=B176,COUNTIF(B$9:B176,B177)+1,1)) -> 165 | AJ177: 0 | AK177: 0
A178: 170 | B178: -1900 | C178: -1900-166 | V178: =IF(M$2021=1,"",IF(U178="","",VLOOKUP(U178,Tabelle!$D$5:$H$7,5,FALSE))) ->  | W178: =IF(M$2021=1,"",IF(U178="","",VLOOKUP(U178,Tabelle!$D$5:$I$7,6,FALSE))) ->  | AI178: =IF(B178="",0,IF(B178=B177,COUNTIF(B$9:B177,B178)+1,1)) -> 166 | AJ178: 0 | AK178: 0
A179: 171 | B179: -1900 | C179: -1900-167 | V179: =IF(M$2021=1,"",IF(U179="","",VLOOKUP(U179,Tabelle!$D$5:$H$7,5,FALSE))) ->  | W179: =IF(M$2021=1,"",IF(U179="","",VLOOKUP(U179,Tabelle!$D$5:$I$7,6,FALSE))) ->  | AI179: =IF(B179="",0,IF(B179=B178,COUNTIF(B$9:B178,B179)+1,1)) -> 167 | AJ179: 0 | AK179: 0
A180: 172 | B180: -1900 | C180: -1900-168 | V180: =IF(M$2021=1,"",IF(U180="","",VLOOKUP(U180,Tabelle!$D$5:$H$7,5,FALSE))) ->  | W180: =IF(M$2021=1,"",IF(U180="","",VLOOKUP(U180,Tabelle!$D$5:$I$7,6,FALSE))) ->  | AI180: =IF(B180="",0,IF(B180=B179,COUNTIF(B$9:B179,B180)+1,1)) -> 168 | AJ180: 0 | AK180: 0
A181: 173 | B181: -1900 | C181: -1900-169 | V181: =IF(M$2021=1,"",IF(U181="","",VLOOKUP(U181,Tabelle!$D$5:$H$7,5,FALSE))) ->  | W181: =IF(M$2021=1,"",IF(U181="","",VLOOKUP(U181,Tabelle!$D$5:$I$7,6,FALSE))) ->  | AI181: =IF(B181="",0,IF(B181=B180,COUNTIF(B$9:B180,B181)+1,1)) -> 169 | AJ181: 0 | AK181: 0
A182: 174 | B182: -1900 | C182: -1900-170 | V182: =IF(M$2021=1,"",IF(U182="","",VLOOKUP(U182,Tabelle!$D$5:$H$7,5,FALSE))) ->  | W182: =IF(M$2021=1,"",IF(U182="","",VLOOKUP(U182,Tabelle!$D$5:$I$7,6,FALSE))) ->  | AI182: =IF(B182="",0,IF(B182=B181,COUNTIF(B$9:B181,B182)+1,1)) -> 170 | AJ182: 0 | AK182: 0
A183: 175 | B183: -1900 | C183: -1900-171 | V183: =IF(M$2021=1,"",IF(U183="","",VLOOKUP(U183,Tabelle!$D$5:$H$7,5,FALSE))) ->  | W183: =IF(M$2021=1,"",IF(U183="","",VLOOKUP(U183,Tabelle!$D$5:$I$7,6,FALSE))) ->  | AI183: =IF(B183="",0,IF(B183=B182,COUNTIF(B$9:B182,B183)+1,1)) -> 171 | AJ183: 0 | AK183: 0
A184: 176 | B184: -1900 | C184: -1900-172 | V184: =IF(M$2021=1,"",IF(U184="","",VLOOKUP(U184,Tabelle!$D$5:$H$7,5,FALSE))) ->  | W184: =IF(M$2021=1,"",IF(U184="","",VLOOKUP(U184,Tabelle!$D$5:$I$7,6,FALSE))) ->  | AI184: =IF(B184="",0,IF(B184=B183,COUNTIF(B$9:B183,B184)+1,1)) -> 172 | AJ184: 0 | AK184: 0
A185: 177 | B185: -1900 | C185: -1900-173 | V185: =IF(M$2021=1,"",IF(U185="","",VLOOKUP(U185,Tabelle!$D$5:$H$7,5,FALSE))) ->  | W185: =IF(M$2021=1,"",IF(U185="","",VLOOKUP(U185,Tabelle!$D$5:$I$7,6,FALSE))) ->  | AI185: =IF(B185="",0,IF(B185=B184,COUNTIF(B$9:B184,B185)+1,1)) -> 173 | AJ185: 0 | AK185: 0
A186: 178 | B186: -1900 | C186: -1900-174 | V186: =IF(M$2021=1,"",IF(U186="","",VLOOKUP(U186,Tabelle!$D$5:$H$7,5,FALSE))) ->  | W186: =IF(M$2021=1,"",IF(U186="","",VLOOKUP(U186,Tabelle!$D$5:$I$7,6,FALSE))) ->  | AI186: =IF(B186="",0,IF(B186=B185,COUNTIF(B$9:B185,B186)+1,1)) -> 174 | AJ186: 0 | AK186: 0
A187: 179 | B187: -1900 | C187: -1900-175 | V187: =IF(M$2021=1,"",IF(U187="","",VLOOKUP(U187,Tabelle!$D$5:$H$7,5,FALSE))) ->  | W187: =IF(M$2021=1,"",IF(U187="","",VLOOKUP(U187,Tabelle!$D$5:$I$7,6,FALSE))) ->  | AI187: =IF(B187="",0,IF(B187=B186,COUNTIF(B$9:B186,B187)+1,1)) -> 175 | AJ187: 0 | AK187: 0
A188: 180 | B188: -1900 | C188: -1900-176 | V188: =IF(M$2021=1,"",IF(U188="","",VLOOKUP(U188,Tabelle!$D$5:$H$7,5,FALSE))) ->  | W188: =IF(M$2021=1,"",IF(U188="","",VLOOKUP(U188,Tabelle!$D$5:$I$7,6,FALSE))) ->  | AI188: =IF(B188="",0,IF(B188=B187,COUNTIF(B$9:B187,B188)+1,1)) -> 176 | AJ188: 0 | AK188: 0
A189: 181 | B189: -1900 | C189: -1900-177 | V189: =IF(M$2021=1,"",IF(U189="","",VLOOKUP(U189,Tabelle!$D$5:$H$7,5,FALSE))) ->  | W189: =IF(M$2021=1,"",IF(U189="","",VLOOKUP(U189,Tabelle!$D$5:$I$7,6,FALSE))) ->  | AI189: =IF(B189="",0,IF(B189=B188,COUNTIF(B$9:B188,B189)+1,1)) -> 177 | AJ189: 0 | AK189: 0
A190: 182 | B190: -1900 | C190: -1900-178 | V190: =IF(M$2021=1,"",IF(U190="","",VLOOKUP(U190,Tabelle!$D$5:$H$7,5,FALSE))) ->  | W190: =IF(M$2021=1,"",IF(U190="","",VLOOKUP(U190,Tabelle!$D$5:$I$7,6,FALSE))) ->  | AI190: =IF(B190="",0,IF(B190=B189,COUNTIF(B$9:B189,B190)+1,1)) -> 178 | AJ190: 0 | AK190: 0
A191: 183 | B191: -1900 | C191: -1900-179 | V191: =IF(M$2021=1,"",IF(U191="","",VLOOKUP(U191,Tabelle!$D$5:$H$7,5,FALSE))) ->  | W191: =IF(M$2021=1,"",IF(U191="","",VLOOKUP(U191,Tabelle!$D$5:$I$7,6,FALSE))) ->  | AI191: =IF(B191="",0,IF(B191=B190,COUNTIF(B$9:B190,B191)+1,1)) -> 179 | AJ191: 0 | AK191: 0
A192: 184 | B192: -1900 | C192: -1900-180 | V192: =IF(M$2021=1,"",IF(U192="","",VLOOKUP(U192,Tabelle!$D$5:$H$7,5,FALSE))) ->  | W192: =IF(M$2021=1,"",IF(U192="","",VLOOKUP(U192,Tabelle!$D$5:$I$7,6,FALSE))) ->  | AI192: =IF(B192="",0,IF(B192=B191,COUNTIF(B$9:B191,B192)+1,1)) -> 180 | AJ192: 0 | AK192: 0
A193: 185 | B193: -1900 | C193: -1900-181 | V193: =IF(M$2021=1,"",IF(U193="","",VLOOKUP(U193,Tabelle!$D$5:$H$7,5,FALSE))) ->  | W193: =IF(M$2021=1,"",IF(U193="","",VLOOKUP(U193,Tabelle!$D$5:$I$7,6,FALSE))) ->  | AI193: =IF(B193="",0,IF(B193=B192,COUNTIF(B$9:B192,B193)+1,1)) -> 181 | AJ193: 0 | AK193: 0
A194: 186 | B194: -1900 | C194: -1900-182 | V194: =IF(M$2021=1,"",IF(U194="","",VLOOKUP(U194,Tabelle!$D$5:$H$7,5,FALSE))) ->  | W194: =IF(M$2021=1,"",IF(U194="","",VLOOKUP(U194,Tabelle!$D$5:$I$7,6,FALSE))) ->  | AI194: =IF(B194="",0,IF(B194=B193,COUNTIF(B$9:B193,B194)+1,1)) -> 182 | AJ194: 0 | AK194: 0
A195: 187 | B195: -1900 | C195: -1900-183 | V195: =IF(M$2021=1,"",IF(U195="","",VLOOKUP(U195,Tabelle!$D$5:$H$7,5,FALSE))) ->  | W195: =IF(M$2021=1,"",IF(U195="","",VLOOKUP(U195,Tabelle!$D$5:$I$7,6,FALSE))) ->  | AI195: =IF(B195="",0,IF(B195=B194,COUNTIF(B$9:B194,B195)+1,1)) -> 183 | AJ195: 0 | AK195: 0
A196: 188 | B196: -1900 | C196: -1900-184 | V196: =IF(M$2021=1,"",IF(U196="","",VLOOKUP(U196,Tabelle!$D$5:$H$7,5,FALSE))) ->  | W196: =IF(M$2021=1,"",IF(U196="","",VLOOKUP(U196,Tabelle!$D$5:$I$7,6,FALSE))) ->  | AI196: =IF(B196="",0,IF(B196=B195,COUNTIF(B$9:B195,B196)+1,1)) -> 184 | AJ196: 0 | AK196: 0
A197: 189 | B197: -1900 | C197: -1900-185 | V197: =IF(M$2021=1,"",IF(U197="","",VLOOKUP(U197,Tabelle!$D$5:$H$7,5,FALSE))) ->  | W197: =IF(M$2021=1,"",IF(U197="","",VLOOKUP(U197,Tabelle!$D$5:$I$7,6,FALSE))) ->  | AI197: =IF(B197="",0,IF(B197=B196,COUNTIF(B$9:B196,B197)+1,1)) -> 185 | AJ197: 0 | AK197: 0
A198: 190 | B198: -1900 | C198: -1900-186 | V198: =IF(M$2021=1,"",IF(U198="","",VLOOKUP(U198,Tabelle!$D$5:$H$7,5,FALSE))) ->  | W198: =IF(M$2021=1,"",IF(U198="","",VLOOKUP(U198,Tabelle!$D$5:$I$7,6,FALSE))) ->  | AI198: =IF(B198="",0,IF(B198=B197,COUNTIF(B$9:B197,B198)+1,1)) -> 186 | AJ198: 0 | AK198: 0
A199: 191 | B199: -1900 | C199: -1900-187 | V199: =IF(M$2021=1,"",IF(U199="","",VLOOKUP(U199,Tabelle!$D$5:$H$7,5,FALSE))) ->  | W199: =IF(M$2021=1,"",IF(U199="","",VLOOKUP(U199,Tabelle!$D$5:$I$7,6,FALSE))) ->  | AI199: =IF(B199="",0,IF(B199=B198,COUNTIF(B$9:B198,B199)+1,1)) -> 187 | AJ199: 0 | AK199: 0
A200: 192 | B200: -1900 | C200: -1900-188 | V200: =IF(M$2021=1,"",IF(U200="","",VLOOKUP(U200,Tabelle!$D$5:$H$7,5,FALSE))) ->  | W200: =IF(M$2021=1,"",IF(U200="","",VLOOKUP(U200,Tabelle!$D$5:$I$7,6,FALSE))) ->  | AI200: =IF(B200="",0,IF(B200=B199,COUNTIF(B$9:B199,B200)+1,1)) -> 188 | AJ200: 0 | AK200: 0
A201: 193 | B201: -1900 | C201: =IF(M$2021=1,0,B201&"-"&AI201) -> -1900-189 | V201: =IF(M$2021=1,"",IF(U201="","",VLOOKUP(U201,Tabelle!$D$5:$H$7,5,FALSE))) ->  | W201: =IF(M$2021=1,"",IF(U201="","",VLOOKUP(U201,Tabelle!$D$5:$I$7,6,FALSE))) ->  | AI201: =IF(B201="",0,IF(B201=B200,COUNTIF(B$9:B200,B201)+1,1)) -> 189 | AJ201: 0 | AK201: 0
A202: 194 | B202: =IF(AK202=$AK$2015,0,IF(M$2021=1,0,D202&"-"&YEAR(E202))) -> -1900 | C202: -1900-190 | V202: =IF(M$2021=1,"",IF(U202="","",VLOOKUP(U202,Tabelle!$D$5:$H$7,5,FALSE))) ->  | W202: =IF(M$2021=1,"",IF(U202="","",VLOOKUP(U202,Tabelle!$D$5:$I$7,6,FALSE))) ->  | AI202: =IF(B202="",0,IF(B202=B201,COUNTIF(B$9:B201,B202)+1,1)) -> 190 | AJ202: =IF(OR(D202="",M$2021=1),0,IF(AI202=10,1,0)) -> 0 | AK202: =IF(E202>0,IF(OR(MONTH(E202)<$J$2027,MONTH(E202)>$J$2028),AK$2015,0),0) -> 0
... 1818 more rows

Sheet F24 Semplificato
BU4: ANNO
AQ5: =VLOOKUP(VLOOKUP(BU8&"-"&BU5,'Motivo del pagamento'!B9:U2008,20,FALSE),Tabelle!D5:E7,2,FALSE) -> Nome Banca 1 / modifica sigla | BU5: 2024
AQ7: =VLOOKUP(VLOOKUP(BU8&"-"&BU5,'Motivo del pagamento'!B9:U2008,20,FALSE),Tabelle!D5:F7,3,FALSE) -> Nome Agenzia 1 | BQ7: =VLOOKUP(VLOOKUP(BU8&"-"&BU5,'Motivo del pagamento'!B9:U2008,20,FALSE),Tabelle!D5:G7,4,FALSE) -> XX | BU7: Protocollo DOC.
BN8: Protocollo F24 | BU8: 1
L9: =MID(CONTRIBUENTE!E34,1,1) -> 0 | N9: =MID(CONTRIBUENTE!E34,2,1) -> 1 | P9: =MID(CONTRIBUENTE!E34,3,1) -> 2 | R9: =MID(CONTRIBUENTE!E34,4,1) -> 3 | U9: =MID(CONTRIBUENTE!E34,5,1) -> 4 | W9: =MID(CONTRIBUENTE!E34,6,1) -> 5 | X9: =MID(CONTRIBUENTE!E34,7,1) -> 6 | Z9: =MID(CONTRIBUENTE!E34,8,1) -> 7 | AC9: =MID(CONTRIBUENTE!E34,9,1) -> 8 | AE9: =MID(CONTRIBUENTE!E34,10,1) -> 9 | AG9: =MID(CONTRIBUENTE!E34,11,1) -> 1 | AJ9: =MID(CONTRIBUENTE!E34,12,1) ->  | AK9: =MID(CONTRIBUENTE!E34,13,1) ->  | AL9: =MID(CONTRIBUENTE!E34,14,1) ->  | AO9: =MID(CONTRIBUENTE!E34,15,1) ->  | AP9: =MID(CONTRIBUENTE!E34,16,1) ->  | AS9: =MID(VLOOKUP(BU8&"-"&BU5,'Motivo del pagamento'!B9:G2008,6,FALSE),1,1) -> 1 | AU9: =MID(VLOOKUP(BU8&"-"&BU5,'Motivo del pagamento'!B9:G2008,6,FALSE),2,1) -> 2 | AX9: =MID(VLOOKUP(BU8&"-"&BU5,'Motivo del pagamento'!B9:G2008,6,FALSE),3,1) -> 3 | BB9: =MID(VLOOKUP(BU8&"-"&BU5,'Motivo del pagamento'!B9:H2008,7,FALSE),1,1) -> 0 | BD9: =MID(VLOOKUP(BU8&"-"&BU5,'Motivo del pagamento'!B9:H2008,7,FALSE),2,1) -> 1 | BE9: =MID(VLOOKUP(BU8&"-"&BU5,'Motivo del pagamento'!B9:H2008,7,FALSE),3,1) -> 2 | BF9: =MID(VLOOKUP(BU8&"-"&BU5,'Motivo del pagamento'!B9:H2008,7,FALSE),4,1) -> 3 | BG9: =MID(VLOOKUP(BU8&"-"&BU5,'Motivo del pagamento'!B9:H2008,7,FALSE),5,1) -> 4 | BK9: =MID(VLOOKUP(BU8&"-"&BU5,'Motivo del pagamento'!B9:H2008,7,FALSE),6,1) -> 5 | BN9: =MID(VLOOKUP(BU8&"-"&BU5,'Motivo del pagamento'!B9:H2008,7,FALSE),7,1) -> 6 | BO9: =MID(VLOOKUP(BU8&"-"&BU5,'Motivo del pagamento'!B9:H2008,7,FALSE),8,1) -> 7 | BP9: =MID(VLOOKUP(BU8&"-"&BU5,'Motivo del pagamento'!B9:H2008,7,FALSE),9,1) -> 8 | BQ9: =MID(VLOOKUP(BU8&"-"&BU5,'Motivo del pagamento'!B9:H2008,7,FALSE),10,1) -> 9 | BR9: =MID(VLOOKUP(BU8&"-"&BU5,'Motivo del pagamento'!B9:H2008,7,FALSE),11,1) -> 1
BN10: 3
L11: =CONTRIBUENTE!$E$36 -> Anagrafica CONTRIBUENTE | BC11: =CONTRIBUENTE!$E$38 -> Nome CONTRIBUENTE
L13: =MID(TEXT(CONTRIBUENTE!J38,"gg/mm/aaaa"),1,1) -> 0 | N13: =MID(TEXT(CONTRIBUENTE!J38,"gg/mm/aaaa"),2,1) -> 1 | P13: =MID(TEXT(CONTRIBUENTE!J38,"gg/mm/aaaa"),4,1) -> 0 | R13: =MID(TEXT(CONTRIBUENTE!J38,"gg/mm/aaaa"),5,1) -> 1 | U13: =MID(TEXT(CONTRIBUENTE!J38,"gg/mm/aaaa"),7,1) -> 2 | W13: =MID(TEXT(CONTRIBUENTE!J38,"gg/mm/aaaa"),8,1) -> 0 | X13: =MID(TEXT(CONTRIBUENTE!J38,"gg/mm/aaaa"),9,1) -> 0 | Z13: =MID(TEXT(CONTRIBUENTE!J38,"gg/mm/aaaa"),10,1) -> 0 | AF13: =VLOOKUP(CONTRIBUENTE!M38,CONTRIBUENTE!E123:F124,2,FALSE) ->  | AI13: =CONTRIBUENTE!$E$40 -> 0 | BQ13: =LEFT(CONTRIBUENTE!O40,1) ->  | BR13: =RIGHT(CONTRIBUENTE!O40,1) ->  | BU13: Alfanumerico
BU14: =VLOOKUP(BU8&"-"&BU5,'Motivo del pagamento'!B9:Y2008,24,FALSE) -> AAA
W15: =MID(CONTRIBUENTE!E43,1,1) ->  | X15: =MID(CONTRIBUENTE!E43,2,1) ->  | Z15: =MID(CONTRIBUENTE!E43,3,1) ->  | AC15: =MID(CONTRIBUENTE!E43,4,1) ->  | AE15: =MID(CONTRIBUENTE!E43,5,1) ->  | AG15: =MID(CONTRIBUENTE!E43,6,1) ->  | AJ15: =MID(CONTRIBUENTE!E43,7,1) ->  | AK15: =MID(CONTRIBUENTE!E43,8,1) ->  | AL15: =MID(CONTRIBUENTE!E43,9,1) ->  | AO15: =MID(CONTRIBUENTE!E43,10,1) ->  | AP15: =MID(CONTRIBUENTE!E43,11,1) ->  | AQ15: =MID(CONTRIBUENTE!E43,12,1) ->  | AT15: =MID(CONTRIBUENTE!E43,13,1) ->  | AV15: =MID(CONTRIBUENTE!E43,14,1) ->  | AY15: =MID(CONTRIBUENTE!E43,15,1) ->  | BA15: =MID(CONTRIBUENTE!E43,16,1) ->  | BQ15: =LEFT(CONTRIBUENTE!O43,1) ->  | BR15: =RIGHT(CONTRIBUENTE!O43,1) -> 
BU17: Note
A18: 1 | C18: =LEFT(VLOOKUP(VLOOKUP($BU$8&"-"&$BU$5&"-"&$A18,'Motivo del pagamento'!$C$9:$J$2008,8,FALSE),Tabelle!B$5:C$8,2,FALSE),1) -> . | E18: =RIGHT(VLOOKUP(VLOOKUP($BU$8&"-"&$BU$5&"-"&$A18,'Motivo del pagamento'!$C$9:$J$2008,8,FALSE),Tabelle!B$5:C$8,2,FALSE),1) -> . | I18: =VLOOKUP($BU$8&"-"&$BU$5&"-"&$A18,'Motivo del pagamento'!$C$9:$K$2008,9,FALSE) -> 0101 | M18: =MID(VLOOKUP($BU$8&"-"&$BU$5&"-"&$A18,'Motivo del pagamento'!$C$9:$L$2008,10,FALSE),1,1) -> 0 | N18: =MID(VLOOKUP($BU$8&"-"&$BU$5&"-"&$A18,'Motivo del pagamento'!$C$9:$L$2008,10,FALSE),2,1) -> 0 | O18: =MID(VLOOKUP($BU$8&"-"&$BU$5&"-"&$A18,'Motivo del pagamento'!$C$9:$L$2008,10,FALSE),3,1) -> 0 | Q18: =MID(VLOOKUP($BU$8&"-"&$BU$5&"-"&$A18,'Motivo del pagamento'!$C$9:$L$2008,10,FALSE),4,1) -> 0 | T18: =VLOOKUP(VLOOKUP($BU$8&"-"&$BU$5&"-"&$A18,'Motivo del pagamento'!$C$9:$M$2008,11,FALSE),'Motivo del pagamento'!$O$2022:$P$2025,2,FALSE) ->  | W18: =VLOOKUP(VLOOKUP($BU$8&"-"&$BU$5&"-"&$A18,'Motivo del pagamento'!$C$9:$M$2008,11,FALSE),'Motivo del pagamento'!$O$2022:$Q$2025,3,FALSE) ->  | Y18: =VLOOKUP(VLOOKUP($BU$8&"-"&$BU$5&"-"&$A18,'Motivo del pagamento'!$C$9:$M$2008,11,FALSE),'Motivo del pagamento'!$O$2022:$R$2025,4,FALSE) ->  | AB18: =VLOOKUP(VLOOKUP($BU$8&"-"&$BU$5&"-"&$A18,'Motivo del pagamento'!$C$9:$M$2008,11,FALSE),'Motivo del pagamento'!$O$2022:$S$2025,5,FALSE) -> X | AE18: =VLOOKUP($BU$8&"-"&$BU$5&"-"&$A18,'Motivo del pagamento'!$C$9:$N$2008,12,FALSE) -> 1 | AJ18: =VLOOKUP($BU$8&"-"&$BU$5&"-"&$A18,'Motivo del pagamento'!$C$9:$O$2008,13,FALSE) -> 01 01 | AN18: =VLOOKUP($BU$8&"-"&$BU$5&"-"&$A18,'Motivo del pagamento'!$C$9:$P$2008,14,FALSE) -> 2020 | AQ18: =FLOOR(VLOOKUP($BU$8&"-"&$BU$5&"-"&$A18,'Motivo del pagamento'!$C$9:$Q$2008,15,FALSE),1) -> 0 | AY18: =LEFT(RIGHT(TEXT(VLOOKUP($BU$8&"-"&$BU$5&"-"&$A18,'Motivo del pagamento'!$C$9:$Q$2008,15,FALSE),"0,00"),2),1) -> 0 | AZ18: =RIGHT(TEXT(VLOOKUP($BU$8&"-"&$BU$5&"-"&$A18,'Motivo del pagamento'!$C$9:$Q$2008,15,FALSE),"0,00"),1) -> 0 | BB18: =FLOOR(VLOOKUP($BU$8&"-"&$BU$5&"-"&$A18,'Motivo del pagamento'!$C$9:$R$2008,16,FALSE),1) -> 1 | BH18: =LEFT(RIGHT(TEXT(VLOOKUP($BU$8&"-"&$BU$5&"-"&$A18,'Motivo del pagamento'!$C$9:$R$2008,16,FALSE),"0,00"),2),1) -> 0 | BJ18: =RIGHT(TEXT(VLOOKUP($BU$8&"-"&$BU$5&"-"&$A18,'Motivo del pagamento'!$C$9:$R$2008,16,FALSE),"0,00"),1) -> 0 | BM18: =FLOOR(VLOOKUP($BU$8&"-"&$BU$5&"-"&$A18,'Motivo del pagamento'!$C$9:$S$2008,17,FALSE),1) -> 0 | BR18: =LEFT(RIGHT(TEXT(VLOOKUP($BU$8&"-"&$BU$5&"-"&$A18,'Motivo del pagamento'!$C$9:$S$2008,17,FALSE),"0,00"),2),1) -> 0 | BS18: =RIGHT(TEXT(VLOOKUP($BU$8&"-"&$BU$5&"-"&$A18,'Motivo del pagamento'!$C$9:$S$2008,17,FALSE),"0,00"),1) -> 0 | BU18: =VLOOKUP($BU$8&"-"&$BU$5&"-"&A18,'Motivo del pagamento'!$C$9:$AG$2008,31,FALSE) -> Testo Libero
A19: 2 | C19: =LEFT(VLOOKUP(VLOOKUP($BU$8&"-"&$BU$5&"-"&$A19,'Motivo del pagamento'!$C$9:$J$2008,8,FALSE),Tabelle!B$5:C$8,2,FALSE),1) ->  | E19: =RIGHT(VLOOKUP(VLOOKUP($BU$8&"-"&$BU$5&"-"&$A19,'Motivo del pagamento'!$C$9:$J$2008,8,FALSE),Tabelle!B$5:C$8,2,FALSE),1) ->  | I19: =VLOOKUP($BU$8&"-"&$BU$5&"-"&$A19,'Motivo del pagamento'!$C$9:$K$2008,9,FALSE) ->  | M19: =MID(VLOOKUP($BU$8&"-"&$BU$5&"-"&$A19,'Motivo del pagamento'!$C$9:$L$2008,10,FALSE),1,1) ->  | N19: =MID(VLOOKUP($BU$8&"-"&$BU$5&"-"&$A19,'Motivo del pagamento'!$C$9:$L$2008,10,FALSE),2,1) ->  | O19: =MID(VLOOKUP($BU$8&"-"&$BU$5&"-"&$A19,'Motivo del pagamento'!$C$9:$L$2008,10,FALSE),3,1) ->  | Q19: =MID(VLOOKUP($BU$8&"-"&$BU$5&"-"&$A19,'Motivo del pagamento'!$C$9:$L$2008,10,FALSE),4,1) ->  | T19: =VLOOKUP(VLOOKUP($BU$8&"-"&$BU$5&"-"&$A19,'Motivo del pagamento'!$C$9:$M$2008,11,FALSE),'Motivo del pagamento'!$O$2022:$P$2025,2,FALSE) ->  | W19: =VLOOKUP(VLOOKUP($BU$8&"-"&$BU$5&"-"&$A19,'Motivo del pagamento'!$C$9:$M$2008,11,FALSE),'Motivo del pagamento'!$O$2022:$Q$2025,3,FALSE) ->  | Y19: =VLOOKUP(VLOOKUP($BU$8&"-"&$BU$5&"-"&$A19,'Motivo del pagamento'!$C$9:$M$2008,11,FALSE),'Motivo del pagamento'!$O$2022:$R$2025,4,FALSE) ->  | AB19: =VLOOKUP(VLOOKUP($BU$8&"-"&$BU$5&"-"&$A19,'Motivo del pagamento'!$C$9:$M$2008,11,FALSE),'Motivo del pagamento'!$O$2022:$S$2025,5,FALSE) ->  | AE19: =VLOOKUP($BU$8&"-"&$BU$5&"-"&$A19,'Motivo del pagamento'!$C$9:$N$2008,12,FALSE) ->  | AJ19: =VLOOKUP($BU$8&"-"&$BU$5&"-"&$A19,'Motivo del pagamento'!$C$9:$O$2008,13,FALSE) ->  | AN19: =VLOOKUP($BU$8&"-"&$BU$5&"-"&$A19,'Motivo del pagamento'!$C$9:$P$2008,14,FALSE) ->  | AQ19: =FLOOR(VLOOKUP($BU$8&"-"&$BU$5&"-"&$A19,'Motivo del pagamento'!$C$9:$Q$2008,15,FALSE),1) ->  | AY19: =LEFT(RIGHT(TEXT(VLOOKUP($BU$8&"-"&$BU$5&"-"&$A19,'Motivo del pagamento'!$C$9:$Q$2008,15,FALSE),"0,00"),2),1) ->  | AZ19: =RIGHT(TEXT(VLOOKUP($BU$8&"-"&$BU$5&"-"&$A19,'Motivo del pagamento'!$C$9:$Q$2008,15,FALSE),"0,00"),1) ->  | BB19: =FLOOR(VLOOKUP($BU$8&"-"&$BU$5&"-"&$A19,'Motivo del pagamento'!$C$9:$R$2008,16,FALSE),1) ->  | BH19: =LEFT(RIGHT(TEXT(VLOOKUP($BU$8&"-"&$BU$5&"-"&$A19,'Motivo del pagamento'!$C$9:$R$2008,16,FALSE),"0,00"),2),1) ->  | BJ19: =RIGHT(TEXT(VLOOKUP($BU$8&"-"&$BU$5&"-"&$A19,'Motivo del pagamento'!$C$9:$R$2008,16,FALSE),"0,00"),1) ->  | BM19: =FLOOR(VLOOKUP($BU$8&"-"&$BU$5&"-"&$A19,'Motivo del pagamento'!$C$9:$S$2008,17,FALSE),1) ->  | BR19: =LEFT(RIGHT(TEXT(VLOOKUP($BU$8&"-"&$BU$5&"-"&$A19,'Motivo del pagamento'!$C$9:$S$2008,17,FALSE),"0,00"),2),1) ->  | BS19: =RIGHT(TEXT(VLOOKUP($BU$8&"-"&$BU$5&"-"&$A19,'Motivo del pagamento'!$C$9:$S$2008,17,FALSE),"0,00"),1) ->  | BU19: =VLOOKUP($BU$8&"-"&$BU$5&"-"&A19,'Motivo del pagamento'!$C$9:$AG$2008,31,FALSE) -> 
A20: 3 | C20: =LEFT(VLOOKUP(VLOOKUP($BU$8&"-"&$BU$5&"-"&$A20,'Motivo del pagamento'!$C$9:$J$2008,8,FALSE),Tabelle!B$5:C$8,2,FALSE),1) ->  | E20: =RIGHT(VLOOKUP(VLOOKUP($BU$8&"-"&$BU$5&"-"&$A20,'Motivo del pagamento'!$C$9:$J$2008,8,FALSE),Tabelle!B$5:C$8,2,FALSE),1) ->  | I20: =VLOOKUP($BU$8&"-"&$BU$5&"-"&$A20,'Motivo del pagamento'!$C$9:$K$2008,9,FALSE) ->  | M20: =MID(VLOOKUP($BU$8&"-"&$BU$5&"-"&$A20,'Motivo del pagamento'!$C$9:$L$2008,10,FALSE),1,1) ->  | N20: =MID(VLOOKUP($BU$8&"-"&$BU$5&"-"&$A20,'Motivo del pagamento'!$C$9:$L$2008,10,FALSE),2,1) ->  | O20: =MID(VLOOKUP($BU$8&"-"&$BU$5&"-"&$A20,'Motivo del pagamento'!$C$9:$L$2008,10,FALSE),3,1) ->  | Q20: =MID(VLOOKUP($BU$8&"-"&$BU$5&"-"&$A20,'Motivo del pagamento'!$C$9:$L$2008,10,FALSE),4,1) ->  | T20: =VLOOKUP(VLOOKUP($BU$8&"-"&$BU$5&"-"&$A20,'Motivo del pagamento'!$C$9:$M$2008,11,FALSE),'Motivo del pagamento'!$O$2022:$P$2025,2,FALSE) ->  | W20: =VLOOKUP(VLOOKUP($BU$8&"-"&$BU$5&"-"&$A20,'Motivo del pagamento'!$C$9:$M$2008,11,FALSE),'Motivo del pagamento'!$O$2022:$Q$2025,3,FALSE) ->  | Y20: =VLOOKUP(VLOOKUP($BU$8&"-"&$BU$5&"-"&$A20,'Motivo del pagamento'!$C$9:$M$2008,11,FALSE),'Motivo del pagamento'!$O$2022:$R$2025,4,FALSE) ->  | AB20: =VLOOKUP(VLOOKUP($BU$8&"-"&$BU$5&"-"&$A20,'Motivo del pagamento'!$C$9:$M$2008,11,FALSE),'Motivo del pagamento'!$O$2022:$S$2025,5,FALSE) ->  | AE20: =VLOOKUP($BU$8&"-"&$BU$5&"-"&$A20,'Motivo del pagamento'!$C$9:$N$2008,12,FALSE) ->  | AJ20: =VLOOKUP($BU$8&"-"&$BU$5&"-"&$A20,'Motivo del pagamento'!$C$9:$O$2008,13,FALSE) ->  | AN20: =VLOOKUP($BU$8&"-"&$BU$5&"-"&$A20,'Motivo del pagamento'!$C$9:$P$2008,14,FALSE) ->  | AQ20: =FLOOR(VLOOKUP($BU$8&"-"&$BU$5&"-"&$A20,'Motivo del pagamento'!$C$9:$Q$2008,15,FALSE),1) ->  | AY20: =LEFT(RIGHT(TEXT(VLOOKUP($BU$8&"-"&$BU$5&"-"&$A20,'Motivo del pagamento'!$C$9:$Q$2008,15,FALSE),"0,00"),2),1) ->  | AZ20: =RIGHT(TEXT(VLOOKUP($BU$8&"-"&$BU$5&"-"&$A20,'Motivo del pagamento'!$C$9:$Q$2008,15,FALSE),"0,00"),1) ->  | BB20: =FLOOR(VLOOKUP($BU$8&"-"&$BU$5&"-"&$A20,'Motivo del pagamento'!$C$9:$R$2008,16,FALSE),1) ->  | BH20: =LEFT(RIGHT(TEXT(VLOOKUP($BU$8&"-"&$BU$5&"-"&$A20,'Motivo del pagamento'!$C$9:$R$2008,16,FALSE),"0,00"),2),1) ->  | BJ20: =RIGHT(TEXT(VLOOKUP($BU$8&"-"&$BU$5&"-"&$A20,'Motivo del pagamento'!$C$9:$R$2008,16,FALSE),"0,00"),1) ->  | BM20: =FLOOR(VLOOKUP($BU$8&"-"&$BU$5&"-"&$A20,'Motivo del pagamento'!$C$9:$S$2008,17,FALSE),1) ->  | BR20: =LEFT(RIGHT(TEXT(VLOOKUP($BU$8&"-"&$BU$5&"-"&$A20,'Motivo del pagamento'!$C$9:$S$2008,17,FALSE),"0,00"),2),1) ->  | BS20: =RIGHT(TEXT(VLOOKUP($BU$8&"-"&$BU$5&"-"&$A20,'Motivo del pagamento'!$C$9:$S$2008,17,FALSE),"0,00"),1) ->  | BU20: =VLOOKUP($BU$8&"-"&$BU$5&"-"&A20,'Motivo del pagamento'!$C$9:$AG$2008,31,FALSE) -> 
A21: 4 | C21: =LEFT(VLOOKUP(VLOOKUP($BU$8&"-"&$BU$5&"-"&$A21,'Motivo del pagamento'!$C$9:$J$2008,8,FALSE),Tabelle!B$5:C$8,2,FALSE),1) ->  | E21: =RIGHT(VLOOKUP(VLOOKUP($BU$8&"-"&$BU$5&"-"&$A21,'Motivo del pagamento'!$C$9:$J$2008,8,FALSE),Tabelle!B$5:C$8,2,FALSE),1) ->  | I21: =VLOOKUP($BU$8&"-"&$BU$5&"-"&$A21,'Motivo del pagamento'!$C$9:$K$2008,9,FALSE) ->  | M21: =MID(VLOOKUP($BU$8&"-"&$BU$5&"-"&$A21,'Motivo del pagamento'!$C$9:$L$2008,10,FALSE),1,1) ->  | N21: =MID(VLOOKUP($BU$8&"-"&$BU$5&"-"&$A21,'Motivo del pagamento'!$C$9:$L$2008,10,FALSE),2,1) ->  | O21: =MID(VLOOKUP($BU$8&"-"&$BU$5&"-"&$A21,'Motivo del pagamento'!$C$9:$L$2008,10,FALSE),3,1) ->  | Q21: =MID(VLOOKUP($BU$8&"-"&$BU$5&"-"&$A21,'Motivo del pagamento'!$C$9:$L$2008,10,FALSE),4,1) ->  | T21: =VLOOKUP(VLOOKUP($BU$8&"-"&$BU$5&"-"&$A21,'Motivo del pagamento'!$C$9:$M$2008,11,FALSE),'Motivo del pagamento'!$O$2022:$P$2025,2,FALSE) ->  | W21: =VLOOKUP(VLOOKUP($BU$8&"-"&$BU$5&"-"&$A21,'Motivo del pagamento'!$C$9:$M$2008,11,FALSE),'Motivo del pagamento'!$O$2022:$Q$2025,3,FALSE) ->  | Y21: =VLOOKUP(VLOOKUP($BU$8&"-"&$BU$5&"-"&$A21,'Motivo del pagamento'!$C$9:$M$2008,11,FALSE),'Motivo del pagamento'!$O$2022:$R$2025,4,FALSE) ->  | AB21: =VLOOKUP(VLOOKUP($BU$8&"-"&$BU$5&"-"&$A21,'Motivo del pagamento'!$C$9:$M$2008,11,FALSE),'Motivo del pagamento'!$O$2022:$S$2025,5,FALSE) ->  | AE21: =VLOOKUP($BU$8&"-"&$BU$5&"-"&$A21,'Motivo del pagamento'!$C$9:$N$2008,12,FALSE) ->  | AJ21: =VLOOKUP($BU$8&"-"&$BU$5&"-"&$A21,'Motivo del pagamento'!$C$9:$O$2008,13,FALSE) ->  | AN21: =VLOOKUP($BU$8&"-"&$BU$5&"-"&$A21,'Motivo del pagamento'!$C$9:$P$2008,14,FALSE) ->  | AQ21: =FLOOR(VLOOKUP($BU$8&"-"&$BU$5&"-"&$A21,'Motivo del pagamento'!$C$9:$Q$2008,15,FALSE),1) ->  | AY21: =LEFT(RIGHT(TEXT(VLOOKUP($BU$8&"-"&$BU$5&"-"&$A21,'Motivo del pagamento'!$C$9:$Q$2008,15,FALSE),"0,00"),2),1) ->  | AZ21: =RIGHT(TEXT(VLOOKUP($BU$8&"-"&$BU$5&"-"&$A21,'Motivo del pagamento'!$C$9:$Q$2008,15,FALSE),"0,00"),1) ->  | BB21: =FLOOR(VLOOKUP($BU$8&"-"&$BU$5&"-"&$A21,'Motivo del pagamento'!$C$9:$R$2008,16,FALSE),1) ->  | BH21: =LEFT(RIGHT(TEXT(VLOOKUP($BU$8&"-"&$BU$5&"-"&$A21,'Motivo del pagamento'!$C$9:$R$2008,16,FALSE),"0,00"),2),1) ->  | BJ21: =RIGHT(TEXT(VLOOKUP($BU$8&"-"&$BU$5&"-"&$A21,'Motivo del pagamento'!$C$9:$R$2008,16,FALSE),"0,00"),1) ->  | BM21: =FLOOR(VLOOKUP($BU$8&"-"&$BU$5&"-"&$A21,'Motivo del pagamento'!$C$9:$S$2008,17,FALSE),1) ->  | BR21: =LEFT(RIGHT(TEXT(VLOOKUP($BU$8&"-"&$BU$5&"-"&$A21,'Motivo del pagamento'!$C$9:$S$2008,17,FALSE),"0,00"),2),1) ->  | BS21: =RIGHT(TEXT(VLOOKUP($BU$8&"-"&$BU$5&"-"&$A21,'Motivo del pagamento'!$C$9:$S$2008,17,FALSE),"0,00"),1) ->  | BU21: =VLOOKUP($BU$8&"-"&$BU$5&"-"&A21,'Motivo del pagamento'!$C$9:$AG$2008,31,FALSE) -> 
A22: 5 | C22: =LEFT(VLOOKUP(VLOOKUP($BU$8&"-"&$BU$5&"-"&$A22,'Motivo del pagamento'!$C$9:$J$2008,8,FALSE),Tabelle!B$5:C$8,2,FALSE),1) ->  | E22: =RIGHT(VLOOKUP(VLOOKUP($BU$8&"-"&$BU$5&"-"&$A22,'Motivo del pagamento'!$C$9:$J$2008,8,FALSE),Tabelle!B$5:C$8,2,FALSE),1) ->  | I22: =VLOOKUP($BU$8&"-"&$BU$5&"-"&$A22,'Motivo del pagamento'!$C$9:$K$2008,9,FALSE) ->  | M22: =MID(VLOOKUP($BU$8&"-"&$BU$5&"-"&$A22,'Motivo del pagamento'!$C$9:$L$2008,10,FALSE),1,1) ->  | N22: =MID(VLOOKUP($BU$8&"-"&$BU$5&"-"&$A22,'Motivo del pagamento'!$C$9:$L$2008,10,FALSE),2,1) ->  | O22: =MID(VLOOKUP($BU$8&"-"&$BU$5&"-"&$A22,'Motivo del pagamento'!$C$9:$L$2008,10,FALSE),3,1) ->  | Q22: =MID(VLOOKUP($BU$8&"-"&$BU$5&"-"&$A22,'Motivo del pagamento'!$C$9:$L$2008,10,FALSE),4,1) ->  | T22: =VLOOKUP(VLOOKUP($BU$8&"-"&$BU$5&"-"&$A22,'Motivo del pagamento'!$C$9:$M$2008,11,FALSE),'Motivo del pagamento'!$O$2022:$P$2025,2,FALSE) ->  | W22: =VLOOKUP(VLOOKUP($BU$8&"-"&$BU$5&"-"&$A22,'Motivo del pagamento'!$C$9:$M$2008,11,FALSE),'Motivo del pagamento'!$O$2022:$Q$2025,3,FALSE) ->  | Y22: =VLOOKUP(VLOOKUP($BU$8&"-"&$BU$5&"-"&$A22,'Motivo del pagamento'!$C$9:$M$2008,11,FALSE),'Motivo del pagamento'!$O$2022:$R$2025,4,FALSE) ->  | AB22: =VLOOKUP(VLOOKUP($BU$8&"-"&$BU$5&"-"&$A22,'Motivo del pagamento'!$C$9:$M$2008,11,FALSE),'Motivo del pagamento'!$O$2022:$S$2025,5,FALSE) ->  | AE22: =VLOOKUP($BU$8&"-"&$BU$5&"-"&$A22,'Motivo del pagamento'!$C$9:$N$2008,12,FALSE) ->  | AJ22: =VLOOKUP($BU$8&"-"&$BU$5&"-"&$A22,'Motivo del pagamento'!$C$9:$O$2008,13,FALSE) ->  | AN22: =VLOOKUP($BU$8&"-"&$BU$5&"-"&$A22,'Motivo del pagamento'!$C$9:$P$2008,14,FALSE) ->  | AQ22: =FLOOR(VLOOKUP($BU$8&"-"&$BU$5&"-"&$A22,'Motivo del pagamento'!$C$9:$Q$2008,15,FALSE),1) ->  | AY22: =LEFT(RIGHT(TEXT(VLOOKUP($BU$8&"-"&$BU$5&"-"&$A22,'Motivo del pagamento'!$C$9:$Q$2008,15,FALSE),"0,00"),2),1) ->  | AZ22: =RIGHT(TEXT(VLOOKUP($BU$8&"-"&$BU$5&"-"&$A22,'Motivo del pagamento'!$C$9:$Q$2008,15,FALSE),"0,00"),1) ->  | BB22: =FLOOR(VLOOKUP($BU$8&"-"&$BU$5&"-"&$A22,'Motivo del pagamento'!$C$9:$R$2008,16,FALSE),1) ->  | BH22: =LEFT(RIGHT(TEXT(VLOOKUP($BU$8&"-"&$BU$5&"-"&$A22,'Motivo del pagamento'!$C$9:$R$2008,16,FALSE),"0,00"),2),1) ->  | BJ22: =RIGHT(TEXT(VLOOKUP($BU$8&"-"&$BU$5&"-"&$A22,'Motivo del pagamento'!$C$9:$R$2008,16,FALSE),"0,00"),1) ->  | BM22: =FLOOR(VLOOKUP($BU$8&"-"&$BU$5&"-"&$A22,'Motivo del pagamento'!$C$9:$S$2008,17,FALSE),1) ->  | BR22: =LEFT(RIGHT(TEXT(VLOOKUP($BU$8&"-"&$BU$5&"-"&$A22,'Motivo del pagamento'!$C$9:$S$2008,17,FALSE),"0,00"),2),1) ->  | BS22: =RIGHT(TEXT(VLOOKUP($BU$8&"-"&$BU$5&"-"&$A22,'Motivo del pagamento'!$C$9:$S$2008,17,FALSE),"0,00"),1) ->  | BU22: =VLOOKUP($BU$8&"-"&$BU$5&"-"&A22,'Motivo del pagamento'!$C$9:$AG$2008,31,FALSE) -> 
A23: 6 | C23: =LEFT(VLOOKUP(VLOOKUP($BU$8&"-"&$BU$5&"-"&$A23,'Motivo del pagamento'!$C$9:$J$2008,8,FALSE),Tabelle!B$5:C$8,2,FALSE),1) ->  | E23: =RIGHT(VLOOKUP(VLOOKUP($BU$8&"-"&$BU$5&"-"&$A23,'Motivo del pagamento'!$C$9:$J$2008,8,FALSE),Tabelle!B$5:C$8,2,FALSE),1) ->  | I23: =VLOOKUP($BU$8&"-"&$BU$5&"-"&$A23,'Motivo del pagamento'!$C$9:$K$2008,9,FALSE) ->  | M23: =MID(VLOOKUP($BU$8&"-"&$BU$5&"-"&$A23,'Motivo del pagamento'!$C$9:$L$2008,10,FALSE),1,1) ->  | N23: =MID(VLOOKUP($BU$8&"-"&$BU$5&"-"&$A23,'Motivo del pagamento'!$C$9:$L$2008,10,FALSE),2,1) ->  | O23: =MID(VLOOKUP($BU$8&"-"&$BU$5&"-"&$A23,'Motivo del pagamento'!$C$9:$L$2008,10,FALSE),3,1) ->  | Q23: =MID(VLOOKUP($BU$8&"-"&$BU$5&"-"&$A23,'Motivo del pagamento'!$C$9:$L$2008,10,FALSE),4,1) ->  | T23: =VLOOKUP(VLOOKUP($BU$8&"-"&$BU$5&"-"&$A23,'Motivo del pagamento'!$C$9:$M$2008,11,FALSE),'Motivo del pagamento'!$O$2022:$P$2025,2,FALSE) ->  | W23: =VLOOKUP(VLOOKUP($BU$8&"-"&$BU$5&"-"&$A23,'Motivo del pagamento'!$C$9:$M$2008,11,FALSE),'Motivo del pagamento'!$O$2022:$Q$2025,3,FALSE) ->  | Y23: =VLOOKUP(VLOOKUP($BU$8&"-"&$BU$5&"-"&$A23,'Motivo del pagamento'!$C$9:$M$2008,11,FALSE),'Motivo del pagamento'!$O$2022:$R$2025,4,FALSE) ->  | AB23: =VLOOKUP(VLOOKUP($BU$8&"-"&$BU$5&"-"&$A23,'Motivo del pagamento'!$C$9:$M$2008,11,FALSE),'Motivo del pagamento'!$O$2022:$S$2025,5,FALSE) ->  | AE23: =VLOOKUP($BU$8&"-"&$BU$5&"-"&$A23,'Motivo del pagamento'!$C$9:$N$2008,12,FALSE) ->  | AJ23: =VLOOKUP($BU$8&"-"&$BU$5&"-"&$A23,'Motivo del pagamento'!$C$9:$O$2008,13,FALSE) ->  | AN23: =VLOOKUP($BU$8&"-"&$BU$5&"-"&$A23,'Motivo del pagamento'!$C$9:$P$2008,14,FALSE) ->  | AQ23: =FLOOR(VLOOKUP($BU$8&"-"&$BU$5&"-"&$A23,'Motivo del pagamento'!$C$9:$Q$2008,15,FALSE),1) ->  | AY23: =LEFT(RIGHT(TEXT(VLOOKUP($BU$8&"-"&$BU$5&"-"&$A23,'Motivo del pagamento'!$C$9:$Q$2008,15,FALSE),"0,00"),2),1) ->  | AZ23: =RIGHT(TEXT(VLOOKUP($BU$8&"-"&$BU$5&"-"&$A23,'Motivo del pagamento'!$C$9:$Q$2008,15,FALSE),"0,00"),1) ->  | BB23: =FLOOR(VLOOKUP($BU$8&"-"&$BU$5&"-"&$A23,'Motivo del pagamento'!$C$9:$R$2008,16,FALSE),1) ->  | BH23: =LEFT(RIGHT(TEXT(VLOOKUP($BU$8&"-"&$BU$5&"-"&$A23,'Motivo del pagamento'!$C$9:$R$2008,16,FALSE),"0,00"),2),1) ->  | BJ23: =RIGHT(TEXT(VLOOKUP($BU$8&"-"&$BU$5&"-"&$A23,'Motivo del pagamento'!$C$9:$R$2008,16,FALSE),"0,00"),1) ->  | BM23: =FLOOR(VLOOKUP($BU$8&"-"&$BU$5&"-"&$A23,'Motivo del pagamento'!$C$9:$S$2008,17,FALSE),1) ->  | BR23: =LEFT(RIGHT(TEXT(VLOOKUP($BU$8&"-"&$BU$5&"-"&$A23,'Motivo del pagamento'!$C$9:$S$2008,17,FALSE),"0,00"),2),1) ->  | BS23: =RIGHT(TEXT(VLOOKUP($BU$8&"-"&$BU$5&"-"&$A23,'Motivo del pagamento'!$C$9:$S$2008,17,FALSE),"0,00"),1) ->  | BU23: =VLOOKUP($BU$8&"-"&$BU$5&"-"&A23,'Motivo del pagamento'!$C$9:$AG$2008,31,FALSE) -> 
A24: 7 | C24: =LEFT(VLOOKUP(VLOOKUP($BU$8&"-"&$BU$5&"-"&$A24,'Motivo del pagamento'!$C$9:$J$2008,8,FALSE),Tabelle!B$5:C$8,2,FALSE),1) ->  | E24: =RIGHT(VLOOKUP(VLOOKUP($BU$8&"-"&$BU$5&"-"&$A24,'Motivo del pagamento'!$C$9:$J$2008,8,FALSE),Tabelle!B$5:C$8,2,FALSE),1) ->  | I24: =VLOOKUP($BU$8&"-"&$BU$5&"-"&$A24,'Motivo del pagamento'!$C$9:$K$2008,9,FALSE) ->  | M24: =MID(VLOOKUP($BU$8&"-"&$BU$5&"-"&$A24,'Motivo del pagamento'!$C$9:$L$2008,10,FALSE),1,1) ->  | N24: =MID(VLOOKUP($BU$8&"-"&$BU$5&"-"&$A24,'Motivo del pagamento'!$C$9:$L$2008,10,FALSE),2,1) ->  | O24: =MID(VLOOKUP($BU$8&"-"&$BU$5&"-"&$A24,'Motivo del pagamento'!$C$9:$L$2008,10,FALSE),3,1) ->  | Q24: =MID(VLOOKUP($BU$8&"-"&$BU$5&"-"&$A24,'Motivo del pagamento'!$C$9:$L$2008,10,FALSE),4,1) ->  | T24: =VLOOKUP(VLOOKUP($BU$8&"-"&$BU$5&"-"&$A24,'Motivo del pagamento'!$C$9:$M$2008,11,FALSE),'Motivo del pagamento'!$O$2022:$P$2025,2,FALSE) ->  | W24: =VLOOKUP(VLOOKUP($BU$8&"-"&$BU$5&"-"&$A24,'Motivo del pagamento'!$C$9:$M$2008,11,FALSE),'Motivo del pagamento'!$O$2022:$Q$2025,3,FALSE) ->  | Y24: =VLOOKUP(VLOOKUP($BU$8&"-"&$BU$5&"-"&$A24,'Motivo del pagamento'!$C$9:$M$2008,11,FALSE),'Motivo del pagamento'!$O$2022:$R$2025,4,FALSE) ->  | AB24: =VLOOKUP(VLOOKUP($BU$8&"-"&$BU$5&"-"&$A24,'Motivo del pagamento'!$C$9:$M$2008,11,FALSE),'Motivo del pagamento'!$O$2022:$S$2025,5,FALSE) ->  | AE24: =VLOOKUP($BU$8&"-"&$BU$5&"-"&$A24,'Motivo del pagamento'!$C$9:$N$2008,12,FALSE) ->  | AJ24: =VLOOKUP($BU$8&"-"&$BU$5&"-"&$A24,'Motivo del pagamento'!$C$9:$O$2008,13,FALSE) ->  | AN24: =VLOOKUP($BU$8&"-"&$BU$5&"-"&$A24,'Motivo del pagamento'!$C$9:$P$2008,14,FALSE) ->  | AQ24: =FLOOR(VLOOKUP($BU$8&"-"&$BU$5&"-"&$A24,'Motivo del pagamento'!$C$9:$Q$2008,15,FALSE),1) ->  | AY24: =LEFT(RIGHT(TEXT(VLOOKUP($BU$8&"-"&$BU$5&"-"&$A24,'Motivo del pagamento'!$C$9:$Q$2008,15,FALSE),"0,00"),2),1) ->  | AZ24: =RIGHT(TEXT(VLOOKUP($BU$8&"-"&$BU$5&"-"&$A24,'Motivo del pagamento'!$C$9:$Q$2008,15,FALSE),"0,00"),1) ->  | BB24: =FLOOR(VLOOKUP($BU$8&"-"&$BU$5&"-"&$A24,'Motivo del pagamento'!$C$9:$R$2008,16,FALSE),1) ->  | BH24: =LEFT(RIGHT(TEXT(VLOOKUP($BU$8&"-"&$BU$5&"-"&$A24,'Motivo del pagamento'!$C$9:$R$2008,16,FALSE),"0,00"),2),1) ->  | BJ24: =RIGHT(TEXT(VLOOKUP($BU$8&"-"&$BU$5&"-"&$A24,'Motivo del pagamento'!$C$9:$R$2008,16,FALSE),"0,00"),1) ->  | BM24: =FLOOR(VLOOKUP($BU$8&"-"&$BU$5&"-"&$A24,'Motivo del pagamento'!$C$9:$S$2008,17,FALSE),1) ->  | BR24: =LEFT(RIGHT(TEXT(VLOOKUP($BU$8&"-"&$BU$5&"-"&$A24,'Motivo del pagamento'!$C$9:$S$2008,17,FALSE),"0,00"),2),1) ->  | BS24: =RIGHT(TEXT(VLOOKUP($BU$8&"-"&$BU$5&"-"&$A24,'Motivo del pagamento'!$C$9:$S$2008,17,FALSE),"0,00"),1) ->  | BU24: =VLOOKUP($BU$8&"-"&$BU$5&"-"&A24,'Motivo del pagamento'!$C$9:$AG$2008,31,FALSE) -> 
A25: 8 | C25: =LEFT(VLOOKUP(VLOOKUP($BU$8&"-"&$BU$5&"-"&$A25,'Motivo del pagamento'!$C$9:$J$2008,8,FALSE),Tabelle!B$5:C$8,2,FALSE),1) ->  | E25: =RIGHT(VLOOKUP(VLOOKUP($BU$8&"-"&$BU$5&"-"&$A25,'Motivo del pagamento'!$C$9:$J$2008,8,FALSE),Tabelle!B$5:C$8,2,FALSE),1) ->  | I25: =VLOOKUP($BU$8&"-"&$BU$5&"-"&$A25,'Motivo del pagamento'!$C$9:$K$2008,9,FALSE) ->  | M25: =MID(VLOOKUP($BU$8&"-"&$BU$5&"-"&$A25,'Motivo del pagamento'!$C$9:$L$2008,10,FALSE),1,1) ->  | N25: =MID(VLOOKUP($BU$8&"-"&$BU$5&"-"&$A25,'Motivo del pagamento'!$C$9:$L$2008,10,FALSE),2,1) ->  | O25: =MID(VLOOKUP($BU$8&"-"&$BU$5&"-"&$A25,'Motivo del pagamento'!$C$9:$L$2008,10,FALSE),3,1) ->  | Q25: =MID(VLOOKUP($BU$8&"-"&$BU$5&"-"&$A25,'Motivo del pagamento'!$C$9:$L$2008,10,FALSE),4,1) ->  | T25: =VLOOKUP(VLOOKUP($BU$8&"-"&$BU$5&"-"&$A25,'Motivo del pagamento'!$C$9:$M$2008,11,FALSE),'Motivo del pagamento'!$O$2022:$P$2025,2,FALSE) ->  | W25: =VLOOKUP(VLOOKUP($BU$8&"-"&$BU$5&"-"&$A25,'Motivo del pagamento'!$C$9:$M$2008,11,FALSE),'Motivo del pagamento'!$O$2022:$Q$2025,3,FALSE) ->  | Y25: =VLOOKUP(VLOOKUP($BU$8&"-"&$BU$5&"-"&$A25,'Motivo del pagamento'!$C$9:$M$2008,11,FALSE),'Motivo del pagamento'!$O$2022:$R$2025,4,FALSE) ->  | AB25: =VLOOKUP(VLOOKUP($BU$8&"-"&$BU$5&"-"&$A25,'Motivo del pagamento'!$C$9:$M$2008,11,FALSE),'Motivo del pagamento'!$O$2022:$S$2025,5,FALSE) ->  | AE25: =VLOOKUP($BU$8&"-"&$BU$5&"-"&$A25,'Motivo del pagamento'!$C$9:$N$2008,12,FALSE) ->  | AJ25: =VLOOKUP($BU$8&"-"&$BU$5&"-"&$A25,'Motivo del pagamento'!$C$9:$O$2008,13,FALSE) ->  | AN25: =VLOOKUP($BU$8&"-"&$BU$5&"-"&$A25,'Motivo del pagamento'!$C$9:$P$2008,14,FALSE) ->  | AQ25: =FLOOR(VLOOKUP($BU$8&"-"&$BU$5&"-"&$A25,'Motivo del pagamento'!$C$9:$Q$2008,15,FALSE),1) ->  | AY25: =LEFT(RIGHT(TEXT(VLOOKUP($BU$8&"-"&$BU$5&"-"&$A25,'Motivo del pagamento'!$C$9:$Q$2008,15,FALSE),"0,00"),2),1) ->  | AZ25: =RIGHT(TEXT(VLOOKUP($BU$8&"-"&$BU$5&"-"&$A25,'Motivo del pagamento'!$C$9:$Q$2008,15,FALSE),"0,00"),1) ->  | BB25: =FLOOR(VLOOKUP($BU$8&"-"&$BU$5&"-"&$A25,'Motivo del pagamento'!$C$9:$R$2008,16,FALSE),1) ->  | BH25: =LEFT(RIGHT(TEXT(VLOOKUP($BU$8&"-"&$BU$5&"-"&$A25,'Motivo del pagamento'!$C$9:$R$2008,16,FALSE),"0,00"),2),1) ->  | BJ25: =RIGHT(TEXT(VLOOKUP($BU$8&"-"&$BU$5&"-"&$A25,'Motivo del pagamento'!$C$9:$R$2008,16,FALSE),"0,00"),1) ->  | BM25: =FLOOR(VLOOKUP($BU$8&"-"&$BU$5&"-"&$A25,'Motivo del pagamento'!$C$9:$S$2008,17,FALSE),1) ->  | BR25: =LEFT(RIGHT(TEXT(VLOOKUP($BU$8&"-"&$BU$5&"-"&$A25,'Motivo del pagamento'!$C$9:$S$2008,17,FALSE),"0,00"),2),1) ->  | BS25: =RIGHT(TEXT(VLOOKUP($BU$8&"-"&$BU$5&"-"&$A25,'Motivo del pagamento'!$C$9:$S$2008,17,FALSE),"0,00"),1) ->  | BU25: =VLOOKUP($BU$8&"-"&$BU$5&"-"&A25,'Motivo del pagamento'!$C$9:$AG$2008,31,FALSE) -> 
A26: 9 | C26: =LEFT(VLOOKUP(VLOOKUP($BU$8&"-"&$BU$5&"-"&$A26,'Motivo del pagamento'!$C$9:$J$2008,8,FALSE),Tabelle!B$5:C$8,2,FALSE),1) ->  | E26: =RIGHT(VLOOKUP(VLOOKUP($BU$8&"-"&$BU$5&"-"&$A26,'Motivo del pagamento'!$C$9:$J$2008,8,FALSE),Tabelle!B$5:C$8,2,FALSE),1) ->  | I26: =VLOOKUP($BU$8&"-"&$BU$5&"-"&$A26,'Motivo del pagamento'!$C$9:$K$2008,9,FALSE) ->  | M26: =MID(VLOOKUP($BU$8&"-"&$BU$5&"-"&$A26,'Motivo del pagamento'!$C$9:$L$2008,10,FALSE),1,1) ->  | N26: =MID(VLOOKUP($BU$8&"-"&$BU$5&"-"&$A26,'Motivo del pagamento'!$C$9:$L$2008,10,FALSE),2,1) ->  | O26: =MID(VLOOKUP($BU$8&"-"&$BU$5&"-"&$A26,'Motivo del pagamento'!$C$9:$L$2008,10,FALSE),3,1) ->  | Q26: =MID(VLOOKUP($BU$8&"-"&$BU$5&"-"&$A26,'Motivo del pagamento'!$C$9:$L$2008,10,FALSE),4,1) ->  | T26: =VLOOKUP(VLOOKUP($BU$8&"-"&$BU$5&"-"&$A26,'Motivo del pagamento'!$C$9:$M$2008,11,FALSE),'Motivo del pagamento'!$O$2022:$P$2025,2,FALSE) ->  | W26: =VLOOKUP(VLOOKUP($BU$8&"-"&$BU$5&"-"&$A26,'Motivo del pagamento'!$C$9:$M$2008,11,FALSE),'Motivo del pagamento'!$O$2022:$Q$2025,3,FALSE) ->  | Y26: =VLOOKUP(VLOOKUP($BU$8&"-"&$BU$5&"-"&$A26,'Motivo del pagamento'!$C$9:$M$2008,11,FALSE),'Motivo del pagamento'!$O$2022:$R$2025,4,FALSE) ->  | AB26: =VLOOKUP(VLOOKUP($BU$8&"-"&$BU$5&"-"&$A26,'Motivo del pagamento'!$C$9:$M$2008,11,FALSE),'Motivo del pagamento'!$O$2022:$S$2025,5,FALSE) ->  | AE26: =VLOOKUP($BU$8&"-"&$BU$5&"-"&$A26,'Motivo del pagamento'!$C$9:$N$2008,12,FALSE) ->  | AJ26: =VLOOKUP($BU$8&"-"&$BU$5&"-"&$A26,'Motivo del pagamento'!$C$9:$O$2008,13,FALSE) ->  | AN26: =VLOOKUP($BU$8&"-"&$BU$5&"-"&$A26,'Motivo del pagamento'!$C$9:$P$2008,14,FALSE) ->  | AQ26: =FLOOR(VLOOKUP($BU$8&"-"&$BU$5&"-"&$A26,'Motivo del pagamento'!$C$9:$Q$2008,15,FALSE),1) ->  | AY26: =LEFT(RIGHT(TEXT(VLOOKUP($BU$8&"-"&$BU$5&"-"&$A26,'Motivo del pagamento'!$C$9:$Q$2008,15,FALSE),"0,00"),2),1) ->  | AZ26: =RIGHT(TEXT(VLOOKUP($BU$8&"-"&$BU$5&"-"&$A26,'Motivo del pagamento'!$C$9:$Q$2008,15,FALSE),"0,00"),1) ->  | BB26: =FLOOR(VLOOKUP($BU$8&"-"&$BU$5&"-"&$A26,'Motivo del pagamento'!$C$9:$R$2008,16,FALSE),1) ->  | BH26: =LEFT(RIGHT(TEXT(VLOOKUP($BU$8&"-"&$BU$5&"-"&$A26,'Motivo del pagamento'!$C$9:$R$2008,16,FALSE),"0,00"),2),1) ->  | BJ26: =RIGHT(TEXT(VLOOKUP($BU$8&"-"&$BU$5&"-"&$A26,'Motivo del pagamento'!$C$9:$R$2008,16,FALSE),"0,00"),1) ->  | BM26: =FLOOR(VLOOKUP($BU$8&"-"&$BU$5&"-"&$A26,'Motivo del pagamento'!$C$9:$S$2008,17,FALSE),1) ->  | BR26: =LEFT(RIGHT(TEXT(VLOOKUP($BU$8&"-"&$BU$5&"-"&$A26,'Motivo del pagamento'!$C$9:$S$2008,17,FALSE),"0,00"),2),1) ->  | BS26: =RIGHT(TEXT(VLOOKUP($BU$8&"-"&$BU$5&"-"&$A26,'Motivo del pagamento'!$C$9:$S$2008,17,FALSE),"0,00"),1) ->  | BU26: =VLOOKUP($BU$8&"-"&$BU$5&"-"&A26,'Motivo del pagamento'!$C$9:$AG$2008,31,FALSE) -> 
A27: 10 | C27: =LEFT(VLOOKUP(VLOOKUP($BU$8&"-"&$BU$5&"-"&$A27,'Motivo del pagamento'!$C$9:$J$2008,8,FALSE),Tabelle!B$5:C$8,2,FALSE),1) ->  | E27: =RIGHT(VLOOKUP(VLOOKUP($BU$8&"-"&$BU$5&"-"&$A27,'Motivo del pagamento'!$C$9:$J$2008,8,FALSE),Tabelle!B$5:C$8,2,FALSE),1) ->  | I27: =VLOOKUP($BU$8&"-"&$BU$5&"-"&$A27,'Motivo del pagamento'!$C$9:$K$2008,9,FALSE) ->  | M27: =MID(VLOOKUP($BU$8&"-"&$BU$5&"-"&$A27,'Motivo del pagamento'!$C$9:$L$2008,10,FALSE),1,1) ->  | N27: =MID(VLOOKUP($BU$8&"-"&$BU$5&"-"&$A27,'Motivo del pagamento'!$C$9:$L$2008,10,FALSE),2,1) ->  | O27: =MID(VLOOKUP($BU$8&"-"&$BU$5&"-"&$A27,'Motivo del pagamento'!$C$9:$L$2008,10,FALSE),3,1) ->  | Q27: =MID(VLOOKUP($BU$8&"-"&$BU$5&"-"&$A27,'Motivo del pagamento'!$C$9:$L$2008,10,FALSE),4,1) ->  | T27: =VLOOKUP(VLOOKUP($BU$8&"-"&$BU$5&"-"&$A27,'Motivo del pagamento'!$C$9:$M$2008,11,FALSE),'Motivo del pagamento'!$O$2022:$P$2025,2,FALSE) ->  | W27: =VLOOKUP(VLOOKUP($BU$8&"-"&$BU$5&"-"&$A27,'Motivo del pagamento'!$C$9:$M$2008,11,FALSE),'Motivo del pagamento'!$O$2022:$Q$2025,3,FALSE) ->  | Y27: =VLOOKUP(VLOOKUP($BU$8&"-"&$BU$5&"-"&$A27,'Motivo del pagamento'!$C$9:$M$2008,11,FALSE),'Motivo del pagamento'!$O$2022:$R$2025,4,FALSE) ->  | AB27: =VLOOKUP(VLOOKUP($BU$8&"-"&$BU$5&"-"&$A27,'Motivo del pagamento'!$C$9:$M$2008,11,FALSE),'Motivo del pagamento'!$O$2022:$S$2025,5,FALSE) ->  | AE27: =VLOOKUP($BU$8&"-"&$BU$5&"-"&$A27,'Motivo del pagamento'!$C$9:$N$2008,12,FALSE) ->  | AJ27: =VLOOKUP($BU$8&"-"&$BU$5&"-"&$A27,'Motivo del pagamento'!$C$9:$O$2008,13,FALSE) ->  | AN27: =VLOOKUP($BU$8&"-"&$BU$5&"-"&$A27,'Motivo del pagamento'!$C$9:$P$2008,14,FALSE) ->  | AQ27: =FLOOR(VLOOKUP($BU$8&"-"&$BU$5&"-"&$A27,'Motivo del pagamento'!$C$9:$Q$2008,15,FALSE),1) ->  | AY27: =LEFT(RIGHT(TEXT(VLOOKUP($BU$8&"-"&$BU$5&"-"&$A27,'Motivo del pagamento'!$C$9:$Q$2008,15,FALSE),"0,00"),2),1) ->  | AZ27: =RIGHT(TEXT(VLOOKUP($BU$8&"-"&$BU$5&"-"&$A27,'Motivo del pagamento'!$C$9:$Q$2008,15,FALSE),"0,00"),1) ->  | BB27: =FLOOR(VLOOKUP($BU$8&"-"&$BU$5&"-"&$A27,'Motivo del pagamento'!$C$9:$R$2008,16,FALSE),1) ->  | BH27: =LEFT(RIGHT(TEXT(VLOOKUP($BU$8&"-"&$BU$5&"-"&$A27,'Motivo del pagamento'!$C$9:$R$2008,16,FALSE),"0,00"),2),1) ->  | BJ27: =RIGHT(TEXT(VLOOKUP($BU$8&"-"&$BU$5&"-"&$A27,'Motivo del pagamento'!$C$9:$R$2008,16,FALSE),"0,00"),1) ->  | BM27: =FLOOR(VLOOKUP($BU$8&"-"&$BU$5&"-"&$A27,'Motivo del pagamento'!$C$9:$S$2008,17,FALSE),1) ->  | BR27: =LEFT(RIGHT(TEXT(VLOOKUP($BU$8&"-"&$BU$5&"-"&$A27,'Motivo del pagamento'!$C$9:$S$2008,17,FALSE),"0,00"),2),1) ->  | BS27: =RIGHT(TEXT(VLOOKUP($BU$8&"-"&$BU$5&"-"&$A27,'Motivo del pagamento'!$C$9:$S$2008,17,FALSE),"0,00"),1) ->  | BU27: =VLOOKUP($BU$8&"-"&$BU$5&"-"&A27,'Motivo del pagamento'!$C$9:$AG$2008,31,FALSE) -> 
BM28: =IF(SUMIF('Motivo del pagamento'!B9:B2008,BU8&"-"&BU5,'Motivo del pagamento'!R9:R2008)>=SUMIF('Motivo del pagamento'!B9:B2008,BU8&"-"&BU5,'Motivo del pagamento'!S9:S2008),FLOOR(SUMIF('Motivo del pagamento'!B9:B2008,BU8&"-"&BU5,'Motivo del pagamento'!R9:R2008)-SUMIF('Motivo del pagamento'!B9:B2008,BU8&"-"&BU5,'Motivo del pagamento'!S9:S2008),1),"Error") -> 1 | BR28: =IF(BM28="Error",0,LEFT(RIGHT(TEXT(SUMIF('Motivo del pagamento'!B9:B2008,BU8&"-"&BU5,'Motivo del pagamento'!R9:R2008)-SUMIF('Motivo del pagamento'!B9:B2008,BU8&"-"&BU5,'Motivo del pagamento'!S9:S2008),"0,00"),2),1)) -> 0 | BS28: =IF(BM28="Error",0,RIGHT(TEXT(SUMIF('Motivo del pagamento'!B9:B2008,BU8&"-"&BU5,'Motivo del pagamento'!R9:R2008)-SUMIF('Motivo del pagamento'!B9:B2008,BU8&"-"&BU5,'Motivo del pagamento'!S9:S2008),"0,00"),1)) -> 0
BI30: =VLOOKUP(BU8&"-"&BU5,'Motivo del pagamento'!B9:AB2008,27,FALSE) -> X
AS31: =VLOOKUP(BU8&"-"&BU5,'Motivo del pagamento'!B9:AA2008,26,FALSE) -> 0123456789 | BI31: =VLOOKUP(BU8&"-"&BU5,'Motivo del pagamento'!B9:AC2008,28,FALSE) -> 
B32: =MID(TEXT(VLOOKUP(BU8&"-"&BU5,'Motivo del pagamento'!B9:E2008,4,FALSE),"GG/MM/AAAA"),1,1) -> 0 | D32: =MID(TEXT(VLOOKUP(BU8&"-"&BU5,'Motivo del pagamento'!B9:E2008,4,FALSE),"GG/MM/AAAA"),2,1) -> 1 | F32: =MID(TEXT(VLOOKUP(BU8&"-"&BU5,'Motivo del pagamento'!B9:E2008,4,FALSE),"GG/MM/AAAA"),4,1) -> 0 | H32: =MID(TEXT(VLOOKUP(BU8&"-"&BU5,'Motivo del pagamento'!B9:E2008,4,FALSE),"GG/MM/AAAA"),5,1) -> 1 | J32: =MID(TEXT(VLOOKUP(BU8&"-"&BU5,'Motivo del pagamento'!B9:E2008,4,FALSE),"GG/MM/AAAA"),7,1) -> 2 | K32: =MID(TEXT(VLOOKUP(BU8&"-"&BU5,'Motivo del pagamento'!B9:E2008,4,FALSE),"GG/MM/AAAA"),8,1) -> 0 | L32: =MID(TEXT(VLOOKUP(BU8&"-"&BU5,'Motivo del pagamento'!B9:E2008,4,FALSE),"GG/MM/AAAA"),9,1) -> 2 | N32: =MID(TEXT(VLOOKUP(BU8&"-"&BU5,'Motivo del pagamento'!B9:E2008,4,FALSE),"GG/MM/AAAA"),10,1) -> 4 | P32: =VLOOKUP(BU8&"-"&BU5,'Motivo del pagamento'!B9:V2008,21,FALSE) -> 00001 | AC32: =VLOOKUP(BU8&"-"&BU5,'Motivo del pagamento'!B9:W2008,22,FALSE) -> 10000 | BA32: =VLOOKUP(BU8&"-"&BU5,'Motivo del pagamento'!B9:AD2008,29,FALSE) -> 01234 | BL32: =VLOOKUP(BU8&"-"&BU5,'Motivo del pagamento'!B9:AE2008,30,FALSE) -> 56789
AQ35: =AQ5 -> Nome Banca 1 / modifica sigla
AQ37: =AQ7 -> Nome Agenzia 1 | BQ37: =BQ7 -> XX
L39: =L9 -> 0 | N39: =N9 -> 1 | P39: =P9 -> 2 | R39: =R9 -> 3 | U39: =U9 -> 4 | W39: =W9 -> 5 | X39: =X9 -> 6 | Z39: =Z9 -> 7 | AC39: =AC9 -> 8 | AE39: =AE9 -> 9 | AG39: =AG9 -> 1 | AJ39: =AJ9 ->  | AK39: =AK9 ->  | AL39: =AL9 ->  | AO39: =AO9 ->  | AP39: =AP9 ->  | AS39: =AS9 -> 1 | AU39: =AU9 -> 2 | AX39: =AX9 -> 3 | BB39: =BB9 -> 0 | BD39: =BD9 -> 1 | BE39: =BE9 -> 2 | BF39: =BF9 -> 3 | BG39: =BG9 -> 4 | BI39: =BI9 -> 0 | BK39: =BK9 -> 5 | BN39: =BN9 -> 6 | BO39: =BO9 -> 7 | BP39: =BP9 -> 8 | BQ39: =BQ9 -> 9 | BR39: =BR9 -> 1
L41: =L11 -> Anagrafica CONTRIBUENTE | BC41: =BC11 -> Nome CONTRIBUENTE
L43: =L13 -> 0 | N43: =N13 -> 1 | P43: =P13 -> 0 | R43: =R13 -> 1 | U43: =U13 -> 2 | W43: =W13 -> 0 | X43: =X13 -> 0 | Z43: =Z13 -> 0 | AF43: =AF13 ->  | AI43: =AI13 -> 0 | BQ43: =BQ13 ->  | BR43: =BR13 ->  | BS43: =BS13 -> 0
W45: =W15 ->  | X45: =X15 ->  | Y45: 0 | AA45: 0 | AB45: 0 | AD45: 0 | AF45: 0 | AH45: 0 | AI45: 0 | AJ45: =AJ15 ->  | AM45: 0 | AN45: 0 | AQ45: =AQ15 ->  | AR45: 0 | AS45: 0 | AU45: 0 | AW45: 0 | AX45: 0 | AZ45: 0 | BB45: 0 | BQ45: =BQ15 ->  | BR45: =BR15 ->  | BS45: =BS15 -> 0
C48: =C18 -> . | D48: 0 | E48: . | F48: 0 | I48: =I18 -> 0101 | J48: 0 | K48: 0 | M48: =M18 -> 0 | N48: 0 | O48: 0 | P48: 0 | Q48: 0 | R48: 0 | T48: =T18 ->  | U48: 0 | W48: =W18 ->  | Y48: =Y18 ->  | Z48: 0 | AB48: =AB18 -> X | AC48: 0 | AE48: =AE18 -> 1 | AF48: 0 | AG48: 0 | AJ48: =AJ18 -> 01 01 | AK48: 0 | AL48: 0 | AN48: =AN18 -> 2020 | AO48: 0 | AP48: 0 | AQ48: 0 | AR48: 0 | AS48: 0 | AT48: 0 | AU48: 0 | AV48: 0 | AW48: 0 | AX48: 0 | AY48: =AY18 -> 0 | AZ48: =AZ18 -> 0 | BB48: =BB18 -> 1 | BC48: 0 | BD48: 0 | BE48: 0 | BF48: 0 | BG48: 0 | BH48: 0 | BI48: 0 | BJ48: 0 | BK48: 0 | BL48: 0 | BM48: 0 | BN48: 0 | BO48: 0 | BP48: 0 | BQ48: 0 | BR48: =BR18 -> 0 | BS48: =BS18 -> 0
D49: 0 | F49: 0 | J49: 0 | K49: 0 | M49: =M19 ->  | P49: 0 | R49: 0 | U49: 0 | W49: =W19 ->  | Z49: 0 | AC49: 0 | AF49: 0 | AG49: 0 | AK49: 0 | AL49: 0 | AN49: =AN19 ->  | AO49: 0 | AP49: 0 | AR49: 0 | AS49: 0 | AT49: 0 | AU49: 0 | AV49: 0 | AW49: 0 | AX49: 0 | BB49: =BB19 ->  | BC49: 0 | BD49: 0 | BE49: 0 | BF49: 0 | BG49: 0 | BI49: 0 | BK49: 0 | BL49: 0 | BN49: 0 | BO49: 0 | BP49: 0 | BQ49: 0
D50: 0 | F50: 0 | J50: 0 | K50: 0 | P50: 0 | R50: 0 | U50: 0 | Z50: 0 | AC50: 0 | AF50: 0 | AG50: 0 | AK50: 0 | AL50: 0 | AN50: =AN20 ->  | AO50: 0 | AP50: 0 | AR50: 0 | AS50: 0 | AT50: 0 | AU50: 0 | AV50: 0 | AW50: 0 | AX50: 0 | BB50: =BB20 ->  | BC50: 0 | BD50: 0 | BE50: 0 | BF50: 0 | BG50: 0 | BI50: 0 | BK50: 0 | BL50: 0 | BN50: 0 | BO50: 0 | BP50: 0 | BQ50: 0
D51: 0 | F51: 0 | J51: 0 | K51: 0 | P51: 0 | R51: 0 | U51: 0 | Z51: 0 | AC51: 0 | AF51: 0 | AG51: 0 | AK51: 0 | AL51: 0 | AN51: =AN21 ->  | AO51: 0 | AP51: 0 | AR51: 0 | AS51: 0 | AT51: 0 | AU51: 0 | AV51: 0 | AW51: 0 | AX51: 0 | BB51: =BB21 ->  | BC51: 0 | BD51: 0 | BE51: 0 | BF51: 0 | BG51: 0 | BI51: 0 | BK51: 0 | BL51: 0 | BN51: 0 | BO51: 0 | BP51: 0 | BQ51: 0
D52: 0 | F52: 0 | J52: 0 | K52: 0 | P52: 0 | R52: 0 | U52: 0 | Z52: 0 | AC52: 0 | AF52: 0 | AG52: 0 | AK52: 0 | AL52: 0 | AN52: =AN22 ->  | AO52: 0 | AP52: 0 | AR52: 0 | AS52: 0 | AT52: 0 | AU52: 0 | AV52: 0 | AW52: 0 | AX52: 0 | BB52: =BB22 ->  | BC52: 0 | BD52: 0 | BE52: 0 | BF52: 0 | BG52: 0 | BI52: 0 | BK52: 0 | BL52: 0 | BN52: 0 | BO52: 0 | BP52: 0 | BQ52: 0
D53: 0 | F53: 0 | J53: 0 | K53: 0 | P53: 0 | R53: 0 | U53: 0 | Z53: 0 | AC53: 0 | AF53: 0 | AG53: 0 | AK53: 0 | AL53: 0 | AN53: =AN23 ->  | AO53: 0 | AP53: 0 | AR53: 0 | AS53: 0 | AT53: 0 | AU53: 0 | AV53: 0 | AW53: 0 | AX53: 0 | BB53: =BB23 ->  | BC53: 0 | BD53: 0 | BE53: 0 | BF53: 0 | BG53: 0 | BI53: 0 | BK53: 0 | BL53: 0 | BN53: 0 | BO53: 0 | BP53: 0 | BQ53: 0
D54: 0 | F54: 0 | J54: 0 | K54: 0 | P54: 0 | R54: 0 | U54: 0 | Z54: 0 | AC54: 0 | AF54: 0 | AG54: 0 | AK54: 0 | AL54: 0 | AN54: =AN24 ->  | AO54: 0 | AP54: 0 | AR54: 0 | AS54: 0 | AT54: 0 | AU54: 0 | AV54: 0 | AW54: 0 | AX54: 0 | BB54: =BB24 ->  | BC54: 0 | BD54: 0 | BE54: 0 | BF54: 0 | BG54: 0 | BI54: 0 | BK54: 0 | BL54: 0 | BN54: 0 | BO54: 0 | BP54: 0 | BQ54: 0
D55: 0 | F55: 0 | J55: 0 | K55: 0 | P55: 0 | R55: 0 | U55: 0 | Z55: 0 | AC55: 0 | AF55: 0 | AG55: 0 | AK55: 0 | AL55: 0 | AN55: =AN25 ->  | AO55: 0 | AP55: 0 | AR55: 0 | AS55: 0 | AT55: 0 | AU55: 0 | AV55: 0 | AW55: 0 | AX55: 0 | BB55: =BB25 ->  | BC55: 0 | BD55: 0 | BE55: 0 | BF55: 0 | BG55: 0 | BI55: 0 | BK55: 0 | BL55: 0 | BN55: 0 | BO55: 0 | BP55: 0 | BQ55: 0
D56: 0 | F56: 0 | J56: 0 | K56: 0 | P56: 0 | R56: 0 | U56: 0 | Z56: 0 | AC56: 0 | AF56: 0 | AG56: 0 | AK56: 0 | AL56: 0 | AN56: =AN26 ->  | AO56: 0 | AP56: 0 | AR56: 0 | AS56: 0 | AT56: 0 | AU56: 0 | AV56: 0 | AW56: 0 | AX56: 0 | BB56: =BB26 ->  | BC56: 0 | BD56: 0 | BE56: 0 | BF56: 0 | BG56: 0 | BI56: 0 | BK56: 0 | BL56: 0 | BN56: 0 | BO56: 0 | BP56: 0 | BQ56: 0
D57: 0 | F57: 0 | J57: 0 | K57: 0 | P57: 0 | R57: 0 | U57: 0 | Z57: 0 | AC57: 0 | AF57: 0 | AG57: 0 | AK57: 0 | AL57: 0 | AN57: =AN27 ->  | AO57: 0 | AP57: 0 | AR57: 0 | AS57: 0 | AT57: 0 | AU57: 0 | AV57: 0 | AW57: 0 | AX57: 0 | BB57: =BB27 ->  | BC57: 0 | BD57: 0 | BE57: 0 | BF57: 0 | BG57: 0 | BI57: 0 | BK57: 0 | BL57: 0 | BN57: 0 | BO57: 0 | BP57: 0 | BQ57: 0 | BR57: =BR27 ->  | BS57: =BS27 -> 
BM58: 1 | BN58: 0 | BO58: 0 | BP58: 0 | BQ58: 0 | BR58: =BR28 -> 0 | BS58: =BS28 -> 0
BI60: =BI30 -> X
AS61: =AS31 -> 0123456789 | AT61: 0 | AU61: 0 | AV61: 0 | AW61: 0 | AX61: 0 | AY61: 0 | AZ61: 0 | BA61: 0 | BB61: 0 | BC61: 0 | BD61: 0 | BE61: 0 | BF61: 0 | BI61: =BI31 -> 
B62: =B32 -> 0 | C62: 0 | D62: 1 | E62: 0 | F62: 0 | G62: 0 | H62: 1 | I62: 0 | J62: 2 | K62: 0 | L62: 2 | M62: 0 | N62: 4 | O62: 0 | P62: 00001 | Q62: 0 | R62: =R32 -> 0 | S62: 0 | T62: 0 | U62: 0 | V62: 0 | W62: 0 | X62: 0 | Y62: 0 | Z62: 0 | AA62: 0 | AB62: 0 | AC62: 10000 | AD62: 0 | AE62: 0 | AF62: 0 | AG62: 0 | AH62: 0 | AI62: 0 | AJ62: 0 | AK62: 0 | AL62: 0 | AM62: 0 | AN62: 0 | BA62: =BA32 -> 01234 | BB62: 0 | BC62: 0 | BD62: 0 | BE62: 0 | BF62: 0 | BG62: 0 | BL62: =BL32 -> 56789 | BM62: 0 | BN62: 0 | BO62: 0 | BP62: 0 | BQ62: 0 | BR62: 0 | BU62: =BU8 -> 1
B63: =B33 -> 0 | C63: 0 | D63: 0 | E63: 0 | F63: 0 | G63: 0 | H63: 0 | I63: 0 | J63: 0 | K63: 0 | L63: 0 | M63: 0 | N63: 0 | O63: 0 | P63: 0 | Q63: 0 | R63: 0 | S63: 0 | T63: 0 | U63: 0 | V63: 0 | W63: 0 | X63: 0 | Y63: 0 | Z63: 0 | AA63: 0 | AB63: 0 | AC63: 0 | AD63: 0 | AE63: 0 | AF63: 0 | AG63: 0 | AH63: 0 | AI63: 0 | AJ63: 0 | AK63: 0 | AL63: 0 | AM63: 0 | AN63: 0
B66: Oscura
G67: Oscura Data | BT67: =CONTRIBUENTE!$G$13 -> 
G68: Oscura Riscossore
G69: Oscura pagamento con assegno
J73: =IF(B67=$E$74,TRUE,FALSE) -> FALSE | BC73: =CONTRIBUENTE!J38 -> 2000-01-01
E74: Oscura | J74: =IF(B68=$E$74,TRUE,FALSE) -> FALSE | BC74: =VLOOKUP(BU8&"-"&BU5,'Motivo del pagamento'!B9:E2008,4,FALSE) -> 2024-01-01
J75: =IF(B69=$E$74,TRUE,FALSE) -> FALSE | R75: =IF(ISERROR(AZ76),"File danneggiato",IF(BF76=0,"File scaduto","")) ->  | AN75: Codice integrità | AZ75: Integrità | BF75: File scaduto / INVERTITO
AN76: 1 | AZ76: =CONTRIBUENTE!K139 -> 4 | BA76: =CONTRIBUENTE!#REF! ->  | BB76: =CONTRIBUENTE!#REF! ->  | BF76: =IF(CONTRIBUENTE!$H$139=1,0,1) -> 1

Sheet Tabelle
E3: Tabella Riscossione
B4: SEZIONI | D4: SIGLA | E4: Delega irrevocabile a | F4: Agenzia | G4: Prov. | H4: ABI | I4: CAB | J4: IBAN | L4: Codice Identificativo
B5: Erario | C5: ER | D5: B1 | E5: Nome Banca 1 / modifica sigla | F5: Nome Agenzia 1 | G5: XX | H5: 00001 | I5: 10000 | J5: IT00 X000 0000 0000 0000 0000 001 | L5: Genitore / Tutore | M5: 02
B6: Regione | C6: RG | D6: B2 | E6: Nome Banca 2 / modifica sigla | F6: Nome Agenzia 2 | G6: XX | H6: 00002 | I6: 20000 | L6: Curatore fallimentare | M6: 03
B7: Ente Locale | C7: EL | D7: B3 | E7: Nome Banca 3 / modifica sigla | F7: Nome Agenzia 3 | G7: XX | H7: 00003 | I7: 30000 | L7: Erede | M7: 07
B8: ---- Inserisci | C8: . | L8: Obbligato solidale | M8: 50
L9: Intervento sostitutivo | M9: 51
L10: Garante / Terzo datore | M10: 60
E11: Personalizza tutti i campi liberi. | L11: Soggetto aderente al consolidato | M11: 61
L12: Soggetto diverso dal fruitore del credito | M12: 62
L13: Impresa assicuratrice estera fiscalmente rappresentata | M13: 70
L14: Soggetto che ha proposto l'atto introduttivo del giudizio | M14: 71
L15: ---- Inserisci | M15: .
L16: ---- Inserisci | M16: .
M19: www.marcopiccoli.it
B21: Codice integrità | D21: Integrità
B22: 1 | D22: =CONTRIBUENTE!$K$139 -> 4
